Workbook

Sheet Eingabe
A1: Jahr | B1: 2021
A2: Klasse | B2: Name | C2: Vorname | D2: Geburtsjahr | E2: Geschlecht | F2: Kenng. | G2: Alter | H2: Kenn | I2: Ausd | J2: Sprint | K2: Sprung | L2: Wurf | M2: Ausdauer | N2: Sprint | O2: Sprung | P2: Wurf | Q2: Ges | R2: Urkunde | S2: Stufe | T2: Note
A3: =IF(ASV_Daten!A2="","",ASV_Daten!A2) -> 5a | B3: =IF(ASV_Daten!B2="","",ASV_Daten!B2) -> Alaba | C3: =IF(ASV_Daten!C2="","",ASV_Daten!C2) -> David | D3: =IF(ASV_Daten!D2="","",ASV_Daten!D2) -> 2011 | E3: =IF(ASV_Daten!E2="","",ASV_Daten!E2) -> m | F3: =A3&E3 -> 5am | G3: =IF(D3="","",$B$1-$D3) -> 10 | H3: =G3&E3 -> 10m | I3: 500 | J3: 12.38 | K3: 1.98 | L3: 7.5 | M3: =IF(E3="w",(((800/I3)-2.0232)/0.00647),(((1000/I3)-2.158)/0.006)) -> -26.33333333 | N3: =IF($E3="w",(((50/(J3+0.24))-3.648)/0.0066),IF($E3="M",(((50/(J3+0.24))-3.79)/0.0069),0)) -> 24.92248329 | O3: =IF($E3="w",((SQRT(K3)-1.0935)/0.00208),IF($E3="m",((SQRT(K3)-1.15028)/0.00219),0)) -> 117.2806977 | P3: =IF(E3="w",((SQRT(L3)-2.0232)/0.00874),IF($E3="M",((SQRT(L3)-2.8)/0.011),0)) -> -5.580655679 | Q3: =ROUND((SUM(M3:P3)-MIN(M3:P3)),0) -> 137 | R3: =IF(H3="7w",VLOOKUP(Q3,weiblich8,2),IF(H3="7m",VLOOKUP(Q3,männlich8,2),IF(H3="8w",VLOOKUP(Q3,weiblich8,2),IF(H3="8m",VLOOKUP(Q3,männlich8,2),IF(H3="9w",VLOOKUP(Q3,weiblich9,2),IF(H3="9m",VLOOKUP(Q3,männlich9,2),IF(H3="10w",VLOOKUP(Q3,weiblich10,2),IF(H3="10m",VLOOKUP(Q3,männlich10,2),IF(H3="11w",VLOOKUP(Q3,weiblich11,2),IF(H3="11m",VLOOKUP(Q3,männlich11,2),IF(H3="12w",VLOOKUP(Q3,weiblich12,2),IF(H3="12m",VLOOKUP(Q3,männlich12,2),"H")))))))))))) -> T | S3: =IF(AND(A3="1a",E3="m"),"N1m",IF(AND(A3="1a",E3="w"),"N1w",IF(AND(A3="1b",E3="w"),"N1w",IF(AND(A3="1b",E3="m"),"N1m",IF(AND(A3="2a",E3="m"),"N2m",IF(AND(A3="2a",E3="w"),"N2w",IF(AND(A3="2b",E3="w"),"N2w",IF(AND(A3="2b",E3="m"),"N2m",IF(AND(A3="3a",E3="m"),"N3m",IF(AND(A3="3a",E3="w"),"N3w",IF(AND(A3="3b",E3="w"),"N3w",IF(AND(A3="3b",E3="m"),"N3m",IF(AND(A3="4a",E3="m"),"N4m",IF(AND(A3="4a",E3="w"),"N4w",IF(AND(A3="4b",E3="m"),"N4m",IF(AND(A3="4b",E3="w"),"N4w")))))))))))))))) -> FALSE | T3: =IF(S3="n1m",VLOOKUP(Q3,N1m,2),IF(S3="N1w",VLOOKUP(Q3,N1w,2),IF(S3="N2m",VLOOKUP(Q3,n2m,2),IF(S3="N2w",VLOOKUP(Q3,n2w,2),IF(S3="N3w",VLOOKUP(Q3,n3w,2),IF(S3="N3m",VLOOKUP(Q3,n3m,2),IF(S3="N4w",VLOOKUP(Q3,n4w,2),IF(S3="N4m",VLOOKUP(Q3,n4m,2),"nix")))))))) -> nix
A4: =IF(ASV_Daten!A3="","",ASV_Daten!A3) -> 5a | B4: =IF(ASV_Daten!B3="","",ASV_Daten!B3) -> Belkahia | C4: =IF(ASV_Daten!C3="","",ASV_Daten!C3) -> Semi | D4: =IF(ASV_Daten!D3="","",ASV_Daten!D3) -> 2010 | E4: =IF(ASV_Daten!E3="","",ASV_Daten!E3) -> m | F4: =A4&E4 -> 5am | G4: =IF(D4="","",$B$1-$D4) -> 11 | H4: 11m | I4: 500 | J4: 11.25 | K4: 1.35 | L4: 6 | M4: -26.33333333 | N4: 81.3927675 | O4: 5.303654732 | P4: -31.86456884 | Q4: 60 | R4: T | S4: FALSE | T4: nix
A5: =IF(ASV_Daten!A4="","",ASV_Daten!A4) -> 5a | B5: =IF(ASV_Daten!B4="","",ASV_Daten!B4) -> Dressel | C5: =IF(ASV_Daten!C4="","",ASV_Daten!C4) -> Dennis | D5: =IF(ASV_Daten!D4="","",ASV_Daten!D4) -> 2011 | E5: =IF(ASV_Daten!E4="","",ASV_Daten!E4) -> m | F5: =A5&E5 -> 5am | G5: 10 | H5: 10m | I5: 500 | J5: 12.94 | K5: 1.61 | L5: 7.5 | M5: -26.33333333 | N5: 0.5256097293 | O5: 54.14509317 | P5: -5.580655679 | Q5: 49 | R5: T | S5: FALSE | T5: nix
A6: =IF(ASV_Daten!A5="","",ASV_Daten!A5) -> 5a | B6: =IF(ASV_Daten!B5="","",ASV_Daten!B5) -> Djajo | C6: =IF(ASV_Daten!C5="","",ASV_Daten!C5) -> Johann | D6: =IF(ASV_Daten!D5="","",ASV_Daten!D5) -> 2011 | E6: =IF(ASV_Daten!E5="","",ASV_Daten!E5) -> m | F6: 5am | G6: 10 | H6: 10m | I6: 500 | J6: 11.19 | K6: 2 | L6: 7 | M6: -26.33333333 | N6: 84.70336136 | O6: 120.5176084 | P6: -14.02260809 | Q6: 191 | R6: T | S6: FALSE | T6: nix
A7: =IF(ASV_Daten!A6="","",ASV_Daten!A6) -> 5a | B7: =IF(ASV_Daten!B6="","",ASV_Daten!B6) -> Hiller | C7: =IF(ASV_Daten!C6="","",ASV_Daten!C6) -> Marco | D7: =IF(ASV_Daten!D6="","",ASV_Daten!D6) -> 2011 | E7: =IF(ASV_Daten!E6="","",ASV_Daten!E6) -> m | F7: 5am | G7: 10 | H7: 10m | I7: 500 | J7: 10.94 | K7: 1.9 | L7: 8 | M7: -26.33333333 | N7: 98.87998756 | O7: 104.1666097 | P7: 2.584284068 | Q7: 206 | R7: T | S7: FALSE | T7: nix
A8: =IF(ASV_Daten!A7="","",ASV_Daten!A7) -> 5a | B8: =IF(ASV_Daten!B7="","",ASV_Daten!B7) -> Lex | C8: =IF(ASV_Daten!C7="","",ASV_Daten!C7) -> Stefan | D8: =IF(ASV_Daten!D7="","",ASV_Daten!D7) -> 2010 | E8: =IF(ASV_Daten!E7="","",ASV_Daten!E7) -> m | F8: 5am | G8: 11 | H8: 11m | I8: 500 | J8: 11.1 | K8: 1.7 | L8: 6 | M8: -26.33333333 | N8: 89.73493853 | O8: 70.11894111 | P8: -31.86456884 | Q8: 134 | R8: T | S8: FALSE | T8: nix
A9: =IF(ASV_Daten!A8="","",ASV_Daten!A8) -> 5a | B9: =IF(ASV_Daten!B8="","",ASV_Daten!B8) -> Mölders | C9: =IF(ASV_Daten!C8="","",ASV_Daten!C8) -> Sascha | D9: =IF(ASV_Daten!D8="","",ASV_Daten!D8) -> 2011 | E9: =IF(ASV_Daten!E8="","",ASV_Daten!E8) -> m | F9: 5am | G9: 10 | H9: 10m | I9: 500 | J9: 11 | K9: 2.23 | L9: 9 | M9: -26.33333333 | N9: 95.42008355 | O9: 156.6385627 | P9: 18.18181818 | Q9: 270 | R9: T | S9: FALSE | T9: nix
A10: =IF(ASV_Daten!A9="","",ASV_Daten!A9) -> 5a | B10: =IF(ASV_Daten!B9="","",ASV_Daten!B9) -> Tallig | C10: =IF(ASV_Daten!C9="","",ASV_Daten!C9) -> Erik | D10: =IF(ASV_Daten!D9="","",ASV_Daten!D9) -> 2011 | E10: =IF(ASV_Daten!E9="","",ASV_Daten!E9) -> m | F10: 5am | G10: 10 | H10: 10m | I10: 500 | J10: 10.22 | K10: 2.05 | L10: 10.5 | M10: -26.33333333 | N10: 143.4948874 | O10: 128.5397746 | P10: 40.03366811 | Q10: 312 | R10: T | S10: FALSE | T10: nix
A11: =IF(ASV_Daten!A10="","",ASV_Daten!A10) -> 5a | B11: =IF(ASV_Daten!B10="","",ASV_Daten!B10) -> Belkner | C11: =IF(ASV_Daten!C10="","",ASV_Daten!C10) -> Jerome | D11: =IF(ASV_Daten!D10="","",ASV_Daten!D10) -> 2010 | E11: =IF(ASV_Daten!E10="","",ASV_Daten!E10) -> m | F11: 5am | G11: 11 | H11: 11m | I11: 500 | J11: 11.12 | K11: 1.85 | L11: 7.5 | M11: -26.33333333 | N11: 88.60992039 | O11: 95.8297036 | P11: -5.580655679 | Q11: 179 | R11: T | S11: FALSE | T11: nix
A12: =IF(ASV_Daten!A11="","",ASV_Daten!A11) -> 5a | B12: =IF(ASV_Daten!B11="","",ASV_Daten!B11) -> Zeppelin | C12: =IF(ASV_Daten!C11="","",ASV_Daten!C11) -> Leni | D12: =IF(ASV_Daten!D11="","",ASV_Daten!D11) -> 2011 | E12: =IF(ASV_Daten!E11="","",ASV_Daten!E11) -> w | F12: 5aw | G12: 10 | H12: 10w | I12: 500 | J12: 11.3 | K12: 2 | L12: 7.5 | M12: -65.40958269 | N12: 103.7508534 | O12: 154.1892127 | P12: 81.85501001 | Q12: 340 | R12: T | S12: FALSE | T12: nix
A13: =IF(ASV_Daten!A12="","",ASV_Daten!A12) -> 5a | B13: =IF(ASV_Daten!B12="","",ASV_Daten!B12) -> Kallote | C13: =IF(ASV_Daten!C12="","",ASV_Daten!C12) -> Marus | D13: =IF(ASV_Daten!D12="","",ASV_Daten!D12) -> 2011 | E13: =IF(ASV_Daten!E12="","",ASV_Daten!E12) -> m | F13: 5am | G13: 10 | H13: 10m | I13: 500 | J13: 10.25 | K13: 2.28 | L13: 10.5 | M13: -26.33333333 | N13: 141.5136569 | O13: 164.2405877 | P13: 40.03366811 | Q13: 346 | R13: T | S13: FALSE | T13: nix
A14: =IF(ASV_Daten!A13="","",ASV_Daten!A13) -> 5a | B14: =IF(ASV_Daten!B13="","",ASV_Daten!B13) -> Alaba | C14: =IF(ASV_Daten!C13="","",ASV_Daten!C13) -> David | D14: =IF(ASV_Daten!D13="","",ASV_Daten!D13) -> 2011 | E14: =IF(ASV_Daten!E13="","",ASV_Daten!E13) -> m | F14: 5am | G14: 10 | H14: 10m | I14: 500 | J14: 10.62 | K14: 2.05 | L14: 6.5 | M14: -26.33333333 | N14: 117.9784877 | O14: 128.5397746 | P14: -22.77184029 | Q14: 224 | R14: T | S14: FALSE | T14: nix
A15: =IF(ASV_Daten!A14="","",ASV_Daten!A14) -> 5a | B15: =IF(ASV_Daten!B14="","",ASV_Daten!B14) -> Dressel | C15: =IF(ASV_Daten!C14="","",ASV_Daten!C14) -> Dennis | D15: =IF(ASV_Daten!D14="","",ASV_Daten!D14) -> 2011 | E15: =IF(ASV_Daten!E14="","",ASV_Daten!E14) -> m | F15: 5am | G15: 10 | H15: 10m | I15: 500 | J15: 10.59 | K15: 2.67 | L15: 10.5 | M15: -26.33333333 | N15: 119.8268364 | O15: 220.8828602 | P15: 40.03366811 | Q15: 381 | R15: T | S15: FALSE | T15: nix
A16: =IF(ASV_Daten!A15="","",ASV_Daten!A15) -> 5a | B16: =IF(ASV_Daten!B15="","",ASV_Daten!B15) -> Djajo | C16: =IF(ASV_Daten!C15="","",ASV_Daten!C15) -> Johann | D16: =IF(ASV_Daten!D15="","",ASV_Daten!D15) -> 2011 | E16: =IF(ASV_Daten!E15="","",ASV_Daten!E15) -> m | F16: 5am | G16: 10 | H16: 10m | I16: 500 | J16: 10.88 | K16: 2.04 | L16: 8 | M16: -26.33333333 | N16: 102.3772287 | O16: 126.9432355 | P16: 2.584284068 | Q16: 232 | R16: T | S16: FALSE | T16: nix
A17: =IF(ASV_Daten!A16="","",ASV_Daten!A16) -> 5a | B17: =IF(ASV_Daten!B16="","",ASV_Daten!B16) -> Hiller | C17: =IF(ASV_Daten!C16="","",ASV_Daten!C16) -> Marco | D17: =IF(ASV_Daten!D16="","",ASV_Daten!D16) -> 2011 | E17: =IF(ASV_Daten!E16="","",ASV_Daten!E16) -> m | F17: 5am | G17: 10 | H17: 10m | I17: 500 | J17: 10.22 | K17: 2.47 | L17: 11.5 | M17: -26.33333333 | N17: 143.4948874 | O17: 192.3942304 | P17: 53.74227196 | Q17: 390 | R17: T | S17: FALSE | T17: nix
A18: =IF(ASV_Daten!A17="","",ASV_Daten!A17) -> 5a | B18: =IF(ASV_Daten!B17="","",ASV_Daten!B17) -> Lex | C18: =IF(ASV_Daten!C17="","",ASV_Daten!C17) -> Stefan | D18: =IF(ASV_Daten!D17="","",ASV_Daten!D17) -> 2010 | E18: =IF(ASV_Daten!E17="","",ASV_Daten!E17) -> m | F18: 5am | G18: 11 | H18: 11m | I18: 500 | J18: 10.25 | K18: 2.24 | L18: 15 | M18: -26.33333333 | N18: 141.5136569 | O18: 158.1657327 | P18: 97.54394056 | Q18: 397 | R18: T | S18: FALSE | T18: nix
A19: =IF(ASV_Daten!A18="","",ASV_Daten!A18) -> 5a | B19: =IF(ASV_Daten!B18="","",ASV_Daten!B18) -> Mölders | C19: =IF(ASV_Daten!C18="","",ASV_Daten!C18) -> Sascha | D19: =IF(ASV_Daten!D18="","",ASV_Daten!D18) -> 2011 | E19: =IF(ASV_Daten!E18="","",ASV_Daten!E18) -> m | F19: 5am | G19: 10 | H19: 10m | I19: 500 | J19: 10.44 | K19: 2.06 | L19: 7.5 | M19: -26.33333333 | N19: 129.2243391 | O19: 130.1324244 | P19: -5.580655679 | Q19: 254 | R19: T | S19: FALSE | T19: nix
A20: =IF(ASV_Daten!A19="","",ASV_Daten!A19) -> 5a | B20: =IF(ASV_Daten!B19="","",ASV_Daten!B19) -> Tallig | C20: =IF(ASV_Daten!C19="","",ASV_Daten!C19) -> Erik | D20: =IF(ASV_Daten!D19="","",ASV_Daten!D19) -> 2011 | E20: =IF(ASV_Daten!E19="","",ASV_Daten!E19) -> m | F20: 5am | G20: 10 | H20: 10m | I20: 500 | J20: 10.43 | K20: 2.2 | L20: 6.5 | M20: -26.33333333 | N20: 129.8602339 | O20: 152.0363915 | P20: -22.77184029 | Q20: 259 | R20: T | S20: FALSE | T20: nix | V20: =VLOOKUP("1a",A14:E20,5) -> 
A21: =IF(ASV_Daten!A20="","",ASV_Daten!A20) -> 5a | B21: =IF(ASV_Daten!B20="","",ASV_Daten!B20) -> Zeppelin | C21: =IF(ASV_Daten!C20="","",ASV_Daten!C20) -> Leni | D21: =IF(ASV_Daten!D20="","",ASV_Daten!D20) -> 2011 | E21: =IF(ASV_Daten!E20="","",ASV_Daten!E20) -> w | F21: 5aw | G21: =IF(ASV_Daten!D20="","",$B$1-ASV_Daten!$D20) -> 10 | H21: =G21&ASV_Daten!E20 -> 10w | I21: 500 | J21: 10.97 | K21: 2.25 | L21: 8 | M21: =IF(ASV_Daten!E20="w",(((800/I21)-2.0232)/0.00647),(((1000/I21)-2.158)/0.006)) -> -65.40958269 | N21: =IF(ASV_Daten!$E20="w",(((50/(J21+0.24))-3.648)/0.0066),IF(ASV_Daten!$E20="M",(((50/(J21+0.24))-3.79)/0.0069),0)) -> 123.0762577 | O21: =IF(ASV_Daten!$E20="w",((SQRT(K21)-1.0935)/0.00208),IF(ASV_Daten!$E20="m",((SQRT(K21)-1.15028)/0.00219),0)) -> 195.4326923 | P21: =IF(ASV_Daten!E20="w",((SQRT(L21)-2.0232)/0.00874),IF(ASV_Daten!$E20="M",((SQRT(L21)-2.8)/0.011),0)) -> 92.13124997 | Q21: 411 | R21: T | S21: =IF(AND(ASV_Daten!A20="1a",ASV_Daten!E20="m"),"N1m",IF(AND(ASV_Daten!A20="1a",ASV_Daten!E20="w"),"N1w",IF(AND(ASV_Daten!A20="1b",ASV_Daten!E20="w"),"N1w",IF(AND(ASV_Daten!A20="1b",ASV_Daten!E20="m"),"N1m",IF(AND(ASV_Daten!A20="2a",ASV_Daten!E20="m"),"N2m",IF(AND(ASV_Daten!A20="2a",ASV_Daten!E20="w"),"N2w",IF(AND(ASV_Daten!A20="2b",ASV_Daten!E20="w"),"N2w",IF(AND(ASV_Daten!A20="2b",ASV_Daten!E20="m"),"N2m",IF(AND(ASV_Daten!A20="3a",ASV_Daten!E20="m"),"N3m",IF(AND(ASV_Daten!A20="3a",ASV_Daten!E20="w"),"N3w",IF(AND(ASV_Daten!A20="3b",ASV_Daten!E20="w"),"N3w",IF(AND(ASV_Daten!A20="3b",ASV_Daten!E20="m"),"N3m",IF(AND(ASV_Daten!A20="4a",ASV_Daten!E20="m"),"N4m",IF(AND(ASV_Daten!A20="4a",ASV_Daten!E20="w"),"N4w",IF(AND(ASV_Daten!A20="4b",ASV_Daten!E20="m"),"N4m",IF(AND(ASV_Daten!A20="4b",ASV_Daten!E20="w"),"N4w")))))))))))))))) -> FALSE | T21: nix | V21: =VLOOKUP("1a",A15:E20,5) -> 
A22: =IF(ASV_Daten!A21="","",ASV_Daten!A21) -> 5a | B22: =IF(ASV_Daten!B21="","",ASV_Daten!B21) -> Kallote | C22: =IF(ASV_Daten!C21="","",ASV_Daten!C21) -> Marus | D22: =IF(ASV_Daten!D21="","",ASV_Daten!D21) -> 2011 | E22: =IF(ASV_Daten!E21="","",ASV_Daten!E21) -> m | F22: 5am | G22: =IF(ASV_Daten!D21="","",$B$1-ASV_Daten!$D21) -> 10 | H22: =G22&ASV_Daten!E21 -> 10m | I22: 500 | J22: 10 | K22: 2.44 | L22: 14 | M22: =IF(ASV_Daten!E21="w",(((800/I22)-2.0232)/0.00647),(((1000/I22)-2.158)/0.006)) -> -26.33333333 | N22: =IF(ASV_Daten!$E21="w",(((50/(J22+0.24))-3.648)/0.0066),IF(ASV_Daten!$E21="M",(((50/(J22+0.24))-3.79)/0.0069),0)) -> 158.3786232 | O22: =IF(ASV_Daten!$E21="w",((SQRT(K22)-1.0935)/0.00208),IF(ASV_Daten!$E21="m",((SQRT(K22)-1.15028)/0.00219),0)) -> 188.0228015 | P22: =IF(ASV_Daten!E21="w",((SQRT(L22)-2.0232)/0.00874),IF(ASV_Daten!$E21="M",((SQRT(L22)-2.8)/0.011),0)) -> 85.60521698 | Q22: 432 | R22: T | S22: =IF(AND(ASV_Daten!A21="1a",ASV_Daten!E21="m"),"N1m",IF(AND(ASV_Daten!A21="1a",ASV_Daten!E21="w"),"N1w",IF(AND(ASV_Daten!A21="1b",ASV_Daten!E21="w"),"N1w",IF(AND(ASV_Daten!A21="1b",ASV_Daten!E21="m"),"N1m",IF(AND(ASV_Daten!A21="2a",ASV_Daten!E21="m"),"N2m",IF(AND(ASV_Daten!A21="2a",ASV_Daten!E21="w"),"N2w",IF(AND(ASV_Daten!A21="2b",ASV_Daten!E21="w"),"N2w",IF(AND(ASV_Daten!A21="2b",ASV_Daten!E21="m"),"N2m",IF(AND(ASV_Daten!A21="3a",ASV_Daten!E21="m"),"N3m",IF(AND(ASV_Daten!A21="3a",ASV_Daten!E21="w"),"N3w",IF(AND(ASV_Daten!A21="3b",ASV_Daten!E21="w"),"N3w",IF(AND(ASV_Daten!A21="3b",ASV_Daten!E21="m"),"N3m",IF(AND(ASV_Daten!A21="4a",ASV_Daten!E21="m"),"N4m",IF(AND(ASV_Daten!A21="4a",ASV_Daten!E21="w"),"N4w",IF(AND(ASV_Daten!A21="4b",ASV_Daten!E21="m"),"N4m",IF(AND(ASV_Daten!A21="4b",ASV_Daten!E21="w"),"N4w")))))))))))))))) -> FALSE | T22: nix | V22: =VLOOKUP("1a",A16:E20,5) -> 
A23: =IF(ASV_Daten!A22="","",ASV_Daten!A22) -> 5a | B23: =IF(ASV_Daten!B22="","",ASV_Daten!B22) -> Alaba | C23: =IF(ASV_Daten!C22="","",ASV_Daten!C22) -> David | D23: =IF(ASV_Daten!D22="","",ASV_Daten!D22) -> 2011 | E23: =IF(ASV_Daten!E22="","",ASV_Daten!E22) -> m | F23: 5am | G23: =IF(ASV_Daten!D22="","",$B$1-ASV_Daten!$D22) -> 10 | H23: =G23&ASV_Daten!E22 -> 10m | I23: 500 | J23: 10.28 | K23: 2.15 | L23: 8.5 | M23: =IF(ASV_Daten!E22="w",(((800/I23)-2.0232)/0.00647),(((1000/I23)-2.158)/0.006)) -> -26.33333333 | N23: =IF(ASV_Daten!$E22="w",(((50/(J23+0.24))-3.648)/0.0066),IF(ASV_Daten!$E22="M",(((50/(J23+0.24))-3.79)/0.0069),0)) -> 139.5437262 | O23: =IF(ASV_Daten!$E22="w",((SQRT(K23)-1.0935)/0.00208),IF(ASV_Daten!$E22="m",((SQRT(K23)-1.15028)/0.00219),0)) -> 144.2958127 | P23: =IF(ASV_Daten!E22="w",((SQRT(L23)-2.0232)/0.00874),IF(ASV_Daten!$E22="M",((SQRT(L23)-2.8)/0.011),0)) -> 10.4978134 | Q23: 294 | R23: T | S23: =IF(AND(ASV_Daten!A22="1a",ASV_Daten!E22="m"),"N1m",IF(AND(ASV_Daten!A22="1a",ASV_Daten!E22="w"),"N1w",IF(AND(ASV_Daten!A22="1b",ASV_Daten!E22="w"),"N1w",IF(AND(ASV_Daten!A22="1b",ASV_Daten!E22="m"),"N1m",IF(AND(ASV_Daten!A22="2a",ASV_Daten!E22="m"),"N2m",IF(AND(ASV_Daten!A22="2a",ASV_Daten!E22="w"),"N2w",IF(AND(ASV_Daten!A22="2b",ASV_Daten!E22="w"),"N2w",IF(AND(ASV_Daten!A22="2b",ASV_Daten!E22="m"),"N2m",IF(AND(ASV_Daten!A22="3a",ASV_Daten!E22="m"),"N3m",IF(AND(ASV_Daten!A22="3a",ASV_Daten!E22="w"),"N3w",IF(AND(ASV_Daten!A22="3b",ASV_Daten!E22="w"),"N3w",IF(AND(ASV_Daten!A22="3b",ASV_Daten!E22="m"),"N3m",IF(AND(ASV_Daten!A22="4a",ASV_Daten!E22="m"),"N4m",IF(AND(ASV_Daten!A22="4a",ASV_Daten!E22="w"),"N4w",IF(AND(ASV_Daten!A22="4b",ASV_Daten!E22="m"),"N4m",IF(AND(ASV_Daten!A22="4b",ASV_Daten!E22="w"),"N4w")))))))))))))))) -> FALSE | T23: nix | V23: =VLOOKUP("1a",A17:E20,5) -> 
A24: =IF(ASV_Daten!A23="","",ASV_Daten!A23) -> 5a | B24: =IF(ASV_Daten!B23="","",ASV_Daten!B23) -> Belkahia | C24: =IF(ASV_Daten!C23="","",ASV_Daten!C23) -> Semi | D24: =IF(ASV_Daten!D23="","",ASV_Daten!D23) -> 2010 | E24: =IF(ASV_Daten!E23="","",ASV_Daten!E23) -> m | F24: 5am | G24: =IF(ASV_Daten!D27="","",$B$1-ASV_Daten!$D27) -> 11 | H24: =G24&ASV_Daten!E27 -> 11m | I24: 500 | J24: 10.1 | K24: 2.52 | L24: 7.5 | M24: =IF(ASV_Daten!E27="w",(((800/I24)-2.0232)/0.00647),(((1000/I24)-2.158)/0.006)) -> -26.33333333 | N24: =IF(ASV_Daten!$E27="w",(((50/(J24+0.24))-3.648)/0.0066),IF(ASV_Daten!$E27="M",(((50/(J24+0.24))-3.79)/0.0069),0)) -> 151.5347742 | O24: =IF(ASV_Daten!$E27="w",((SQRT(K24)-1.0935)/0.00208),IF(ASV_Daten!$E27="m",((SQRT(K24)-1.15028)/0.00219),0)) -> 199.6213638 | P24: =IF(ASV_Daten!E27="w",((SQRT(L24)-2.0232)/0.00874),IF(ASV_Daten!$E27="M",((SQRT(L24)-2.8)/0.011),0)) -> -5.580655679 | Q24: 346 | R24: T | S24: =IF(AND(ASV_Daten!A27="1a",ASV_Daten!E27="m"),"N1m",IF(AND(ASV_Daten!A27="1a",ASV_Daten!E27="w"),"N1w",IF(AND(ASV_Daten!A27="1b",ASV_Daten!E27="w"),"N1w",IF(AND(ASV_Daten!A27="1b",ASV_Daten!E27="m"),"N1m",IF(AND(ASV_Daten!A27="2a",ASV_Daten!E27="m"),"N2m",IF(AND(ASV_Daten!A27="2a",ASV_Daten!E27="w"),"N2w",IF(AND(ASV_Daten!A27="2b",ASV_Daten!E27="w"),"N2w",IF(AND(ASV_Daten!A27="2b",ASV_Daten!E27="m"),"N2m",IF(AND(ASV_Daten!A27="3a",ASV_Daten!E27="m"),"N3m",IF(AND(ASV_Daten!A27="3a",ASV_Daten!E27="w"),"N3w",IF(AND(ASV_Daten!A27="3b",ASV_Daten!E27="w"),"N3w",IF(AND(ASV_Daten!A27="3b",ASV_Daten!E27="m"),"N3m",IF(AND(ASV_Daten!A27="4a",ASV_Daten!E27="m"),"N4m",IF(AND(ASV_Daten!A27="4a",ASV_Daten!E27="w"),"N4w",IF(AND(ASV_Daten!A27="4b",ASV_Daten!E27="m"),"N4m",IF(AND(ASV_Daten!A27="4b",ASV_Daten!E27="w"),"N4w")))))))))))))))) -> FALSE | T24: nix | V24: =VLOOKUP("1a",A18:E20,5) -> 
A25: =IF(ASV_Daten!A24="","",ASV_Daten!A24) -> 5a | B25: =IF(ASV_Daten!B24="","",ASV_Daten!B24) -> Dressel | C25: =IF(ASV_Daten!C24="","",ASV_Daten!C24) -> Dennis | D25: =IF(ASV_Daten!D24="","",ASV_Daten!D24) -> 2011 | E25: =IF(ASV_Daten!E24="","",ASV_Daten!E24) -> m | F25: 5am | G25: =IF(ASV_Daten!D30="","",$B$1-ASV_Daten!$D30) -> 11 | H25: =G25&ASV_Daten!E30 -> 11m | I25: 500 | J25: 10.13 | K25: 2.4 | L25: 13 | M25: =IF(ASV_Daten!E30="w",(((800/I25)-2.0232)/0.00647),(((1000/I25)-2.158)/0.006)) -> -26.33333333 | N25: =IF(ASV_Daten!$E30="w",(((50/(J25+0.24))-3.648)/0.0066),IF(ASV_Daten!$E30="M",(((50/(J25+0.24))-3.79)/0.0069),0)) -> 149.5073582 | O25: =IF(ASV_Daten!$E30="w",((SQRT(K25)-1.0935)/0.00208),IF(ASV_Daten!$E30="m",((SQRT(K25)-1.15028)/0.00219),0)) -> 182.1522094 | P25: =IF(ASV_Daten!E30="w",((SQRT(L25)-2.0232)/0.00874),IF(ASV_Daten!$E30="M",((SQRT(L25)-2.8)/0.011),0)) -> 73.23193413 | Q25: 405 | R25: T | S25: =IF(AND(ASV_Daten!A30="1a",ASV_Daten!E30="m"),"N1m",IF(AND(ASV_Daten!A30="1a",ASV_Daten!E30="w"),"N1w",IF(AND(ASV_Daten!A30="1b",ASV_Daten!E30="w"),"N1w",IF(AND(ASV_Daten!A30="1b",ASV_Daten!E30="m"),"N1m",IF(AND(ASV_Daten!A30="2a",ASV_Daten!E30="m"),"N2m",IF(AND(ASV_Daten!A30="2a",ASV_Daten!E30="w"),"N2w",IF(AND(ASV_Daten!A30="2b",ASV_Daten!E30="w"),"N2w",IF(AND(ASV_Daten!A30="2b",ASV_Daten!E30="m"),"N2m",IF(AND(ASV_Daten!A30="3a",ASV_Daten!E30="m"),"N3m",IF(AND(ASV_Daten!A30="3a",ASV_Daten!E30="w"),"N3w",IF(AND(ASV_Daten!A30="3b",ASV_Daten!E30="w"),"N3w",IF(AND(ASV_Daten!A30="3b",ASV_Daten!E30="m"),"N3m",IF(AND(ASV_Daten!A30="4a",ASV_Daten!E30="m"),"N4m",IF(AND(ASV_Daten!A30="4a",ASV_Daten!E30="w"),"N4w",IF(AND(ASV_Daten!A30="4b",ASV_Daten!E30="m"),"N4m",IF(AND(ASV_Daten!A30="4b",ASV_Daten!E30="w"),"N4w")))))))))))))))) -> FALSE | T25: nix | V25: =VLOOKUP("1a",A19:E20,5) -> 
A26: =IF(ASV_Daten!A25="","",ASV_Daten!A25) -> 5a | B26: =IF(ASV_Daten!B25="","",ASV_Daten!B25) -> Djajo | C26: =IF(ASV_Daten!C25="","",ASV_Daten!C25) -> Johann | D26: =IF(ASV_Daten!D25="","",ASV_Daten!D25) -> 2011 | E26: =IF(ASV_Daten!E25="","",ASV_Daten!E25) -> m | F26: 5am | G26: =IF(ASV_Daten!D31="","",$B$1-ASV_Daten!$D31) -> 11 | H26: =G26&ASV_Daten!E31 -> 11m | I26: 500 | J26: 11.81 | K26: 2.2 | L26: 11 | M26: =IF(ASV_Daten!E31="w",(((800/I26)-2.0232)/0.00647),(((1000/I26)-2.158)/0.006)) -> -26.33333333 | N26: =IF(ASV_Daten!$E31="w",(((50/(J26+0.24))-3.648)/0.0066),IF(ASV_Daten!$E31="M",(((50/(J26+0.24))-3.79)/0.0069),0)) -> 52.08370918 | O26: =IF(ASV_Daten!$E31="w",((SQRT(K26)-1.0935)/0.00208),IF(ASV_Daten!$E31="m",((SQRT(K26)-1.15028)/0.00219),0)) -> 152.0363915 | P26: =IF(ASV_Daten!E31="w",((SQRT(L26)-2.0232)/0.00874),IF(ASV_Daten!$E31="M",((SQRT(L26)-2.8)/0.011),0)) -> 46.96589003 | Q26: 251 | R26: T | S26: =IF(AND(ASV_Daten!A31="1a",ASV_Daten!E31="m"),"N1m",IF(AND(ASV_Daten!A31="1a",ASV_Daten!E31="w"),"N1w",IF(AND(ASV_Daten!A31="1b",ASV_Daten!E31="w"),"N1w",IF(AND(ASV_Daten!A31="1b",ASV_Daten!E31="m"),"N1m",IF(AND(ASV_Daten!A31="2a",ASV_Daten!E31="m"),"N2m",IF(AND(ASV_Daten!A31="2a",ASV_Daten!E31="w"),"N2w",IF(AND(ASV_Daten!A31="2b",ASV_Daten!E31="w"),"N2w",IF(AND(ASV_Daten!A31="2b",ASV_Daten!E31="m"),"N2m",IF(AND(ASV_Daten!A31="3a",ASV_Daten!E31="m"),"N3m",IF(AND(ASV_Daten!A31="3a",ASV_Daten!E31="w"),"N3w",IF(AND(ASV_Daten!A31="3b",ASV_Daten!E31="w"),"N3w",IF(AND(ASV_Daten!A31="3b",ASV_Daten!E31="m"),"N3m",IF(AND(ASV_Daten!A31="4a",ASV_Daten!E31="m"),"N4m",IF(AND(ASV_Daten!A31="4a",ASV_Daten!E31="w"),"N4w",IF(AND(ASV_Daten!A31="4b",ASV_Daten!E31="m"),"N4m",IF(AND(ASV_Daten!A31="4b",ASV_Daten!E31="w"),"N4w")))))))))))))))) -> FALSE | T26: nix | V26: =VLOOKUP("1a",A20:E20,5) -> 
A27: =IF(ASV_Daten!A26="","",ASV_Daten!A26) -> 5a | B27: =IF(ASV_Daten!B26="","",ASV_Daten!B26) -> Hiller | C27: =IF(ASV_Daten!C26="","",ASV_Daten!C26) -> Marco | D27: =IF(ASV_Daten!D26="","",ASV_Daten!D26) -> 2011 | E27: =IF(ASV_Daten!E26="","",ASV_Daten!E26) -> m | F27: 5am | G27: =IF(ASV_Daten!D34="","",$B$1-ASV_Daten!$D34) -> 10 | H27: =G27&ASV_Daten!E34 -> 10m | I27: 500 | J27: 10.75 | K27: 1.6 | L27: 10 | M27: =IF(ASV_Daten!E34="w",(((800/I27)-2.0232)/0.00647),(((1000/I27)-2.158)/0.006)) -> -26.33333333 | N27: =IF(ASV_Daten!$E34="w",(((50/(J27+0.24))-3.648)/0.0066),IF(ASV_Daten!$E34="M",(((50/(J27+0.24))-3.79)/0.0069),0)) -> 110.0855851 | O27: =IF(ASV_Daten!$E34="w",((SQRT(K27)-1.0935)/0.00208),IF(ASV_Daten!$E34="m",((SQRT(K27)-1.15028)/0.00219),0)) -> 52.34295163 | P27: =IF(ASV_Daten!E34="w",((SQRT(L27)-2.0232)/0.00874),IF(ASV_Daten!$E34="M",((SQRT(L27)-2.8)/0.011),0)) -> 32.93433274 | Q27: 195 | R27: T | S27: =IF(AND(ASV_Daten!A34="1a",ASV_Daten!E34="m"),"N1m",IF(AND(ASV_Daten!A34="1a",ASV_Daten!E34="w"),"N1w",IF(AND(ASV_Daten!A34="1b",ASV_Daten!E34="w"),"N1w",IF(AND(ASV_Daten!A34="1b",ASV_Daten!E34="m"),"N1m",IF(AND(ASV_Daten!A34="2a",ASV_Daten!E34="m"),"N2m",IF(AND(ASV_Daten!A34="2a",ASV_Daten!E34="w"),"N2w",IF(AND(ASV_Daten!A34="2b",ASV_Daten!E34="w"),"N2w",IF(AND(ASV_Daten!A34="2b",ASV_Daten!E34="m"),"N2m",IF(AND(ASV_Daten!A34="3a",ASV_Daten!E34="m"),"N3m",IF(AND(ASV_Daten!A34="3a",ASV_Daten!E34="w"),"N3w",IF(AND(ASV_Daten!A34="3b",ASV_Daten!E34="w"),"N3w",IF(AND(ASV_Daten!A34="3b",ASV_Daten!E34="m"),"N3m",IF(AND(ASV_Daten!A34="4a",ASV_Daten!E34="m"),"N4m",IF(AND(ASV_Daten!A34="4a",ASV_Daten!E34="w"),"N4w",IF(AND(ASV_Daten!A34="4b",ASV_Daten!E34="m"),"N4m",IF(AND(ASV_Daten!A34="4b",ASV_Daten!E34="w"),"N4w")))))))))))))))) -> FALSE | T27: nix
A28: =IF(ASV_Daten!A27="","",ASV_Daten!A27) -> 5a | B28: =IF(ASV_Daten!B27="","",ASV_Daten!B27) -> Lex | C28: =IF(ASV_Daten!C27="","",ASV_Daten!C27) -> Stefan | D28: =IF(ASV_Daten!D27="","",ASV_Daten!D27) -> 2010 | E28: =IF(ASV_Daten!E27="","",ASV_Daten!E27) -> m | F28: 5am | G28: =IF(ASV_Daten!D35="","",$B$1-ASV_Daten!$D35) -> 11 | H28: =G28&ASV_Daten!E35 -> 11m | I28: 500 | J28: 9.97 | K28: 2.32 | L28: 9 | M28: =IF(ASV_Daten!E35="w",(((800/I28)-2.0232)/0.00647),(((1000/I28)-2.158)/0.006)) -> -26.33333333 | N28: =IF(ASV_Daten!$E35="w",(((50/(J28+0.24))-3.648)/0.0066),IF(ASV_Daten!$E35="M",(((50/(J28+0.24))-3.79)/0.0069),0)) -> 160.4579199 | O28: =IF(ASV_Daten!$E35="w",((SQRT(K28)-1.0935)/0.00208),IF(ASV_Daten!$E35="m",((SQRT(K28)-1.15028)/0.00219),0)) -> 170.2623841 | P28: =IF(ASV_Daten!E35="w",((SQRT(L28)-2.0232)/0.00874),IF(ASV_Daten!$E35="M",((SQRT(L28)-2.8)/0.011),0)) -> 18.18181818 | Q28: 349 | R28: T | S28: =IF(AND(ASV_Daten!A35="1a",ASV_Daten!E35="m"),"N1m",IF(AND(ASV_Daten!A35="1a",ASV_Daten!E35="w"),"N1w",IF(AND(ASV_Daten!A35="1b",ASV_Daten!E35="w"),"N1w",IF(AND(ASV_Daten!A35="1b",ASV_Daten!E35="m"),"N1m",IF(AND(ASV_Daten!A35="2a",ASV_Daten!E35="m"),"N2m",IF(AND(ASV_Daten!A35="2a",ASV_Daten!E35="w"),"N2w",IF(AND(ASV_Daten!A35="2b",ASV_Daten!E35="w"),"N2w",IF(AND(ASV_Daten!A35="2b",ASV_Daten!E35="m"),"N2m",IF(AND(ASV_Daten!A35="3a",ASV_Daten!E35="m"),"N3m",IF(AND(ASV_Daten!A35="3a",ASV_Daten!E35="w"),"N3w",IF(AND(ASV_Daten!A35="3b",ASV_Daten!E35="w"),"N3w",IF(AND(ASV_Daten!A35="3b",ASV_Daten!E35="m"),"N3m",IF(AND(ASV_Daten!A35="4a",ASV_Daten!E35="m"),"N4m",IF(AND(ASV_Daten!A35="4a",ASV_Daten!E35="w"),"N4w",IF(AND(ASV_Daten!A35="4b",ASV_Daten!E35="m"),"N4m",IF(AND(ASV_Daten!A35="4b",ASV_Daten!E35="w"),"N4w")))))))))))))))) -> FALSE | T28: nix
A29: =IF(ASV_Daten!A28="","",ASV_Daten!A28) -> 5a | B29: =IF(ASV_Daten!B28="","",ASV_Daten!B28) -> Mölders | C29: =IF(ASV_Daten!C28="","",ASV_Daten!C28) -> Sascha | D29: =IF(ASV_Daten!D28="","",ASV_Daten!D28) -> 2011 | E29: =IF(ASV_Daten!E28="","",ASV_Daten!E28) -> m | F29: 5am | G29: =IF(ASV_Daten!D23="","",$B$1-ASV_Daten!$D23) -> 11 | H29: =G29&ASV_Daten!E23 -> 11m | I29: 500 | J29: 10.28 | K29: 2.22 | L29: 9.5 | M29: =IF(ASV_Daten!E23="w",(((800/I29)-2.0232)/0.00647),(((1000/I29)-2.158)/0.006)) -> -26.33333333 | N29: =IF(ASV_Daten!$E23="w",(((50/(J29+0.24))-3.648)/0.0066),IF(ASV_Daten!$E23="M",(((50/(J29+0.24))-3.79)/0.0069),0)) -> 139.5437262 | O29: =IF(ASV_Daten!$E23="w",((SQRT(K29)-1.0935)/0.00208),IF(ASV_Daten!$E23="m",((SQRT(K29)-1.15028)/0.00219),0)) -> 155.1079646 | P29: =IF(ASV_Daten!E23="w",((SQRT(L29)-2.0232)/0.00874),IF(ASV_Daten!$E23="M",((SQRT(L29)-2.8)/0.011),0)) -> 25.65518195 | Q29: 320 | R29: T | S29: =IF(AND(ASV_Daten!A23="1a",ASV_Daten!E23="m"),"N1m",IF(AND(ASV_Daten!A23="1a",ASV_Daten!E23="w"),"N1w",IF(AND(ASV_Daten!A23="1b",ASV_Daten!E23="w"),"N1w",IF(AND(ASV_Daten!A23="1b",ASV_Daten!E23="m"),"N1m",IF(AND(ASV_Daten!A23="2a",ASV_Daten!E23="m"),"N2m",IF(AND(ASV_Daten!A23="2a",ASV_Daten!E23="w"),"N2w",IF(AND(ASV_Daten!A23="2b",ASV_Daten!E23="w"),"N2w",IF(AND(ASV_Daten!A23="2b",ASV_Daten!E23="m"),"N2m",IF(AND(ASV_Daten!A23="3a",ASV_Daten!E23="m"),"N3m",IF(AND(ASV_Daten!A23="3a",ASV_Daten!E23="w"),"N3w",IF(AND(ASV_Daten!A23="3b",ASV_Daten!E23="w"),"N3w",IF(AND(ASV_Daten!A23="3b",ASV_Daten!E23="m"),"N3m",IF(AND(ASV_Daten!A23="4a",ASV_Daten!E23="m"),"N4m",IF(AND(ASV_Daten!A23="4a",ASV_Daten!E23="w"),"N4w",IF(AND(ASV_Daten!A23="4b",ASV_Daten!E23="m"),"N4m",IF(AND(ASV_Daten!A23="4b",ASV_Daten!E23="w"),"N4w")))))))))))))))) -> FALSE | T29: nix
A30: =IF(ASV_Daten!A29="","",ASV_Daten!A29) -> 5a | B30: =IF(ASV_Daten!B29="","",ASV_Daten!B29) -> Tallig | C30: =IF(ASV_Daten!C29="","",ASV_Daten!C29) -> Erik | D30: =IF(ASV_Daten!D29="","",ASV_Daten!D29) -> 2011 | E30: =IF(ASV_Daten!E29="","",ASV_Daten!E29) -> m | F30: 5am | G30: =IF(ASV_Daten!D24="","",$B$1-ASV_Daten!$D24) -> 10 | H30: =G30&ASV_Daten!E24 -> 10m | I30: 500 | J30: 10.53 | K30: 2.75 | L30: 16.5 | M30: =IF(ASV_Daten!E24="w",(((800/I30)-2.0232)/0.00647),(((1000/I30)-2.158)/0.006)) -> -26.33333333 | N30: =IF(ASV_Daten!$E24="w",(((50/(J30+0.24))-3.648)/0.0066),IF(ASV_Daten!$E24="M",(((50/(J30+0.24))-3.79)/0.0069),0)) -> 123.5544252 | O30: =IF(ASV_Daten!$E24="w",((SQRT(K30)-1.0935)/0.00208),IF(ASV_Daten!$E24="m",((SQRT(K30)-1.15028)/0.00219),0)) -> 231.9782626 | P30: =IF(ASV_Daten!E24="w",((SQRT(L30)-2.0232)/0.00874),IF(ASV_Daten!$E24="M",((SQRT(L30)-2.8)/0.011),0)) -> 114.7290184 | Q30: 470 | R30: T | S30: =IF(AND(ASV_Daten!A24="1a",ASV_Daten!E24="m"),"N1m",IF(AND(ASV_Daten!A24="1a",ASV_Daten!E24="w"),"N1w",IF(AND(ASV_Daten!A24="1b",ASV_Daten!E24="w"),"N1w",IF(AND(ASV_Daten!A24="1b",ASV_Daten!E24="m"),"N1m",IF(AND(ASV_Daten!A24="2a",ASV_Daten!E24="m"),"N2m",IF(AND(ASV_Daten!A24="2a",ASV_Daten!E24="w"),"N2w",IF(AND(ASV_Daten!A24="2b",ASV_Daten!E24="w"),"N2w",IF(AND(ASV_Daten!A24="2b",ASV_Daten!E24="m"),"N2m",IF(AND(ASV_Daten!A24="3a",ASV_Daten!E24="m"),"N3m",IF(AND(ASV_Daten!A24="3a",ASV_Daten!E24="w"),"N3w",IF(AND(ASV_Daten!A24="3b",ASV_Daten!E24="w"),"N3w",IF(AND(ASV_Daten!A24="3b",ASV_Daten!E24="m"),"N3m",IF(AND(ASV_Daten!A24="4a",ASV_Daten!E24="m"),"N4m",IF(AND(ASV_Daten!A24="4a",ASV_Daten!E24="w"),"N4w",IF(AND(ASV_Daten!A24="4b",ASV_Daten!E24="m"),"N4m",IF(AND(ASV_Daten!A24="4b",ASV_Daten!E24="w"),"N4w")))))))))))))))) -> FALSE | T30: nix
A31: =IF(ASV_Daten!A30="","",ASV_Daten!A30) -> 5b | B31: =IF(ASV_Daten!B30="","",ASV_Daten!B30) -> Belkner | C31: =IF(ASV_Daten!C30="","",ASV_Daten!C30) -> Jerome | D31: =IF(ASV_Daten!D30="","",ASV_Daten!D30) -> 2010 | E31: =IF(ASV_Daten!E30="","",ASV_Daten!E30) -> m | F31: 5bm | G31: =IF(ASV_Daten!D25="","",$B$1-ASV_Daten!$D25) -> 10 | H31: =G31&ASV_Daten!E25 -> 10m | I31: 500 | J31: 10.48 | K31: 2.35 | L31: 9 | M31: =IF(ASV_Daten!E25="w",(((800/I31)-2.0232)/0.00647),(((1000/I31)-2.158)/0.006)) -> -26.33333333 | N31: =IF(ASV_Daten!$E25="w",(((50/(J31+0.24))-3.648)/0.0066),IF(ASV_Daten!$E25="M",(((50/(J31+0.24))-3.79)/0.0069),0)) -> 126.6926238 | O31: =IF(ASV_Daten!$E25="w",((SQRT(K31)-1.0935)/0.00208),IF(ASV_Daten!$E25="m",((SQRT(K31)-1.15028)/0.00219),0)) -> 174.7447359 | P31: =IF(ASV_Daten!E25="w",((SQRT(L31)-2.0232)/0.00874),IF(ASV_Daten!$E25="M",((SQRT(L31)-2.8)/0.011),0)) -> 18.18181818 | Q31: 320 | R31: T | S31: =IF(AND(ASV_Daten!A25="1a",ASV_Daten!E25="m"),"N1m",IF(AND(ASV_Daten!A25="1a",ASV_Daten!E25="w"),"N1w",IF(AND(ASV_Daten!A25="1b",ASV_Daten!E25="w"),"N1w",IF(AND(ASV_Daten!A25="1b",ASV_Daten!E25="m"),"N1m",IF(AND(ASV_Daten!A25="2a",ASV_Daten!E25="m"),"N2m",IF(AND(ASV_Daten!A25="2a",ASV_Daten!E25="w"),"N2w",IF(AND(ASV_Daten!A25="2b",ASV_Daten!E25="w"),"N2w",IF(AND(ASV_Daten!A25="2b",ASV_Daten!E25="m"),"N2m",IF(AND(ASV_Daten!A25="3a",ASV_Daten!E25="m"),"N3m",IF(AND(ASV_Daten!A25="3a",ASV_Daten!E25="w"),"N3w",IF(AND(ASV_Daten!A25="3b",ASV_Daten!E25="w"),"N3w",IF(AND(ASV_Daten!A25="3b",ASV_Daten!E25="m"),"N3m",IF(AND(ASV_Daten!A25="4a",ASV_Daten!E25="m"),"N4m",IF(AND(ASV_Daten!A25="4a",ASV_Daten!E25="w"),"N4w",IF(AND(ASV_Daten!A25="4b",ASV_Daten!E25="m"),"N4m",IF(AND(ASV_Daten!A25="4b",ASV_Daten!E25="w"),"N4w")))))))))))))))) -> FALSE | T31: nix
A32: =IF(ASV_Daten!A31="","",ASV_Daten!A31) -> 5b | B32: =IF(ASV_Daten!B31="","",ASV_Daten!B31) -> Belkahia | C32: =IF(ASV_Daten!C31="","",ASV_Daten!C31) -> Semi | D32: =IF(ASV_Daten!D31="","",ASV_Daten!D31) -> 2010 | E32: =IF(ASV_Daten!E31="","",ASV_Daten!E31) -> m | F32: 5bm | G32: =IF(ASV_Daten!D26="","",$B$1-ASV_Daten!$D26) -> 10 | H32: =G32&ASV_Daten!E26 -> 10m | I32: 500 | J32: 9.75 | K32: 2.52 | L32: 6 | M32: =IF(ASV_Daten!E26="w",(((800/I32)-2.0232)/0.00647),(((1000/I32)-2.158)/0.006)) -> -26.33333333 | N32: =IF(ASV_Daten!$E26="w",(((50/(J32+0.24))-3.648)/0.0066),IF(ASV_Daten!$E26="M",(((50/(J32+0.24))-3.79)/0.0069),0)) -> 176.0876819 | O32: =IF(ASV_Daten!$E26="w",((SQRT(K32)-1.0935)/0.00208),IF(ASV_Daten!$E26="m",((SQRT(K32)-1.15028)/0.00219),0)) -> 199.6213638 | P32: =IF(ASV_Daten!E26="w",((SQRT(L32)-2.0232)/0.00874),IF(ASV_Daten!$E26="M",((SQRT(L32)-2.8)/0.011),0)) -> -31.86456884 | Q32: 349 | R32: T | S32: =IF(AND(ASV_Daten!A26="1a",ASV_Daten!E26="m"),"N1m",IF(AND(ASV_Daten!A26="1a",ASV_Daten!E26="w"),"N1w",IF(AND(ASV_Daten!A26="1b",ASV_Daten!E26="w"),"N1w",IF(AND(ASV_Daten!A26="1b",ASV_Daten!E26="m"),"N1m",IF(AND(ASV_Daten!A26="2a",ASV_Daten!E26="m"),"N2m",IF(AND(ASV_Daten!A26="2a",ASV_Daten!E26="w"),"N2w",IF(AND(ASV_Daten!A26="2b",ASV_Daten!E26="w"),"N2w",IF(AND(ASV_Daten!A26="2b",ASV_Daten!E26="m"),"N2m",IF(AND(ASV_Daten!A26="3a",ASV_Daten!E26="m"),"N3m",IF(AND(ASV_Daten!A26="3a",ASV_Daten!E26="w"),"N3w",IF(AND(ASV_Daten!A26="3b",ASV_Daten!E26="w"),"N3w",IF(AND(ASV_Daten!A26="3b",ASV_Daten!E26="m"),"N3m",IF(AND(ASV_Daten!A26="4a",ASV_Daten!E26="m"),"N4m",IF(AND(ASV_Daten!A26="4a",ASV_Daten!E26="w"),"N4w",IF(AND(ASV_Daten!A26="4b",ASV_Daten!E26="m"),"N4m",IF(AND(ASV_Daten!A26="4b",ASV_Daten!E26="w"),"N4w")))))))))))))))) -> FALSE | T32: nix
A33: =IF(ASV_Daten!A32="","",ASV_Daten!A32) -> 5b | B33: =IF(ASV_Daten!B32="","",ASV_Daten!B32) -> Belkner | C33: =IF(ASV_Daten!C32="","",ASV_Daten!C32) -> Jerome | D33: =IF(ASV_Daten!D32="","",ASV_Daten!D32) -> 2010 | E33: =IF(ASV_Daten!E32="","",ASV_Daten!E32) -> m | F33: 5bm | G33: =IF(ASV_Daten!D28="","",$B$1-ASV_Daten!$D28) -> 10 | H33: =G33&ASV_Daten!E28 -> 10m | I33: 500 | J33: 9.38 | K33: 2.65 | L33: 7 | M33: =IF(ASV_Daten!E28="w",(((800/I33)-2.0232)/0.00647),(((1000/I33)-2.158)/0.006)) -> -26.33333333 | N33: =IF(ASV_Daten!$E28="w",(((50/(J33+0.24))-3.648)/0.0066),IF(ASV_Daten!$E28="M",(((50/(J33+0.24))-3.79)/0.0069),0)) -> 203.9862605 | O33: =IF(ASV_Daten!$E28="w",((SQRT(K33)-1.0935)/0.00208),IF(ASV_Daten!$E28="m",((SQRT(K33)-1.15028)/0.00219),0)) -> 218.0831322 | P33: =IF(ASV_Daten!E28="w",((SQRT(L33)-2.0232)/0.00874),IF(ASV_Daten!$E28="M",((SQRT(L33)-2.8)/0.011),0)) -> -14.02260809 | Q33: 408 | R33: T | S33: =IF(AND(ASV_Daten!A28="1a",ASV_Daten!E28="m"),"N1m",IF(AND(ASV_Daten!A28="1a",ASV_Daten!E28="w"),"N1w",IF(AND(ASV_Daten!A28="1b",ASV_Daten!E28="w"),"N1w",IF(AND(ASV_Daten!A28="1b",ASV_Daten!E28="m"),"N1m",IF(AND(ASV_Daten!A28="2a",ASV_Daten!E28="m"),"N2m",IF(AND(ASV_Daten!A28="2a",ASV_Daten!E28="w"),"N2w",IF(AND(ASV_Daten!A28="2b",ASV_Daten!E28="w"),"N2w",IF(AND(ASV_Daten!A28="2b",ASV_Daten!E28="m"),"N2m",IF(AND(ASV_Daten!A28="3a",ASV_Daten!E28="m"),"N3m",IF(AND(ASV_Daten!A28="3a",ASV_Daten!E28="w"),"N3w",IF(AND(ASV_Daten!A28="3b",ASV_Daten!E28="w"),"N3w",IF(AND(ASV_Daten!A28="3b",ASV_Daten!E28="m"),"N3m",IF(AND(ASV_Daten!A28="4a",ASV_Daten!E28="m"),"N4m",IF(AND(ASV_Daten!A28="4a",ASV_Daten!E28="w"),"N4w",IF(AND(ASV_Daten!A28="4b",ASV_Daten!E28="m"),"N4m",IF(AND(ASV_Daten!A28="4b",ASV_Daten!E28="w"),"N4w")))))))))))))))) -> FALSE | T33: nix
A34: =IF(ASV_Daten!A33="","",ASV_Daten!A33) -> 5b | B34: =IF(ASV_Daten!B33="","",ASV_Daten!B33) -> Zeppelin | C34: =IF(ASV_Daten!C33="","",ASV_Daten!C33) -> Leni | D34: =IF(ASV_Daten!D33="","",ASV_Daten!D33) -> 2011 | E34: =IF(ASV_Daten!E33="","",ASV_Daten!E33) -> w | F34: 5bw | G34: =IF(ASV_Daten!D29="","",$B$1-ASV_Daten!$D29) -> 10 | H34: =G34&ASV_Daten!E29 -> 10m | I34: 500 | J34: 10.13 | K34: 2.4 | L34: 13 | M34: =IF(ASV_Daten!E29="w",(((800/I34)-2.0232)/0.00647),(((1000/I34)-2.158)/0.006)) -> -26.33333333 | N34: =IF(ASV_Daten!$E29="w",(((50/(J34+0.24))-3.648)/0.0066),IF(ASV_Daten!$E29="M",(((50/(J34+0.24))-3.79)/0.0069),0)) -> 149.5073582 | O34: =IF(ASV_Daten!$E29="w",((SQRT(K34)-1.0935)/0.00208),IF(ASV_Daten!$E29="m",((SQRT(K34)-1.15028)/0.00219),0)) -> 182.1522094 | P34: =IF(ASV_Daten!E29="w",((SQRT(L34)-2.0232)/0.00874),IF(ASV_Daten!$E29="M",((SQRT(L34)-2.8)/0.011),0)) -> 73.23193413 | Q34: 405 | R34: T | S34: =IF(AND(ASV_Daten!A29="1a",ASV_Daten!E29="m"),"N1m",IF(AND(ASV_Daten!A29="1a",ASV_Daten!E29="w"),"N1w",IF(AND(ASV_Daten!A29="1b",ASV_Daten!E29="w"),"N1w",IF(AND(ASV_Daten!A29="1b",ASV_Daten!E29="m"),"N1m",IF(AND(ASV_Daten!A29="2a",ASV_Daten!E29="m"),"N2m",IF(AND(ASV_Daten!A29="2a",ASV_Daten!E29="w"),"N2w",IF(AND(ASV_Daten!A29="2b",ASV_Daten!E29="w"),"N2w",IF(AND(ASV_Daten!A29="2b",ASV_Daten!E29="m"),"N2m",IF(AND(ASV_Daten!A29="3a",ASV_Daten!E29="m"),"N3m",IF(AND(ASV_Daten!A29="3a",ASV_Daten!E29="w"),"N3w",IF(AND(ASV_Daten!A29="3b",ASV_Daten!E29="w"),"N3w",IF(AND(ASV_Daten!A29="3b",ASV_Daten!E29="m"),"N3m",IF(AND(ASV_Daten!A29="4a",ASV_Daten!E29="m"),"N4m",IF(AND(ASV_Daten!A29="4a",ASV_Daten!E29="w"),"N4w",IF(AND(ASV_Daten!A29="4b",ASV_Daten!E29="m"),"N4m",IF(AND(ASV_Daten!A29="4b",ASV_Daten!E29="w"),"N4w")))))))))))))))) -> FALSE | T34: nix
A35: =IF(ASV_Daten!A34="","",ASV_Daten!A34) -> 5b | B35: =IF(ASV_Daten!B34="","",ASV_Daten!B34) -> Kallote | C35: =IF(ASV_Daten!C34="","",ASV_Daten!C34) -> Marus | D35: =IF(ASV_Daten!D34="","",ASV_Daten!D34) -> 2011 | E35: =IF(ASV_Daten!E34="","",ASV_Daten!E34) -> m | F35: 5bm | G35: =IF(ASV_Daten!D32="","",$B$1-ASV_Daten!$D32) -> 11 | H35: =G35&ASV_Daten!E32 -> 11m | I35: 500 | J35: 10.53 | K35: 2.03 | L35: 12.5 | M35: =IF(ASV_Daten!E32="w",(((800/I35)-2.0232)/0.00647),(((1000/I35)-2.158)/0.006)) -> -26.33333333 | N35: =IF(ASV_Daten!$E32="w",(((50/(J35+0.24))-3.648)/0.0066),IF(ASV_Daten!$E32="M",(((50/(J35+0.24))-3.79)/0.0069),0)) -> 123.5544252 | O35: =IF(ASV_Daten!$E32="w",((SQRT(K35)-1.0935)/0.00208),IF(ASV_Daten!$E32="m",((SQRT(K35)-1.15028)/0.00219),0)) -> 125.3427785 | P35: =IF(ASV_Daten!E32="w",((SQRT(L35)-2.0232)/0.00874),IF(ASV_Daten!$E32="M",((SQRT(L35)-2.8)/0.011),0)) -> 66.86671872 | Q35: =ROUND((SUM(M35:P35)-MIN(M35:P35)),0) -> 316 | R35: =IF(H35="7w",VLOOKUP(Q35,weiblich8,2),IF(H35="7m",VLOOKUP(Q35,männlich8,2),IF(H35="8w",VLOOKUP(Q35,weiblich8,2),IF(H35="8m",VLOOKUP(Q35,männlich8,2),IF(H35="9w",VLOOKUP(Q35,weiblich9,2),IF(H35="9m",VLOOKUP(Q35,männlich9,2),IF(H35="10w",VLOOKUP(Q35,weiblich10,2),IF(H35="10m",VLOOKUP(Q35,männlich10,2),IF(H35="11w",VLOOKUP(Q35,weiblich11,2),IF(H35="11m",VLOOKUP(Q35,männlich11,2),IF(H35="12w",VLOOKUP(Q35,weiblich12,2),IF(H35="12m",VLOOKUP(Q35,männlich12,2),"H")))))))))))) -> T | S35: =IF(AND(ASV_Daten!A32="1a",ASV_Daten!E32="m"),"N1m",IF(AND(ASV_Daten!A32="1a",ASV_Daten!E32="w"),"N1w",IF(AND(ASV_Daten!A32="1b",ASV_Daten!E32="w"),"N1w",IF(AND(ASV_Daten!A32="1b",ASV_Daten!E32="m"),"N1m",IF(AND(ASV_Daten!A32="2a",ASV_Daten!E32="m"),"N2m",IF(AND(ASV_Daten!A32="2a",ASV_Daten!E32="w"),"N2w",IF(AND(ASV_Daten!A32="2b",ASV_Daten!E32="w"),"N2w",IF(AND(ASV_Daten!A32="2b",ASV_Daten!E32="m"),"N2m",IF(AND(ASV_Daten!A32="3a",ASV_Daten!E32="m"),"N3m",IF(AND(ASV_Daten!A32="3a",ASV_Daten!E32="w"),"N3w",IF(AND(ASV_Daten!A32="3b",ASV_Daten!E32="w"),"N3w",IF(AND(ASV_Daten!A32="3b",ASV_Daten!E32="m"),"N3m",IF(AND(ASV_Daten!A32="4a",ASV_Daten!E32="m"),"N4m",IF(AND(ASV_Daten!A32="4a",ASV_Daten!E32="w"),"N4w",IF(AND(ASV_Daten!A32="4b",ASV_Daten!E32="m"),"N4m",IF(AND(ASV_Daten!A32="4b",ASV_Daten!E32="w"),"N4w")))))))))))))))) -> FALSE | T35: =IF(S35="n1m",VLOOKUP(Q35,N1m,2),IF(S35="N1w",VLOOKUP(Q35,N1w,2),IF(S35="N2m",VLOOKUP(Q35,n2m,2),IF(S35="N2w",VLOOKUP(Q35,n2w,2),IF(S35="N3w",VLOOKUP(Q35,n3w,2),IF(S35="N3m",VLOOKUP(Q35,n3m,2),IF(S35="N4w",VLOOKUP(Q35,n4w,2),IF(S35="N4m",VLOOKUP(Q35,n4m,2),"nix")))))))) -> nix
A36: =IF(ASV_Daten!A35="","",ASV_Daten!A35) -> 5b | B36: =IF(ASV_Daten!B35="","",ASV_Daten!B35) -> Hund | C36: =IF(ASV_Daten!C35="","",ASV_Daten!C35) -> Kurt | D36: =IF(ASV_Daten!D35="","",ASV_Daten!D35) -> 2010 | E36: =IF(ASV_Daten!E35="","",ASV_Daten!E35) -> m | F36: 5bm | G36: =IF(ASV_Daten!D33="","",$B$1-ASV_Daten!$D33) -> 10 | H36: =G36&ASV_Daten!E33 -> 10w | I36: 500 | J36: 10.97 | K36: 2.36 | L36: 11.5 | M36: =IF(ASV_Daten!E33="w",(((800/I36)-2.0232)/0.00647),(((1000/I36)-2.158)/0.006)) -> -65.40958269 | N36: =IF(ASV_Daten!$E33="w",(((50/(J36+0.24))-3.648)/0.0066),IF(ASV_Daten!$E33="M",(((50/(J36+0.24))-3.79)/0.0069),0)) -> 123.0762577 | O36: =IF(ASV_Daten!$E33="w",((SQRT(K36)-1.0935)/0.00208),IF(ASV_Daten!$E33="m",((SQRT(K36)-1.15028)/0.00219),0)) -> 212.8505527 | P36: =IF(ASV_Daten!E33="w",((SQRT(L36)-2.0232)/0.00874),IF(ASV_Daten!$E33="M",((SQRT(L36)-2.8)/0.011),0)) -> 156.5177336 | Q36: 492 | R36: T | S36: =IF(AND(ASV_Daten!A33="1a",ASV_Daten!E33="m"),"N1m",IF(AND(ASV_Daten!A33="1a",ASV_Daten!E33="w"),"N1w",IF(AND(ASV_Daten!A33="1b",ASV_Daten!E33="w"),"N1w",IF(AND(ASV_Daten!A33="1b",ASV_Daten!E33="m"),"N1m",IF(AND(ASV_Daten!A33="2a",ASV_Daten!E33="m"),"N2m",IF(AND(ASV_Daten!A33="2a",ASV_Daten!E33="w"),"N2w",IF(AND(ASV_Daten!A33="2b",ASV_Daten!E33="w"),"N2w",IF(AND(ASV_Daten!A33="2b",ASV_Daten!E33="m"),"N2m",IF(AND(ASV_Daten!A33="3a",ASV_Daten!E33="m"),"N3m",IF(AND(ASV_Daten!A33="3a",ASV_Daten!E33="w"),"N3w",IF(AND(ASV_Daten!A33="3b",ASV_Daten!E33="w"),"N3w",IF(AND(ASV_Daten!A33="3b",ASV_Daten!E33="m"),"N3m",IF(AND(ASV_Daten!A33="4a",ASV_Daten!E33="m"),"N4m",IF(AND(ASV_Daten!A33="4a",ASV_Daten!E33="w"),"N4w",IF(AND(ASV_Daten!A33="4b",ASV_Daten!E33="m"),"N4m",IF(AND(ASV_Daten!A33="4b",ASV_Daten!E33="w"),"N4w")))))))))))))))) -> FALSE | T36: nix
A37: =IF(ASV_Daten!A36="","",ASV_Daten!A36) -> 5b | B37: =IF(ASV_Daten!B36="","",ASV_Daten!B36) -> Penara | C37: =IF(ASV_Daten!C36="","",ASV_Daten!C36) -> Horst | D37: =IF(ASV_Daten!D36="","",ASV_Daten!D36) -> 2010 | E37: =IF(ASV_Daten!E36="","",ASV_Daten!E36) -> m | F37: 5bm | G37: =IF(ASV_Daten!D36="","",$B$1-ASV_Daten!$D36) -> 11 | H37: =G37&ASV_Daten!E36 -> 11m | I37: 500 | J37: 10.03 | K37: 2 | L37: 14 | M37: =IF(ASV_Daten!E36="w",(((800/I37)-2.0232)/0.00647),(((1000/I37)-2.158)/0.006)) -> -26.33333333 | N37: =IF(ASV_Daten!$E36="w",(((50/(J37+0.24))-3.648)/0.0066),IF(ASV_Daten!$E36="M",(((50/(J37+0.24))-3.79)/0.0069),0)) -> 156.3114743 | O37: =IF(ASV_Daten!$E36="w",((SQRT(K37)-1.0935)/0.00208),IF(ASV_Daten!$E36="m",((SQRT(K37)-1.15028)/0.00219),0)) -> 120.5176084 | P37: =IF(ASV_Daten!E36="w",((SQRT(L37)-2.0232)/0.00874),IF(ASV_Daten!$E36="M",((SQRT(L37)-2.8)/0.011),0)) -> 85.60521698 | Q37: 362 | R37: T | S37: =IF(AND(ASV_Daten!A36="1a",ASV_Daten!E36="m"),"N1m",IF(AND(ASV_Daten!A36="1a",ASV_Daten!E36="w"),"N1w",IF(AND(ASV_Daten!A36="1b",ASV_Daten!E36="w"),"N1w",IF(AND(ASV_Daten!A36="1b",ASV_Daten!E36="m"),"N1m",IF(AND(ASV_Daten!A36="2a",ASV_Daten!E36="m"),"N2m",IF(AND(ASV_Daten!A36="2a",ASV_Daten!E36="w"),"N2w",IF(AND(ASV_Daten!A36="2b",ASV_Daten!E36="w"),"N2w",IF(AND(ASV_Daten!A36="2b",ASV_Daten!E36="m"),"N2m",IF(AND(ASV_Daten!A36="3a",ASV_Daten!E36="m"),"N3m",IF(AND(ASV_Daten!A36="3a",ASV_Daten!E36="w"),"N3w",IF(AND(ASV_Daten!A36="3b",ASV_Daten!E36="w"),"N3w",IF(AND(ASV_Daten!A36="3b",ASV_Daten!E36="m"),"N3m",IF(AND(ASV_Daten!A36="4a",ASV_Daten!E36="m"),"N4m",IF(AND(ASV_Daten!A36="4a",ASV_Daten!E36="w"),"N4w",IF(AND(ASV_Daten!A36="4b",ASV_Daten!E36="m"),"N4m",IF(AND(ASV_Daten!A36="4b",ASV_Daten!E36="w"),"N4w")))))))))))))))) -> FALSE | T37: nix
A38: =IF(ASV_Daten!A37="","",ASV_Daten!A37) -> 5b | B38: =IF(ASV_Daten!B37="","",ASV_Daten!B37) -> Rieser | C38: =IF(ASV_Daten!C37="","",ASV_Daten!C37) -> Jennifer | D38: =IF(ASV_Daten!D37="","",ASV_Daten!D37) -> 2010 | E38: =IF(ASV_Daten!E37="","",ASV_Daten!E37) -> w | F38: 5bw | G38: =IF(ASV_Daten!D38="","",$B$1-ASV_Daten!$D38) -> 11 | H38: =G38&ASV_Daten!E38 -> 11w | I38: 500 | J38: 9.62 | K38: 2.15 | L38: 11.5 | M38: =IF(ASV_Daten!E38="w",(((800/I38)-2.0232)/0.00647),(((1000/I38)-2.158)/0.006)) -> -65.40958269 | N38: =IF(ASV_Daten!$E38="w",(((50/(J38+0.24))-3.648)/0.0066),IF(ASV_Daten!$E38="M",(((50/(J38+0.24))-3.79)/0.0069),0)) -> 215.6051386 | O38: =IF(ASV_Daten!$E38="w",((SQRT(K38)-1.0935)/0.00208),IF(ASV_Daten!$E38="m",((SQRT(K38)-1.15028)/0.00219),0)) -> 179.2249182 | P38: =IF(ASV_Daten!E38="w",((SQRT(L38)-2.0232)/0.00874),IF(ASV_Daten!$E38="M",((SQRT(L38)-2.8)/0.011),0)) -> 156.5177336 | Q38: 551 | R38: T | S38: =IF(AND(ASV_Daten!A38="1a",ASV_Daten!E38="m"),"N1m",IF(AND(ASV_Daten!A38="1a",ASV_Daten!E38="w"),"N1w",IF(AND(ASV_Daten!A38="1b",ASV_Daten!E38="w"),"N1w",IF(AND(ASV_Daten!A38="1b",ASV_Daten!E38="m"),"N1m",IF(AND(ASV_Daten!A38="2a",ASV_Daten!E38="m"),"N2m",IF(AND(ASV_Daten!A38="2a",ASV_Daten!E38="w"),"N2w",IF(AND(ASV_Daten!A38="2b",ASV_Daten!E38="w"),"N2w",IF(AND(ASV_Daten!A38="2b",ASV_Daten!E38="m"),"N2m",IF(AND(ASV_Daten!A38="3a",ASV_Daten!E38="m"),"N3m",IF(AND(ASV_Daten!A38="3a",ASV_Daten!E38="w"),"N3w",IF(AND(ASV_Daten!A38="3b",ASV_Daten!E38="w"),"N3w",IF(AND(ASV_Daten!A38="3b",ASV_Daten!E38="m"),"N3m",IF(AND(ASV_Daten!A38="4a",ASV_Daten!E38="m"),"N4m",IF(AND(ASV_Daten!A38="4a",ASV_Daten!E38="w"),"N4w",IF(AND(ASV_Daten!A38="4b",ASV_Daten!E38="m"),"N4m",IF(AND(ASV_Daten!A38="4b",ASV_Daten!E38="w"),"N4w")))))))))))))))) -> FALSE | T38: nix
A39: =IF(ASV_Daten!A38="","",ASV_Daten!A38) -> 5b | B39: =IF(ASV_Daten!B38="","",ASV_Daten!B38) -> Schoning | C39: =IF(ASV_Daten!C38="","",ASV_Daten!C38) -> Daniela | D39: =IF(ASV_Daten!D38="","",ASV_Daten!D38) -> 2010 | E39: =IF(ASV_Daten!E38="","",ASV_Daten!E38) -> w | F39: 5bw | G39: =IF(ASV_Daten!D39="","",$B$1-ASV_Daten!$D39) -> 11 | H39: =G39&ASV_Daten!E39 -> 11w | I39: 500 | J39: 11.56 | K39: 2.1 | L39: 10 | M39: =IF(ASV_Daten!E39="w",(((800/I39)-2.0232)/0.00647),(((1000/I39)-2.158)/0.006)) -> -65.40958269 | N39: =IF(ASV_Daten!$E39="w",(((50/(J39+0.24))-3.648)/0.0066),IF(ASV_Daten!$E39="M",(((50/(J39+0.24))-3.79)/0.0069),0)) -> 89.28608115 | O39: =IF(ASV_Daten!$E39="w",((SQRT(K39)-1.0935)/0.00208),IF(ASV_Daten!$E39="m",((SQRT(K39)-1.15028)/0.00219),0)) -> 170.9796513 | P39: =IF(ASV_Daten!E39="w",((SQRT(L39)-2.0232)/0.00874),IF(ASV_Daten!$E39="M",((SQRT(L39)-2.8)/0.011),0)) -> 130.3292517 | Q39: 391 | R39: T | S39: =IF(AND(ASV_Daten!A39="1a",ASV_Daten!E39="m"),"N1m",IF(AND(ASV_Daten!A39="1a",ASV_Daten!E39="w"),"N1w",IF(AND(ASV_Daten!A39="1b",ASV_Daten!E39="w"),"N1w",IF(AND(ASV_Daten!A39="1b",ASV_Daten!E39="m"),"N1m",IF(AND(ASV_Daten!A39="2a",ASV_Daten!E39="m"),"N2m",IF(AND(ASV_Daten!A39="2a",ASV_Daten!E39="w"),"N2w",IF(AND(ASV_Daten!A39="2b",ASV_Daten!E39="w"),"N2w",IF(AND(ASV_Daten!A39="2b",ASV_Daten!E39="m"),"N2m",IF(AND(ASV_Daten!A39="3a",ASV_Daten!E39="m"),"N3m",IF(AND(ASV_Daten!A39="3a",ASV_Daten!E39="w"),"N3w",IF(AND(ASV_Daten!A39="3b",ASV_Daten!E39="w"),"N3w",IF(AND(ASV_Daten!A39="3b",ASV_Daten!E39="m"),"N3m",IF(AND(ASV_Daten!A39="4a",ASV_Daten!E39="m"),"N4m",IF(AND(ASV_Daten!A39="4a",ASV_Daten!E39="w"),"N4w",IF(AND(ASV_Daten!A39="4b",ASV_Daten!E39="m"),"N4m",IF(AND(ASV_Daten!A39="4b",ASV_Daten!E39="w"),"N4w")))))))))))))))) -> FALSE | T39: nix
A40: =IF(ASV_Daten!A39="","",ASV_Daten!A39) -> 5b | B40: =IF(ASV_Daten!B39="","",ASV_Daten!B39) -> Grimmig | C40: =IF(ASV_Daten!C39="","",ASV_Daten!C39) -> Karola | D40: =IF(ASV_Daten!D39="","",ASV_Daten!D39) -> 2010 | E40: =IF(ASV_Daten!E39="","",ASV_Daten!E39) -> w | F40: 5bw | G40: =IF(ASV_Daten!D40="","",$B$1-ASV_Daten!$D40) -> 11 | H40: =G40&ASV_Daten!E40 -> 11w | I40: 500 | J40: 10.06 | K40: 2.46 | L40: 14.5 | M40: =IF(ASV_Daten!E40="w",(((800/I40)-2.0232)/0.00647),(((1000/I40)-2.158)/0.006)) -> -65.40958269 | N40: =IF(ASV_Daten!$E40="w",(((50/(J40+0.24))-3.648)/0.0066),IF(ASV_Daten!$E40="M",(((50/(J40+0.24))-3.79)/0.0069),0)) -> 182.7831715 | O40: =IF(ASV_Daten!$E40="w",((SQRT(K40)-1.0935)/0.00208),IF(ASV_Daten!$E40="m",((SQRT(K40)-1.15028)/0.00219),0)) -> 228.3359203 | P40: =IF(ASV_Daten!E40="w",((SQRT(L40)-2.0232)/0.00874),IF(ASV_Daten!$E40="M",((SQRT(L40)-2.8)/0.011),0)) -> 204.1975461 | Q40: 615 | R40: T | S40: =IF(AND(ASV_Daten!A40="1a",ASV_Daten!E40="m"),"N1m",IF(AND(ASV_Daten!A40="1a",ASV_Daten!E40="w"),"N1w",IF(AND(ASV_Daten!A40="1b",ASV_Daten!E40="w"),"N1w",IF(AND(ASV_Daten!A40="1b",ASV_Daten!E40="m"),"N1m",IF(AND(ASV_Daten!A40="2a",ASV_Daten!E40="m"),"N2m",IF(AND(ASV_Daten!A40="2a",ASV_Daten!E40="w"),"N2w",IF(AND(ASV_Daten!A40="2b",ASV_Daten!E40="w"),"N2w",IF(AND(ASV_Daten!A40="2b",ASV_Daten!E40="m"),"N2m",IF(AND(ASV_Daten!A40="3a",ASV_Daten!E40="m"),"N3m",IF(AND(ASV_Daten!A40="3a",ASV_Daten!E40="w"),"N3w",IF(AND(ASV_Daten!A40="3b",ASV_Daten!E40="w"),"N3w",IF(AND(ASV_Daten!A40="3b",ASV_Daten!E40="m"),"N3m",IF(AND(ASV_Daten!A40="4a",ASV_Daten!E40="m"),"N4m",IF(AND(ASV_Daten!A40="4a",ASV_Daten!E40="w"),"N4w",IF(AND(ASV_Daten!A40="4b",ASV_Daten!E40="m"),"N4m",IF(AND(ASV_Daten!A40="4b",ASV_Daten!E40="w"),"N4w")))))))))))))))) -> FALSE | T40: nix
A41: =IF(ASV_Daten!A40="","",ASV_Daten!A40) -> 5b | B41: =IF(ASV_Daten!B40="","",ASV_Daten!B40) -> Jordu | C41: =IF(ASV_Daten!C40="","",ASV_Daten!C40) -> Jaja | D41: =IF(ASV_Daten!D40="","",ASV_Daten!D40) -> 2010 | E41: =IF(ASV_Daten!E40="","",ASV_Daten!E40) -> w | F41: 5bw | G41: =IF(ASV_Daten!D41="","",$B$1-ASV_Daten!$D41) -> 10 | H41: =G41&ASV_Daten!E41 -> 10w | I41: 500 | J41: 10.87 | K41: 2.3 | L41: 9 | M41: =IF(ASV_Daten!E41="w",(((800/I41)-2.0232)/0.00647),(((1000/I41)-2.158)/0.006)) -> -65.40958269 | N41: =IF(ASV_Daten!$E41="w",(((50/(J41+0.24))-3.648)/0.0066),IF(ASV_Daten!$E41="M",(((50/(J41+0.24))-3.79)/0.0069),0)) -> 129.1590977 | O41: =IF(ASV_Daten!$E41="w",((SQRT(K41)-1.0935)/0.00208),IF(ASV_Daten!$E41="m",((SQRT(K41)-1.15028)/0.00219),0)) -> 203.401485 | P41: =IF(ASV_Daten!E41="w",((SQRT(L41)-2.0232)/0.00874),IF(ASV_Daten!$E41="M",((SQRT(L41)-2.8)/0.011),0)) -> 111.7620137 | Q41: 444 | R41: T | S41: =IF(AND(ASV_Daten!A41="1a",ASV_Daten!E41="m"),"N1m",IF(AND(ASV_Daten!A41="1a",ASV_Daten!E41="w"),"N1w",IF(AND(ASV_Daten!A41="1b",ASV_Daten!E41="w"),"N1w",IF(AND(ASV_Daten!A41="1b",ASV_Daten!E41="m"),"N1m",IF(AND(ASV_Daten!A41="2a",ASV_Daten!E41="m"),"N2m",IF(AND(ASV_Daten!A41="2a",ASV_Daten!E41="w"),"N2w",IF(AND(ASV_Daten!A41="2b",ASV_Daten!E41="w"),"N2w",IF(AND(ASV_Daten!A41="2b",ASV_Daten!E41="m"),"N2m",IF(AND(ASV_Daten!A41="3a",ASV_Daten!E41="m"),"N3m",IF(AND(ASV_Daten!A41="3a",ASV_Daten!E41="w"),"N3w",IF(AND(ASV_Daten!A41="3b",ASV_Daten!E41="w"),"N3w",IF(AND(ASV_Daten!A41="3b",ASV_Daten!E41="m"),"N3m",IF(AND(ASV_Daten!A41="4a",ASV_Daten!E41="m"),"N4m",IF(AND(ASV_Daten!A41="4a",ASV_Daten!E41="w"),"N4w",IF(AND(ASV_Daten!A41="4b",ASV_Daten!E41="m"),"N4m",IF(AND(ASV_Daten!A41="4b",ASV_Daten!E41="w"),"N4w")))))))))))))))) -> FALSE | T41: nix
A42: =IF(ASV_Daten!A41="","",ASV_Daten!A41) -> 5b | B42: =IF(ASV_Daten!B41="","",ASV_Daten!B41) -> Erdmann | C42: =IF(ASV_Daten!C41="","",ASV_Daten!C41) -> Denise | D42: =IF(ASV_Daten!D41="","",ASV_Daten!D41) -> 2011 | E42: =IF(ASV_Daten!E41="","",ASV_Daten!E41) -> w | F42: 5bw | G42: =IF(ASV_Daten!D42="","",$B$1-ASV_Daten!$D42) -> 11 | H42: =G42&ASV_Daten!E42 -> 11w | I42: 500 | J42: 10.69 | K42: 2.5 | L42: 7 | M42: =IF(ASV_Daten!E42="w",(((800/I42)-2.0232)/0.00647),(((1000/I42)-2.158)/0.006)) -> -65.40958269 | N42: =IF(ASV_Daten!$E42="w",(((50/(J42+0.24))-3.648)/0.0066),IF(ASV_Daten!$E42="M",(((50/(J42+0.24))-3.79)/0.0069),0)) -> 140.3886994 | O42: =IF(ASV_Daten!$E42="w",((SQRT(K42)-1.0935)/0.00208),IF(ASV_Daten!$E42="m",((SQRT(K42)-1.15028)/0.00219),0)) -> 234.4417452 | P42: =IF(ASV_Daten!E42="w",((SQRT(L42)-2.0232)/0.00874),IF(ASV_Daten!$E42="M",((SQRT(L42)-2.8)/0.011),0)) -> 71.23012712 | Q42: 446 | R42: T | S42: =IF(AND(ASV_Daten!A42="1a",ASV_Daten!E42="m"),"N1m",IF(AND(ASV_Daten!A42="1a",ASV_Daten!E42="w"),"N1w",IF(AND(ASV_Daten!A42="1b",ASV_Daten!E42="w"),"N1w",IF(AND(ASV_Daten!A42="1b",ASV_Daten!E42="m"),"N1m",IF(AND(ASV_Daten!A42="2a",ASV_Daten!E42="m"),"N2m",IF(AND(ASV_Daten!A42="2a",ASV_Daten!E42="w"),"N2w",IF(AND(ASV_Daten!A42="2b",ASV_Daten!E42="w"),"N2w",IF(AND(ASV_Daten!A42="2b",ASV_Daten!E42="m"),"N2m",IF(AND(ASV_Daten!A42="3a",ASV_Daten!E42="m"),"N3m",IF(AND(ASV_Daten!A42="3a",ASV_Daten!E42="w"),"N3w",IF(AND(ASV_Daten!A42="3b",ASV_Daten!E42="w"),"N3w",IF(AND(ASV_Daten!A42="3b",ASV_Daten!E42="m"),"N3m",IF(AND(ASV_Daten!A42="4a",ASV_Daten!E42="m"),"N4m",IF(AND(ASV_Daten!A42="4a",ASV_Daten!E42="w"),"N4w",IF(AND(ASV_Daten!A42="4b",ASV_Daten!E42="m"),"N4m",IF(AND(ASV_Daten!A42="4b",ASV_Daten!E42="w"),"N4w")))))))))))))))) -> FALSE | T42: nix
A43: =IF(ASV_Daten!A42="","",ASV_Daten!A42) -> 5b | B43: =IF(ASV_Daten!B42="","",ASV_Daten!B42) -> Greilinger | C43: =IF(ASV_Daten!C42="","",ASV_Daten!C42) -> Fabienne | D43: =IF(ASV_Daten!D42="","",ASV_Daten!D42) -> 2010 | E43: =IF(ASV_Daten!E42="","",ASV_Daten!E42) -> w | F43: 5bw | G43: =IF(ASV_Daten!D43="","",$B$1-ASV_Daten!$D43) -> 11 | H43: =G43&ASV_Daten!E43 -> 11m | I43: 500 | J43: 10.22 | K43: 2.5 | L43: 6 | M43: =IF(ASV_Daten!E43="w",(((800/I43)-2.0232)/0.00647),(((1000/I43)-2.158)/0.006)) -> -26.33333333 | N43: =IF(ASV_Daten!$E43="w",(((50/(J43+0.24))-3.648)/0.0066),IF(ASV_Daten!$E43="M",(((50/(J43+0.24))-3.79)/0.0069),0)) -> 143.4948874 | O43: =IF(ASV_Daten!$E43="w",((SQRT(K43)-1.0935)/0.00208),IF(ASV_Daten!$E43="m",((SQRT(K43)-1.15028)/0.00219),0)) -> 196.7391918 | P43: =IF(ASV_Daten!E43="w",((SQRT(L43)-2.0232)/0.00874),IF(ASV_Daten!$E43="M",((SQRT(L43)-2.8)/0.011),0)) -> -31.86456884 | Q43: 314 | R43: T | S43: =IF(AND(ASV_Daten!A43="1a",ASV_Daten!E43="m"),"N1m",IF(AND(ASV_Daten!A43="1a",ASV_Daten!E43="w"),"N1w",IF(AND(ASV_Daten!A43="1b",ASV_Daten!E43="w"),"N1w",IF(AND(ASV_Daten!A43="1b",ASV_Daten!E43="m"),"N1m",IF(AND(ASV_Daten!A43="2a",ASV_Daten!E43="m"),"N2m",IF(AND(ASV_Daten!A43="2a",ASV_Daten!E43="w"),"N2w",IF(AND(ASV_Daten!A43="2b",ASV_Daten!E43="w"),"N2w",IF(AND(ASV_Daten!A43="2b",ASV_Daten!E43="m"),"N2m",IF(AND(ASV_Daten!A43="3a",ASV_Daten!E43="m"),"N3m",IF(AND(ASV_Daten!A43="3a",ASV_Daten!E43="w"),"N3w",IF(AND(ASV_Daten!A43="3b",ASV_Daten!E43="w"),"N3w",IF(AND(ASV_Daten!A43="3b",ASV_Daten!E43="m"),"N3m",IF(AND(ASV_Daten!A43="4a",ASV_Daten!E43="m"),"N4m",IF(AND(ASV_Daten!A43="4a",ASV_Daten!E43="w"),"N4w",IF(AND(ASV_Daten!A43="4b",ASV_Daten!E43="m"),"N4m",IF(AND(ASV_Daten!A43="4b",ASV_Daten!E43="w"),"N4w")))))))))))))))) -> FALSE | T43: nix
A44: =IF(ASV_Daten!A43="","",ASV_Daten!A43) -> 5b | B44: =IF(ASV_Daten!B43="","",ASV_Daten!B43) -> Hund | C44: =IF(ASV_Daten!C43="","",ASV_Daten!C43) -> Kurt | D44: =IF(ASV_Daten!D43="","",ASV_Daten!D43) -> 2010 | E44: =IF(ASV_Daten!E43="","",ASV_Daten!E43) -> m | F44: 5bm | G44: =IF(ASV_Daten!D46="","",$B$1-ASV_Daten!$D46) -> 11 | H44: =G44&ASV_Daten!E46 -> 11w | I44: 500 | J44: 9.78 | K44: 2.2 | L44: 8.5 | M44: =IF(ASV_Daten!E46="w",(((800/I44)-2.0232)/0.00647),(((1000/I44)-2.158)/0.006)) -> -65.40958269 | N44: =IF(ASV_Daten!$E46="w",(((50/(J44+0.24))-3.648)/0.0066),IF(ASV_Daten!$E46="M",(((50/(J44+0.24))-3.79)/0.0069),0)) -> 203.3363576 | O44: =IF(ASV_Daten!$E46="w",((SQRT(K44)-1.0935)/0.00208),IF(ASV_Daten!$E46="m",((SQRT(K44)-1.15028)/0.00219),0)) -> 187.3748545 | P44: =IF(ASV_Daten!E46="w",((SQRT(L44)-2.0232)/0.00874),IF(ASV_Daten!$E46="M",((SQRT(L44)-2.8)/0.011),0)) -> 102.0910695 | Q44: 493 | R44: T | S44: =IF(AND(ASV_Daten!A46="1a",ASV_Daten!E46="m"),"N1m",IF(AND(ASV_Daten!A46="1a",ASV_Daten!E46="w"),"N1w",IF(AND(ASV_Daten!A46="1b",ASV_Daten!E46="w"),"N1w",IF(AND(ASV_Daten!A46="1b",ASV_Daten!E46="m"),"N1m",IF(AND(ASV_Daten!A46="2a",ASV_Daten!E46="m"),"N2m",IF(AND(ASV_Daten!A46="2a",ASV_Daten!E46="w"),"N2w",IF(AND(ASV_Daten!A46="2b",ASV_Daten!E46="w"),"N2w",IF(AND(ASV_Daten!A46="2b",ASV_Daten!E46="m"),"N2m",IF(AND(ASV_Daten!A46="3a",ASV_Daten!E46="m"),"N3m",IF(AND(ASV_Daten!A46="3a",ASV_Daten!E46="w"),"N3w",IF(AND(ASV_Daten!A46="3b",ASV_Daten!E46="w"),"N3w",IF(AND(ASV_Daten!A46="3b",ASV_Daten!E46="m"),"N3m",IF(AND(ASV_Daten!A46="4a",ASV_Daten!E46="m"),"N4m",IF(AND(ASV_Daten!A46="4a",ASV_Daten!E46="w"),"N4w",IF(AND(ASV_Daten!A46="4b",ASV_Daten!E46="m"),"N4m",IF(AND(ASV_Daten!A46="4b",ASV_Daten!E46="w"),"N4w")))))))))))))))) -> FALSE | T44: nix
A45: =IF(ASV_Daten!A44="","",ASV_Daten!A44) -> 5b | B45: =IF(ASV_Daten!B44="","",ASV_Daten!B44) -> Penara | C45: =IF(ASV_Daten!C44="","",ASV_Daten!C44) -> Horst | D45: =IF(ASV_Daten!D44="","",ASV_Daten!D44) -> 2010 | E45: =IF(ASV_Daten!E44="","",ASV_Daten!E44) -> m | F45: 5bm | G45: =IF(ASV_Daten!D47="","",$B$1-ASV_Daten!$D47) -> 11 | H45: =G45&ASV_Daten!E47 -> 11w | I45: 500 | J45: 9.65 | K45: 2.5 | L45: 16.5 | M45: =IF(ASV_Daten!E47="w",(((800/I45)-2.0232)/0.00647),(((1000/I45)-2.158)/0.006)) -> -65.40958269 | N45: =IF(ASV_Daten!$E47="w",(((50/(J45+0.24))-3.648)/0.0066),IF(ASV_Daten!$E47="M",(((50/(J45+0.24))-3.79)/0.0069),0)) -> 213.2745044 | O45: =IF(ASV_Daten!$E47="w",((SQRT(K45)-1.0935)/0.00208),IF(ASV_Daten!$E47="m",((SQRT(K45)-1.15028)/0.00219),0)) -> 234.4417452 | P45: =IF(ASV_Daten!E47="w",((SQRT(L45)-2.0232)/0.00874),IF(ASV_Daten!$E47="M",((SQRT(L45)-2.8)/0.011),0)) -> 233.2745083 | Q45: 681 | R45: T | S45: =IF(AND(ASV_Daten!A47="1a",ASV_Daten!E47="m"),"N1m",IF(AND(ASV_Daten!A47="1a",ASV_Daten!E47="w"),"N1w",IF(AND(ASV_Daten!A47="1b",ASV_Daten!E47="w"),"N1w",IF(AND(ASV_Daten!A47="1b",ASV_Daten!E47="m"),"N1m",IF(AND(ASV_Daten!A47="2a",ASV_Daten!E47="m"),"N2m",IF(AND(ASV_Daten!A47="2a",ASV_Daten!E47="w"),"N2w",IF(AND(ASV_Daten!A47="2b",ASV_Daten!E47="w"),"N2w",IF(AND(ASV_Daten!A47="2b",ASV_Daten!E47="m"),"N2m",IF(AND(ASV_Daten!A47="3a",ASV_Daten!E47="m"),"N3m",IF(AND(ASV_Daten!A47="3a",ASV_Daten!E47="w"),"N3w",IF(AND(ASV_Daten!A47="3b",ASV_Daten!E47="w"),"N3w",IF(AND(ASV_Daten!A47="3b",ASV_Daten!E47="m"),"N3m",IF(AND(ASV_Daten!A47="4a",ASV_Daten!E47="m"),"N4m",IF(AND(ASV_Daten!A47="4a",ASV_Daten!E47="w"),"N4w",IF(AND(ASV_Daten!A47="4b",ASV_Daten!E47="m"),"N4m",IF(AND(ASV_Daten!A47="4b",ASV_Daten!E47="w"),"N4w")))))))))))))))) -> FALSE | T45: nix
A46: =IF(ASV_Daten!A45="","",ASV_Daten!A45) -> 5b | B46: =IF(ASV_Daten!B45="","",ASV_Daten!B45) -> Rieser | C46: =IF(ASV_Daten!C45="","",ASV_Daten!C45) -> Jennifer | D46: =IF(ASV_Daten!D45="","",ASV_Daten!D45) -> 2010 | E46: =IF(ASV_Daten!E45="","",ASV_Daten!E45) -> w | F46: 5bw | G46: =IF(ASV_Daten!D48="","",$B$1-ASV_Daten!$D48) -> 11 | H46: =G46&ASV_Daten!E48 -> 11w | I46: 500 | J46: 9.64 | K46: 2.65 | L46: 15.5 | M46: =IF(ASV_Daten!E48="w",(((800/I46)-2.0232)/0.00647),(((1000/I46)-2.158)/0.006)) -> -65.40958269 | N46: =IF(ASV_Daten!$E48="w",(((50/(J46+0.24))-3.648)/0.0066),IF(ASV_Daten!$E48="M",(((50/(J46+0.24))-3.79)/0.0069),0)) -> 214.0498098 | O46: =IF(ASV_Daten!$E48="w",((SQRT(K46)-1.0935)/0.00208),IF(ASV_Daten!$E48="m",((SQRT(K46)-1.15028)/0.00219),0)) -> 256.9144517 | P46: =IF(ASV_Daten!E48="w",((SQRT(L46)-2.0232)/0.00874),IF(ASV_Daten!$E48="M",((SQRT(L46)-2.8)/0.011),0)) -> 218.9707022 | Q46: 690 | R46: T | S46: =IF(AND(ASV_Daten!A48="1a",ASV_Daten!E48="m"),"N1m",IF(AND(ASV_Daten!A48="1a",ASV_Daten!E48="w"),"N1w",IF(AND(ASV_Daten!A48="1b",ASV_Daten!E48="w"),"N1w",IF(AND(ASV_Daten!A48="1b",ASV_Daten!E48="m"),"N1m",IF(AND(ASV_Daten!A48="2a",ASV_Daten!E48="m"),"N2m",IF(AND(ASV_Daten!A48="2a",ASV_Daten!E48="w"),"N2w",IF(AND(ASV_Daten!A48="2b",ASV_Daten!E48="w"),"N2w",IF(AND(ASV_Daten!A48="2b",ASV_Daten!E48="m"),"N2m",IF(AND(ASV_Daten!A48="3a",ASV_Daten!E48="m"),"N3m",IF(AND(ASV_Daten!A48="3a",ASV_Daten!E48="w"),"N3w",IF(AND(ASV_Daten!A48="3b",ASV_Daten!E48="w"),"N3w",IF(AND(ASV_Daten!A48="3b",ASV_Daten!E48="m"),"N3m",IF(AND(ASV_Daten!A48="4a",ASV_Daten!E48="m"),"N4m",IF(AND(ASV_Daten!A48="4a",ASV_Daten!E48="w"),"N4w",IF(AND(ASV_Daten!A48="4b",ASV_Daten!E48="m"),"N4m",IF(AND(ASV_Daten!A48="4b",ASV_Daten!E48="w"),"N4w")))))))))))))))) -> FALSE | T46: nix
A47: =IF(ASV_Daten!A46="","",ASV_Daten!A46) -> 5b | B47: =IF(ASV_Daten!B46="","",ASV_Daten!B46) -> Schoning | C47: =IF(ASV_Daten!C46="","",ASV_Daten!C46) -> Daniela | D47: =IF(ASV_Daten!D46="","",ASV_Daten!D46) -> 2010 | E47: =IF(ASV_Daten!E46="","",ASV_Daten!E46) -> w | F47: 5bw | G47: =IF(ASV_Daten!D51="","",$B$1-ASV_Daten!$D51) -> 11 | H47: =G47&ASV_Daten!E51 -> 11m | I47: 500 | J47: 9.97 | K47: 2.56 | L47: 8 | M47: =IF(ASV_Daten!E51="w",(((800/I47)-2.0232)/0.00647),(((1000/I47)-2.158)/0.006)) -> -26.33333333 | N47: =IF(ASV_Daten!$E51="w",(((50/(J47+0.24))-3.648)/0.0066),IF(ASV_Daten!$E51="M",(((50/(J47+0.24))-3.79)/0.0069),0)) -> 160.4579199 | O47: =IF(ASV_Daten!$E51="w",((SQRT(K47)-1.0935)/0.00208),IF(ASV_Daten!$E51="m",((SQRT(K47)-1.15028)/0.00219),0)) -> 205.3515982 | P47: =IF(ASV_Daten!E51="w",((SQRT(L47)-2.0232)/0.00874),IF(ASV_Daten!$E51="M",((SQRT(L47)-2.8)/0.011),0)) -> 2.584284068 | Q47: 368 | R47: T | S47: =IF(AND(ASV_Daten!A51="1a",ASV_Daten!E51="m"),"N1m",IF(AND(ASV_Daten!A51="1a",ASV_Daten!E51="w"),"N1w",IF(AND(ASV_Daten!A51="1b",ASV_Daten!E51="w"),"N1w",IF(AND(ASV_Daten!A51="1b",ASV_Daten!E51="m"),"N1m",IF(AND(ASV_Daten!A51="2a",ASV_Daten!E51="m"),"N2m",IF(AND(ASV_Daten!A51="2a",ASV_Daten!E51="w"),"N2w",IF(AND(ASV_Daten!A51="2b",ASV_Daten!E51="w"),"N2w",IF(AND(ASV_Daten!A51="2b",ASV_Daten!E51="m"),"N2m",IF(AND(ASV_Daten!A51="3a",ASV_Daten!E51="m"),"N3m",IF(AND(ASV_Daten!A51="3a",ASV_Daten!E51="w"),"N3w",IF(AND(ASV_Daten!A51="3b",ASV_Daten!E51="w"),"N3w",IF(AND(ASV_Daten!A51="3b",ASV_Daten!E51="m"),"N3m",IF(AND(ASV_Daten!A51="4a",ASV_Daten!E51="m"),"N4m",IF(AND(ASV_Daten!A51="4a",ASV_Daten!E51="w"),"N4w",IF(AND(ASV_Daten!A51="4b",ASV_Daten!E51="m"),"N4m",IF(AND(ASV_Daten!A51="4b",ASV_Daten!E51="w"),"N4w")))))))))))))))) -> FALSE | T47: nix
A48: =IF(ASV_Daten!A47="","",ASV_Daten!A47) -> 5b | B48: =IF(ASV_Daten!B47="","",ASV_Daten!B47) -> Grimmig | C48: =IF(ASV_Daten!C47="","",ASV_Daten!C47) -> Karola | D48: =IF(ASV_Daten!D47="","",ASV_Daten!D47) -> 2010 | E48: =IF(ASV_Daten!E47="","",ASV_Daten!E47) -> w | F48: 5bw | G48: =IF(ASV_Daten!D53="","",$B$1-ASV_Daten!$D53) -> 11 | H48: =G48&ASV_Daten!E53 -> 11w | I48: 500 | J48: 10.28 | K48: 2.33 | L48: 12 | M48: =IF(ASV_Daten!E53="w",(((800/I48)-2.0232)/0.00647),(((1000/I48)-2.158)/0.006)) -> -65.40958269 | N48: =IF(ASV_Daten!$E53="w",(((50/(J48+0.24))-3.648)/0.0066),IF(ASV_Daten!$E53="M",(((50/(J48+0.24))-3.79)/0.0069),0)) -> 167.4017744 | O48: =IF(ASV_Daten!$E53="w",((SQRT(K48)-1.0935)/0.00208),IF(ASV_Daten!$E53="m",((SQRT(K48)-1.15028)/0.00219),0)) -> 208.141227 | P48: =IF(ASV_Daten!E53="w",((SQRT(L48)-2.0232)/0.00874),IF(ASV_Daten!$E53="M",((SQRT(L48)-2.8)/0.011),0)) -> 164.862885 | Q48: 540 | R48: T | S48: =IF(AND(ASV_Daten!A53="1a",ASV_Daten!E53="m"),"N1m",IF(AND(ASV_Daten!A53="1a",ASV_Daten!E53="w"),"N1w",IF(AND(ASV_Daten!A53="1b",ASV_Daten!E53="w"),"N1w",IF(AND(ASV_Daten!A53="1b",ASV_Daten!E53="m"),"N1m",IF(AND(ASV_Daten!A53="2a",ASV_Daten!E53="m"),"N2m",IF(AND(ASV_Daten!A53="2a",ASV_Daten!E53="w"),"N2w",IF(AND(ASV_Daten!A53="2b",ASV_Daten!E53="w"),"N2w",IF(AND(ASV_Daten!A53="2b",ASV_Daten!E53="m"),"N2m",IF(AND(ASV_Daten!A53="3a",ASV_Daten!E53="m"),"N3m",IF(AND(ASV_Daten!A53="3a",ASV_Daten!E53="w"),"N3w",IF(AND(ASV_Daten!A53="3b",ASV_Daten!E53="w"),"N3w",IF(AND(ASV_Daten!A53="3b",ASV_Daten!E53="m"),"N3m",IF(AND(ASV_Daten!A53="4a",ASV_Daten!E53="m"),"N4m",IF(AND(ASV_Daten!A53="4a",ASV_Daten!E53="w"),"N4w",IF(AND(ASV_Daten!A53="4b",ASV_Daten!E53="m"),"N4m",IF(AND(ASV_Daten!A53="4b",ASV_Daten!E53="w"),"N4w")))))))))))))))) -> FALSE | T48: nix
A49: =IF(ASV_Daten!A48="","",ASV_Daten!A48) -> 5b | B49: =IF(ASV_Daten!B48="","",ASV_Daten!B48) -> Jordu | C49: =IF(ASV_Daten!C48="","",ASV_Daten!C48) -> Jaja | D49: =IF(ASV_Daten!D48="","",ASV_Daten!D48) -> 2010 | E49: =IF(ASV_Daten!E48="","",ASV_Daten!E48) -> w | F49: 5bw | G49: =IF(ASV_Daten!D37="","",$B$1-ASV_Daten!$D37) -> 11 | H49: =G49&ASV_Daten!E37 -> 11w | I49: 500 | J49: 10.91 | K49: 2.2 | L49: 16.5 | M49: =IF(ASV_Daten!E37="w",(((800/I49)-2.0232)/0.00647),(((1000/I49)-2.158)/0.006)) -> -65.40958269 | N49: =IF(ASV_Daten!$E37="w",(((50/(J49+0.24))-3.648)/0.0066),IF(ASV_Daten!$E37="M",(((50/(J49+0.24))-3.79)/0.0069),0)) -> 126.7128686 | O49: =IF(ASV_Daten!$E37="w",((SQRT(K49)-1.0935)/0.00208),IF(ASV_Daten!$E37="m",((SQRT(K49)-1.15028)/0.00219),0)) -> 187.3748545 | P49: =IF(ASV_Daten!E37="w",((SQRT(L49)-2.0232)/0.00874),IF(ASV_Daten!$E37="M",((SQRT(L49)-2.8)/0.011),0)) -> 233.2745083 | Q49: 547 | R49: T | S49: =IF(AND(ASV_Daten!A37="1a",ASV_Daten!E37="m"),"N1m",IF(AND(ASV_Daten!A37="1a",ASV_Daten!E37="w"),"N1w",IF(AND(ASV_Daten!A37="1b",ASV_Daten!E37="w"),"N1w",IF(AND(ASV_Daten!A37="1b",ASV_Daten!E37="m"),"N1m",IF(AND(ASV_Daten!A37="2a",ASV_Daten!E37="m"),"N2m",IF(AND(ASV_Daten!A37="2a",ASV_Daten!E37="w"),"N2w",IF(AND(ASV_Daten!A37="2b",ASV_Daten!E37="w"),"N2w",IF(AND(ASV_Daten!A37="2b",ASV_Daten!E37="m"),"N2m",IF(AND(ASV_Daten!A37="3a",ASV_Daten!E37="m"),"N3m",IF(AND(ASV_Daten!A37="3a",ASV_Daten!E37="w"),"N3w",IF(AND(ASV_Daten!A37="3b",ASV_Daten!E37="w"),"N3w",IF(AND(ASV_Daten!A37="3b",ASV_Daten!E37="m"),"N3m",IF(AND(ASV_Daten!A37="4a",ASV_Daten!E37="m"),"N4m",IF(AND(ASV_Daten!A37="4a",ASV_Daten!E37="w"),"N4w",IF(AND(ASV_Daten!A37="4b",ASV_Daten!E37="m"),"N4m",IF(AND(ASV_Daten!A37="4b",ASV_Daten!E37="w"),"N4w")))))))))))))))) -> FALSE | T49: nix
A50: =IF(ASV_Daten!A49="","",ASV_Daten!A49) -> 5b | B50: =IF(ASV_Daten!B49="","",ASV_Daten!B49) -> Erdmann | C50: =IF(ASV_Daten!C49="","",ASV_Daten!C49) -> Denise | D50: =IF(ASV_Daten!D49="","",ASV_Daten!D49) -> 2011 | E50: =IF(ASV_Daten!E49="","",ASV_Daten!E49) -> w | F50: 5bw | G50: =IF(ASV_Daten!D44="","",$B$1-ASV_Daten!$D44) -> 11 | H50: =G50&ASV_Daten!E44 -> 11m | I50: 500 | J50: 10.84 | K50: 2.4 | L50: 9.5 | M50: =IF(ASV_Daten!E44="w",(((800/I50)-2.0232)/0.00647),(((1000/I50)-2.158)/0.006)) -> -26.33333333 | N50: =IF(ASV_Daten!$E44="w",(((50/(J50+0.24))-3.648)/0.0066),IF(ASV_Daten!$E44="M",(((50/(J50+0.24))-3.79)/0.0069),0)) -> 104.7297651 | O50: =IF(ASV_Daten!$E44="w",((SQRT(K50)-1.0935)/0.00208),IF(ASV_Daten!$E44="m",((SQRT(K50)-1.15028)/0.00219),0)) -> 182.1522094 | P50: =IF(ASV_Daten!E44="w",((SQRT(L50)-2.0232)/0.00874),IF(ASV_Daten!$E44="M",((SQRT(L50)-2.8)/0.011),0)) -> 25.65518195 | Q50: 313 | R50: T | S50: =IF(AND(ASV_Daten!A44="1a",ASV_Daten!E44="m"),"N1m",IF(AND(ASV_Daten!A44="1a",ASV_Daten!E44="w"),"N1w",IF(AND(ASV_Daten!A44="1b",ASV_Daten!E44="w"),"N1w",IF(AND(ASV_Daten!A44="1b",ASV_Daten!E44="m"),"N1m",IF(AND(ASV_Daten!A44="2a",ASV_Daten!E44="m"),"N2m",IF(AND(ASV_Daten!A44="2a",ASV_Daten!E44="w"),"N2w",IF(AND(ASV_Daten!A44="2b",ASV_Daten!E44="w"),"N2w",IF(AND(ASV_Daten!A44="2b",ASV_Daten!E44="m"),"N2m",IF(AND(ASV_Daten!A44="3a",ASV_Daten!E44="m"),"N3m",IF(AND(ASV_Daten!A44="3a",ASV_Daten!E44="w"),"N3w",IF(AND(ASV_Daten!A44="3b",ASV_Daten!E44="w"),"N3w",IF(AND(ASV_Daten!A44="3b",ASV_Daten!E44="m"),"N3m",IF(AND(ASV_Daten!A44="4a",ASV_Daten!E44="m"),"N4m",IF(AND(ASV_Daten!A44="4a",ASV_Daten!E44="w"),"N4w",IF(AND(ASV_Daten!A44="4b",ASV_Daten!E44="m"),"N4m",IF(AND(ASV_Daten!A44="4b",ASV_Daten!E44="w"),"N4w")))))))))))))))) -> FALSE | T50: nix
A51: =IF(ASV_Daten!A50="","",ASV_Daten!A50) -> 5b | B51: =IF(ASV_Daten!B50="","",ASV_Daten!B50) -> Greilinger | C51: =IF(ASV_Daten!C50="","",ASV_Daten!C50) -> Fabienne | D51: =IF(ASV_Daten!D50="","",ASV_Daten!D50) -> 2010 | E51: =IF(ASV_Daten!E50="","",ASV_Daten!E50) -> w | F51: 5bw | G51: =IF(ASV_Daten!D45="","",$B$1-ASV_Daten!$D45) -> 11 | H51: =G51&ASV_Daten!E45 -> 11w | I51: 500 | J51: 10.72 | K51: 2.54 | L51: 9 | M51: =IF(ASV_Daten!E45="w",(((800/I51)-2.0232)/0.00647),(((1000/I51)-2.158)/0.006)) -> -65.40958269 | N51: =IF(ASV_Daten!$E45="w",(((50/(J51+0.24))-3.648)/0.0066),IF(ASV_Daten!$E45="M",(((50/(J51+0.24))-3.79)/0.0069),0)) -> 138.4914842 | O51: =IF(ASV_Daten!$E45="w",((SQRT(K51)-1.0935)/0.00208),IF(ASV_Daten!$E45="m",((SQRT(K51)-1.15028)/0.00219),0)) -> 240.4989159 | P51: =IF(ASV_Daten!E45="w",((SQRT(L51)-2.0232)/0.00874),IF(ASV_Daten!$E45="M",((SQRT(L51)-2.8)/0.011),0)) -> 111.7620137 | Q51: 491 | R51: T | S51: =IF(AND(ASV_Daten!A45="1a",ASV_Daten!E45="m"),"N1m",IF(AND(ASV_Daten!A45="1a",ASV_Daten!E45="w"),"N1w",IF(AND(ASV_Daten!A45="1b",ASV_Daten!E45="w"),"N1w",IF(AND(ASV_Daten!A45="1b",ASV_Daten!E45="m"),"N1m",IF(AND(ASV_Daten!A45="2a",ASV_Daten!E45="m"),"N2m",IF(AND(ASV_Daten!A45="2a",ASV_Daten!E45="w"),"N2w",IF(AND(ASV_Daten!A45="2b",ASV_Daten!E45="w"),"N2w",IF(AND(ASV_Daten!A45="2b",ASV_Daten!E45="m"),"N2m",IF(AND(ASV_Daten!A45="3a",ASV_Daten!E45="m"),"N3m",IF(AND(ASV_Daten!A45="3a",ASV_Daten!E45="w"),"N3w",IF(AND(ASV_Daten!A45="3b",ASV_Daten!E45="w"),"N3w",IF(AND(ASV_Daten!A45="3b",ASV_Daten!E45="m"),"N3m",IF(AND(ASV_Daten!A45="4a",ASV_Daten!E45="m"),"N4m",IF(AND(ASV_Daten!A45="4a",ASV_Daten!E45="w"),"N4w",IF(AND(ASV_Daten!A45="4b",ASV_Daten!E45="m"),"N4m",IF(AND(ASV_Daten!A45="4b",ASV_Daten!E45="w"),"N4w")))))))))))))))) -> FALSE | T51: nix
A52: =IF(ASV_Daten!A51="","",ASV_Daten!A51) -> 5b | B52: =IF(ASV_Daten!B51="","",ASV_Daten!B51) -> Hund | C52: =IF(ASV_Daten!C51="","",ASV_Daten!C51) -> Kurt | D52: =IF(ASV_Daten!D51="","",ASV_Daten!D51) -> 2010 | E52: =IF(ASV_Daten!E51="","",ASV_Daten!E51) -> m | F52: 5bm | G52: =IF(ASV_Daten!D49="","",$B$1-ASV_Daten!$D49) -> 10 | H52: =G52&ASV_Daten!E49 -> 10w | I52: 500 | J52: 10.06 | K52: 2.72 | L52: 18 | M52: =IF(ASV_Daten!E49="w",(((800/I52)-2.0232)/0.00647),(((1000/I52)-2.158)/0.006)) -> -65.40958269 | N52: =IF(ASV_Daten!$E49="w",(((50/(J52+0.24))-3.648)/0.0066),IF(ASV_Daten!$E49="M",(((50/(J52+0.24))-3.79)/0.0069),0)) -> 182.7831715 | O52: =IF(ASV_Daten!$E49="w",((SQRT(K52)-1.0935)/0.00208),IF(ASV_Daten!$E49="m",((SQRT(K52)-1.15028)/0.00219),0)) -> 267.1837742 | P52: =IF(ASV_Daten!E49="w",((SQRT(L52)-2.0232)/0.00874),IF(ASV_Daten!$E49="M",((SQRT(L52)-2.8)/0.011),0)) -> 253.9405821 | Q52: 704 | R52: S | S52: =IF(AND(ASV_Daten!A49="1a",ASV_Daten!E49="m"),"N1m",IF(AND(ASV_Daten!A49="1a",ASV_Daten!E49="w"),"N1w",IF(AND(ASV_Daten!A49="1b",ASV_Daten!E49="w"),"N1w",IF(AND(ASV_Daten!A49="1b",ASV_Daten!E49="m"),"N1m",IF(AND(ASV_Daten!A49="2a",ASV_Daten!E49="m"),"N2m",IF(AND(ASV_Daten!A49="2a",ASV_Daten!E49="w"),"N2w",IF(AND(ASV_Daten!A49="2b",ASV_Daten!E49="w"),"N2w",IF(AND(ASV_Daten!A49="2b",ASV_Daten!E49="m"),"N2m",IF(AND(ASV_Daten!A49="3a",ASV_Daten!E49="m"),"N3m",IF(AND(ASV_Daten!A49="3a",ASV_Daten!E49="w"),"N3w",IF(AND(ASV_Daten!A49="3b",ASV_Daten!E49="w"),"N3w",IF(AND(ASV_Daten!A49="3b",ASV_Daten!E49="m"),"N3m",IF(AND(ASV_Daten!A49="4a",ASV_Daten!E49="m"),"N4m",IF(AND(ASV_Daten!A49="4a",ASV_Daten!E49="w"),"N4w",IF(AND(ASV_Daten!A49="4b",ASV_Daten!E49="m"),"N4m",IF(AND(ASV_Daten!A49="4b",ASV_Daten!E49="w"),"N4w")))))))))))))))) -> FALSE | T52: nix
A53: =IF(ASV_Daten!A52="","",ASV_Daten!A52) -> 5b | B53: =IF(ASV_Daten!B52="","",ASV_Daten!B52) -> Penara | C53: =IF(ASV_Daten!C52="","",ASV_Daten!C52) -> Horst | D53: =IF(ASV_Daten!D52="","",ASV_Daten!D52) -> 2010 | E53: =IF(ASV_Daten!E52="","",ASV_Daten!E52) -> m | F53: 5bm | G53: =IF(ASV_Daten!D50="","",$B$1-ASV_Daten!$D50) -> 11 | H53: =G53&ASV_Daten!E50 -> 11w | I53: 500 | J53: 9.97 | K53: 2.62 | L53: 7.5 | M53: =IF(ASV_Daten!E50="w",(((800/I53)-2.0232)/0.00647),(((1000/I53)-2.158)/0.006)) -> -65.40958269 | N53: =IF(ASV_Daten!$E50="w",(((50/(J53+0.24))-3.648)/0.0066),IF(ASV_Daten!$E50="M",(((50/(J53+0.24))-3.79)/0.0069),0)) -> 189.2666132 | O53: =IF(ASV_Daten!$E50="w",((SQRT(K53)-1.0935)/0.00208),IF(ASV_Daten!$E50="m",((SQRT(K53)-1.15028)/0.00219),0)) -> 252.4718296 | P53: =IF(ASV_Daten!E50="w",((SQRT(L53)-2.0232)/0.00874),IF(ASV_Daten!$E50="M",((SQRT(L53)-2.8)/0.011),0)) -> 81.85501001 | Q53: 524 | R53: T | S53: =IF(AND(ASV_Daten!A50="1a",ASV_Daten!E50="m"),"N1m",IF(AND(ASV_Daten!A50="1a",ASV_Daten!E50="w"),"N1w",IF(AND(ASV_Daten!A50="1b",ASV_Daten!E50="w"),"N1w",IF(AND(ASV_Daten!A50="1b",ASV_Daten!E50="m"),"N1m",IF(AND(ASV_Daten!A50="2a",ASV_Daten!E50="m"),"N2m",IF(AND(ASV_Daten!A50="2a",ASV_Daten!E50="w"),"N2w",IF(AND(ASV_Daten!A50="2b",ASV_Daten!E50="w"),"N2w",IF(AND(ASV_Daten!A50="2b",ASV_Daten!E50="m"),"N2m",IF(AND(ASV_Daten!A50="3a",ASV_Daten!E50="m"),"N3m",IF(AND(ASV_Daten!A50="3a",ASV_Daten!E50="w"),"N3w",IF(AND(ASV_Daten!A50="3b",ASV_Daten!E50="w"),"N3w",IF(AND(ASV_Daten!A50="3b",ASV_Daten!E50="m"),"N3m",IF(AND(ASV_Daten!A50="4a",ASV_Daten!E50="m"),"N4m",IF(AND(ASV_Daten!A50="4a",ASV_Daten!E50="w"),"N4w",IF(AND(ASV_Daten!A50="4b",ASV_Daten!E50="m"),"N4m",IF(AND(ASV_Daten!A50="4b",ASV_Daten!E50="w"),"N4w")))))))))))))))) -> FALSE | T53: nix
A54: =IF(ASV_Daten!A53="","",ASV_Daten!A53) -> 5b | B54: =IF(ASV_Daten!B53="","",ASV_Daten!B53) -> Rieser | C54: =IF(ASV_Daten!C53="","",ASV_Daten!C53) -> Jennifer | D54: =IF(ASV_Daten!D53="","",ASV_Daten!D53) -> 2010 | E54: =IF(ASV_Daten!E53="","",ASV_Daten!E53) -> w | F54: 5bw | G54: =IF(ASV_Daten!D52="","",$B$1-ASV_Daten!$D52) -> 11 | H54: =G54&ASV_Daten!E52 -> 11m | I54: 500 | J54: 9.5 | K54: 3.12 | L54: 12 | M54: =IF(ASV_Daten!E52="w",(((800/I54)-2.0232)/0.00647),(((1000/I54)-2.158)/0.006)) -> -26.33333333 | N54: =IF(ASV_Daten!$E52="w",(((50/(J54+0.24))-3.648)/0.0066),IF(ASV_Daten!$E52="M",(((50/(J54+0.24))-3.79)/0.0069),0)) -> 194.7058298 | O54: =IF(ASV_Daten!$E52="w",((SQRT(K54)-1.0935)/0.00208),IF(ASV_Daten!$E52="m",((SQRT(K54)-1.15028)/0.00219),0)) -> 281.3114946 | P54: =IF(ASV_Daten!E52="w",((SQRT(L54)-2.0232)/0.00874),IF(ASV_Daten!$E52="M",((SQRT(L54)-2.8)/0.011),0)) -> 60.3728741 | Q54: 536 | R54: T | S54: =IF(AND(ASV_Daten!A52="1a",ASV_Daten!E52="m"),"N1m",IF(AND(ASV_Daten!A52="1a",ASV_Daten!E52="w"),"N1w",IF(AND(ASV_Daten!A52="1b",ASV_Daten!E52="w"),"N1w",IF(AND(ASV_Daten!A52="1b",ASV_Daten!E52="m"),"N1m",IF(AND(ASV_Daten!A52="2a",ASV_Daten!E52="m"),"N2m",IF(AND(ASV_Daten!A52="2a",ASV_Daten!E52="w"),"N2w",IF(AND(ASV_Daten!A52="2b",ASV_Daten!E52="w"),"N2w",IF(AND(ASV_Daten!A52="2b",ASV_Daten!E52="m"),"N2m",IF(AND(ASV_Daten!A52="3a",ASV_Daten!E52="m"),"N3m",IF(AND(ASV_Daten!A52="3a",ASV_Daten!E52="w"),"N3w",IF(AND(ASV_Daten!A52="3b",ASV_Daten!E52="w"),"N3w",IF(AND(ASV_Daten!A52="3b",ASV_Daten!E52="m"),"N3m",IF(AND(ASV_Daten!A52="4a",ASV_Daten!E52="m"),"N4m",IF(AND(ASV_Daten!A52="4a",ASV_Daten!E52="w"),"N4w",IF(AND(ASV_Daten!A52="4b",ASV_Daten!E52="m"),"N4m",IF(AND(ASV_Daten!A52="4b",ASV_Daten!E52="w"),"N4w")))))))))))))))) -> FALSE | T54: nix
A55: =IF(ASV_Daten!A54="","",ASV_Daten!A54) -> 5b | B55: =IF(ASV_Daten!B54="","",ASV_Daten!B54) -> Schoning | C55: =IF(ASV_Daten!C54="","",ASV_Daten!C54) -> Daniela | D55: =IF(ASV_Daten!D54="","",ASV_Daten!D54) -> 2010 | E55: =IF(ASV_Daten!E54="","",ASV_Daten!E54) -> w | F55: 5bw | G55: =IF(ASV_Daten!D54="","",$B$1-ASV_Daten!$D54) -> 11 | H55: =G55&ASV_Daten!E54 -> 11w | I55: 500 | J55: 10.87 | K55: 2.3 | L55: 15 | M55: =IF(ASV_Daten!E54="w",(((800/I55)-2.0232)/0.00647),(((1000/I55)-2.158)/0.006)) -> -65.40958269 | N55: =IF(ASV_Daten!$E54="w",(((50/(J55+0.24))-3.648)/0.0066),IF(ASV_Daten!$E54="M",(((50/(J55+0.24))-3.79)/0.0069),0)) -> 129.1590977 | O55: =IF(ASV_Daten!$E54="w",((SQRT(K55)-1.0935)/0.00208),IF(ASV_Daten!$E54="m",((SQRT(K55)-1.15028)/0.00219),0)) -> 203.401485 | P55: =IF(ASV_Daten!E54="w",((SQRT(L55)-2.0232)/0.00874),IF(ASV_Daten!$E54="M",((SQRT(L55)-2.8)/0.011),0)) -> 211.6456918 | Q55: 544 | R55: T | S55: =IF(AND(ASV_Daten!A54="1a",ASV_Daten!E54="m"),"N1m",IF(AND(ASV_Daten!A54="1a",ASV_Daten!E54="w"),"N1w",IF(AND(ASV_Daten!A54="1b",ASV_Daten!E54="w"),"N1w",IF(AND(ASV_Daten!A54="1b",ASV_Daten!E54="m"),"N1m",IF(AND(ASV_Daten!A54="2a",ASV_Daten!E54="m"),"N2m",IF(AND(ASV_Daten!A54="2a",ASV_Daten!E54="w"),"N2w",IF(AND(ASV_Daten!A54="2b",ASV_Daten!E54="w"),"N2w",IF(AND(ASV_Daten!A54="2b",ASV_Daten!E54="m"),"N2m",IF(AND(ASV_Daten!A54="3a",ASV_Daten!E54="m"),"N3m",IF(AND(ASV_Daten!A54="3a",ASV_Daten!E54="w"),"N3w",IF(AND(ASV_Daten!A54="3b",ASV_Daten!E54="w"),"N3w",IF(AND(ASV_Daten!A54="3b",ASV_Daten!E54="m"),"N3m",IF(AND(ASV_Daten!A54="4a",ASV_Daten!E54="m"),"N4m",IF(AND(ASV_Daten!A54="4a",ASV_Daten!E54="w"),"N4w",IF(AND(ASV_Daten!A54="4b",ASV_Daten!E54="m"),"N4m",IF(AND(ASV_Daten!A54="4b",ASV_Daten!E54="w"),"N4w")))))))))))))))) -> FALSE | T55: nix
A56: =IF(ASV_Daten!A55="","",ASV_Daten!A55) -> 5b | B56: =IF(ASV_Daten!B55="","",ASV_Daten!B55) -> Grimmig | C56: =IF(ASV_Daten!C55="","",ASV_Daten!C55) -> Karola | D56: =IF(ASV_Daten!D55="","",ASV_Daten!D55) -> 2010 | E56: =IF(ASV_Daten!E55="","",ASV_Daten!E55) -> w | F56: 5bw | G56: =IF(ASV_Daten!D56="","",$B$1-ASV_Daten!$D56) -> 11 | H56: =G56&ASV_Daten!E56 -> 11w | I56: 500 | J56: 9.72 | K56: 2.62 | L56: 9 | M56: =IF(ASV_Daten!E56="w",(((800/I56)-2.0232)/0.00647),(((1000/I56)-2.158)/0.006)) -> -65.40958269 | N56: =IF(ASV_Daten!$E56="w",(((50/(J56+0.24))-3.648)/0.0066),IF(ASV_Daten!$E56="M",(((50/(J56+0.24))-3.79)/0.0069),0)) -> 207.8909578 | O56: =IF(ASV_Daten!$E56="w",((SQRT(K56)-1.0935)/0.00208),IF(ASV_Daten!$E56="m",((SQRT(K56)-1.15028)/0.00219),0)) -> 252.4718296 | P56: =IF(ASV_Daten!E56="w",((SQRT(L56)-2.0232)/0.00874),IF(ASV_Daten!$E56="M",((SQRT(L56)-2.8)/0.011),0)) -> 111.7620137 | Q56: 572 | R56: T | S56: =IF(AND(ASV_Daten!A56="1a",ASV_Daten!E56="m"),"N1m",IF(AND(ASV_Daten!A56="1a",ASV_Daten!E56="w"),"N1w",IF(AND(ASV_Daten!A56="1b",ASV_Daten!E56="w"),"N1w",IF(AND(ASV_Daten!A56="1b",ASV_Daten!E56="m"),"N1m",IF(AND(ASV_Daten!A56="2a",ASV_Daten!E56="m"),"N2m",IF(AND(ASV_Daten!A56="2a",ASV_Daten!E56="w"),"N2w",IF(AND(ASV_Daten!A56="2b",ASV_Daten!E56="w"),"N2w",IF(AND(ASV_Daten!A56="2b",ASV_Daten!E56="m"),"N2m",IF(AND(ASV_Daten!A56="3a",ASV_Daten!E56="m"),"N3m",IF(AND(ASV_Daten!A56="3a",ASV_Daten!E56="w"),"N3w",IF(AND(ASV_Daten!A56="3b",ASV_Daten!E56="w"),"N3w",IF(AND(ASV_Daten!A56="3b",ASV_Daten!E56="m"),"N3m",IF(AND(ASV_Daten!A56="4a",ASV_Daten!E56="m"),"N4m",IF(AND(ASV_Daten!A56="4a",ASV_Daten!E56="w"),"N4w",IF(AND(ASV_Daten!A56="4b",ASV_Daten!E56="m"),"N4m",IF(AND(ASV_Daten!A56="4b",ASV_Daten!E56="w"),"N4w")))))))))))))))) -> FALSE | T56: nix
A57: =IF(ASV_Daten!A56="","",ASV_Daten!A56) -> 5b | B57: =IF(ASV_Daten!B56="","",ASV_Daten!B56) -> Jordu | C57: =IF(ASV_Daten!C56="","",ASV_Daten!C56) -> Jaja | D57: =IF(ASV_Daten!D56="","",ASV_Daten!D56) -> 2010 | E57: =IF(ASV_Daten!E56="","",ASV_Daten!E56) -> w | F57: 5bw | G57: =IF(ASV_Daten!D61="","",$B$1-ASV_Daten!$D61) -> 10 | H57: =G57&ASV_Daten!E61 -> 10w | I57: 500 | J57: 9.43 | K57: 2.86 | L57: 20.5 | M57: =IF(ASV_Daten!E61="w",(((800/I57)-2.0232)/0.00647),(((1000/I57)-2.158)/0.006)) -> -65.40958269 | N57: =IF(ASV_Daten!$E61="w",(((50/(J57+0.24))-3.648)/0.0066),IF(ASV_Daten!$E61="M",(((50/(J57+0.24))-3.79)/0.0069),0)) -> 230.7016389 | O57: =IF(ASV_Daten!$E61="w",((SQRT(K57)-1.0935)/0.00208),IF(ASV_Daten!$E61="m",((SQRT(K57)-1.15028)/0.00219),0)) -> 287.3333906 | P57: =IF(ASV_Daten!E61="w",((SQRT(L57)-2.0232)/0.00874),IF(ASV_Daten!$E61="M",((SQRT(L57)-2.8)/0.011),0)) -> 286.5552139 | Q57: 805 | R57: S | S57: =IF(AND(ASV_Daten!A61="1a",ASV_Daten!E61="m"),"N1m",IF(AND(ASV_Daten!A61="1a",ASV_Daten!E61="w"),"N1w",IF(AND(ASV_Daten!A61="1b",ASV_Daten!E61="w"),"N1w",IF(AND(ASV_Daten!A61="1b",ASV_Daten!E61="m"),"N1m",IF(AND(ASV_Daten!A61="2a",ASV_Daten!E61="m"),"N2m",IF(AND(ASV_Daten!A61="2a",ASV_Daten!E61="w"),"N2w",IF(AND(ASV_Daten!A61="2b",ASV_Daten!E61="w"),"N2w",IF(AND(ASV_Daten!A61="2b",ASV_Daten!E61="m"),"N2m",IF(AND(ASV_Daten!A61="3a",ASV_Daten!E61="m"),"N3m",IF(AND(ASV_Daten!A61="3a",ASV_Daten!E61="w"),"N3w",IF(AND(ASV_Daten!A61="3b",ASV_Daten!E61="w"),"N3w",IF(AND(ASV_Daten!A61="3b",ASV_Daten!E61="m"),"N3m",IF(AND(ASV_Daten!A61="4a",ASV_Daten!E61="m"),"N4m",IF(AND(ASV_Daten!A61="4a",ASV_Daten!E61="w"),"N4w",IF(AND(ASV_Daten!A61="4b",ASV_Daten!E61="m"),"N4m",IF(AND(ASV_Daten!A61="4b",ASV_Daten!E61="w"),"N4w")))))))))))))))) -> FALSE | T57: nix
A58: =IF(ASV_Daten!A57="","",ASV_Daten!A57) -> 5b | B58: =IF(ASV_Daten!B57="","",ASV_Daten!B57) -> Erdmann | C58: =IF(ASV_Daten!C57="","",ASV_Daten!C57) -> Denise | D58: =IF(ASV_Daten!D57="","",ASV_Daten!D57) -> 2011 | E58: =IF(ASV_Daten!E57="","",ASV_Daten!E57) -> w | F58: 5bw | G58: =IF(ASV_Daten!D64="","",$B$1-ASV_Daten!$D64) -> 10 | H58: =G58&ASV_Daten!E64 -> 10w | I58: 500 | J58: 12.72 | K58: 2.78 | L58: 3 | M58: =IF(ASV_Daten!E64="w",(((800/I58)-2.0232)/0.00647),(((1000/I58)-2.158)/0.006)) -> -65.40958269 | N58: =IF(ASV_Daten!$E64="w",(((50/(J58+0.24))-3.648)/0.0066),IF(ASV_Daten!$E64="M",(((50/(J58+0.24))-3.79)/0.0069),0)) -> 31.82192293 | O58: =IF(ASV_Daten!$E64="w",((SQRT(K58)-1.0935)/0.00208),IF(ASV_Daten!$E64="m",((SQRT(K58)-1.15028)/0.00219),0)) -> 275.8813462 | P58: =IF(ASV_Daten!E64="w",((SQRT(L58)-2.0232)/0.00874),IF(ASV_Daten!$E64="M",((SQRT(L58)-2.8)/0.011),0)) -> -33.31226458 | Q58: 274 | R58: T | S58: =IF(AND(ASV_Daten!A64="1a",ASV_Daten!E64="m"),"N1m",IF(AND(ASV_Daten!A64="1a",ASV_Daten!E64="w"),"N1w",IF(AND(ASV_Daten!A64="1b",ASV_Daten!E64="w"),"N1w",IF(AND(ASV_Daten!A64="1b",ASV_Daten!E64="m"),"N1m",IF(AND(ASV_Daten!A64="2a",ASV_Daten!E64="m"),"N2m",IF(AND(ASV_Daten!A64="2a",ASV_Daten!E64="w"),"N2w",IF(AND(ASV_Daten!A64="2b",ASV_Daten!E64="w"),"N2w",IF(AND(ASV_Daten!A64="2b",ASV_Daten!E64="m"),"N2m",IF(AND(ASV_Daten!A64="3a",ASV_Daten!E64="m"),"N3m",IF(AND(ASV_Daten!A64="3a",ASV_Daten!E64="w"),"N3w",IF(AND(ASV_Daten!A64="3b",ASV_Daten!E64="w"),"N3w",IF(AND(ASV_Daten!A64="3b",ASV_Daten!E64="m"),"N3m",IF(AND(ASV_Daten!A64="4a",ASV_Daten!E64="m"),"N4m",IF(AND(ASV_Daten!A64="4a",ASV_Daten!E64="w"),"N4w",IF(AND(ASV_Daten!A64="4b",ASV_Daten!E64="m"),"N4m",IF(AND(ASV_Daten!A64="4b",ASV_Daten!E64="w"),"N4w")))))))))))))))) -> FALSE | T58: nix
A59: =IF(ASV_Daten!A58="","",ASV_Daten!A58) -> 5b | B59: =IF(ASV_Daten!B58="","",ASV_Daten!B58) -> Greilinger | C59: =IF(ASV_Daten!C58="","",ASV_Daten!C58) -> Fabienne | D59: =IF(ASV_Daten!D58="","",ASV_Daten!D58) -> 2010 | E59: =IF(ASV_Daten!E58="","",ASV_Daten!E58) -> w | F59: 5bw | G59: =IF(ASV_Daten!D65="","",$B$1-ASV_Daten!$D65) -> 10 | H59: =G59&ASV_Daten!E65 -> 10w | I59: 386 | J59: 11.65 | K59: 2.08 | L59: 11 | M59: =IF(ASV_Daten!E65="w",(((800/I59)-2.0232)/0.00647),(((1000/I59)-2.158)/0.006)) -> 7.625789815 | N59: =IF(ASV_Daten!$E65="w",(((50/(J59+0.24))-3.648)/0.0066),IF(ASV_Daten!$E65="M",(((50/(J59+0.24))-3.79)/0.0069),0)) -> 84.42643423 | O59: =IF(ASV_Daten!$E65="w",((SQRT(K59)-1.0935)/0.00208),IF(ASV_Daten!$E65="m",((SQRT(K59)-1.15028)/0.00219),0)) -> 167.6540914 | P59: =IF(ASV_Daten!E65="w",((SQRT(L59)-2.0232)/0.00874),IF(ASV_Daten!$E65="M",((SQRT(L59)-2.8)/0.011),0)) -> 147.9891064 | Q59: 400 | R59: T | S59: =IF(AND(ASV_Daten!A65="1a",ASV_Daten!E65="m"),"N1m",IF(AND(ASV_Daten!A65="1a",ASV_Daten!E65="w"),"N1w",IF(AND(ASV_Daten!A65="1b",ASV_Daten!E65="w"),"N1w",IF(AND(ASV_Daten!A65="1b",ASV_Daten!E65="m"),"N1m",IF(AND(ASV_Daten!A65="2a",ASV_Daten!E65="m"),"N2m",IF(AND(ASV_Daten!A65="2a",ASV_Daten!E65="w"),"N2w",IF(AND(ASV_Daten!A65="2b",ASV_Daten!E65="w"),"N2w",IF(AND(ASV_Daten!A65="2b",ASV_Daten!E65="m"),"N2m",IF(AND(ASV_Daten!A65="3a",ASV_Daten!E65="m"),"N3m",IF(AND(ASV_Daten!A65="3a",ASV_Daten!E65="w"),"N3w",IF(AND(ASV_Daten!A65="3b",ASV_Daten!E65="w"),"N3w",IF(AND(ASV_Daten!A65="3b",ASV_Daten!E65="m"),"N3m",IF(AND(ASV_Daten!A65="4a",ASV_Daten!E65="m"),"N4m",IF(AND(ASV_Daten!A65="4a",ASV_Daten!E65="w"),"N4w",IF(AND(ASV_Daten!A65="4b",ASV_Daten!E65="m"),"N4m",IF(AND(ASV_Daten!A65="4b",ASV_Daten!E65="w"),"N4w")))))))))))))))) -> FALSE | T59: nix
A60: =IF(ASV_Daten!A59="","",ASV_Daten!A59) -> 5c | B60: =IF(ASV_Daten!B59="","",ASV_Daten!B59) -> Klassen | C60: =IF(ASV_Daten!C59="","",ASV_Daten!C59) -> Leonie | D60: =IF(ASV_Daten!D59="","",ASV_Daten!D59) -> 2010 | E60: =IF(ASV_Daten!E59="","",ASV_Daten!E59) -> w | F60: 5cw | G60: =IF(ASV_Daten!D67="","",$B$1-ASV_Daten!$D67) -> 10 | H60: =G60&ASV_Daten!E67 -> 10w | I60: 500 | J60: 10.56 | K60: 2.65 | L60: 8.5 | M60: =IF(ASV_Daten!E67="w",(((800/I60)-2.0232)/0.00647),(((1000/I60)-2.158)/0.006)) -> -65.40958269 | N60: =IF(ASV_Daten!$E67="w",(((50/(J60+0.24))-3.648)/0.0066),IF(ASV_Daten!$E67="M",(((50/(J60+0.24))-3.79)/0.0069),0)) -> 148.7317621 | O60: =IF(ASV_Daten!$E67="w",((SQRT(K60)-1.0935)/0.00208),IF(ASV_Daten!$E67="m",((SQRT(K60)-1.15028)/0.00219),0)) -> 256.9144517 | P60: =IF(ASV_Daten!E67="w",((SQRT(L60)-2.0232)/0.00874),IF(ASV_Daten!$E67="M",((SQRT(L60)-2.8)/0.011),0)) -> 102.0910695 | Q60: 508 | R60: T | S60: =IF(AND(ASV_Daten!A67="1a",ASV_Daten!E67="m"),"N1m",IF(AND(ASV_Daten!A67="1a",ASV_Daten!E67="w"),"N1w",IF(AND(ASV_Daten!A67="1b",ASV_Daten!E67="w"),"N1w",IF(AND(ASV_Daten!A67="1b",ASV_Daten!E67="m"),"N1m",IF(AND(ASV_Daten!A67="2a",ASV_Daten!E67="m"),"N2m",IF(AND(ASV_Daten!A67="2a",ASV_Daten!E67="w"),"N2w",IF(AND(ASV_Daten!A67="2b",ASV_Daten!E67="w"),"N2w",IF(AND(ASV_Daten!A67="2b",ASV_Daten!E67="m"),"N2m",IF(AND(ASV_Daten!A67="3a",ASV_Daten!E67="m"),"N3m",IF(AND(ASV_Daten!A67="3a",ASV_Daten!E67="w"),"N3w",IF(AND(ASV_Daten!A67="3b",ASV_Daten!E67="w"),"N3w",IF(AND(ASV_Daten!A67="3b",ASV_Daten!E67="m"),"N3m",IF(AND(ASV_Daten!A67="4a",ASV_Daten!E67="m"),"N4m",IF(AND(ASV_Daten!A67="4a",ASV_Daten!E67="w"),"N4w",IF(AND(ASV_Daten!A67="4b",ASV_Daten!E67="m"),"N4m",IF(AND(ASV_Daten!A67="4b",ASV_Daten!E67="w"),"N4w")))))))))))))))) -> FALSE | T60: nix
A61: =IF(ASV_Daten!A60="","",ASV_Daten!A60) -> 5c | B61: =IF(ASV_Daten!B60="","",ASV_Daten!B60) -> Moll | C61: =IF(ASV_Daten!C60="","",ASV_Daten!C60) -> Quirinia | D61: =IF(ASV_Daten!D60="","",ASV_Daten!D60) -> 2011 | E61: =IF(ASV_Daten!E60="","",ASV_Daten!E60) -> w | F61: 5cw | G61: =IF(ASV_Daten!D68="","",$B$1-ASV_Daten!$D68) -> 10 | H61: =G61&ASV_Daten!E68 -> 10w | I61: 500 | J61: 11.13 | K61: 2.54 | L61: 6.5 | M61: =IF(ASV_Daten!E68="w",(((800/I61)-2.0232)/0.00647),(((1000/I61)-2.158)/0.006)) -> -65.40958269 | N61: =IF(ASV_Daten!$E68="w",(((50/(J61+0.24))-3.648)/0.0066),IF(ASV_Daten!$E68="M",(((50/(J61+0.24))-3.79)/0.0069),0)) -> 113.5662696 | O61: =IF(ASV_Daten!$E68="w",((SQRT(K61)-1.0935)/0.00208),IF(ASV_Daten!$E68="m",((SQRT(K61)-1.15028)/0.00219),0)) -> 240.4989159 | P61: =IF(ASV_Daten!E68="w",((SQRT(L61)-2.0232)/0.00874),IF(ASV_Daten!$E68="M",((SQRT(L61)-2.8)/0.011),0)) -> 60.21850764 | Q61: 414 | R61: T | S61: =IF(AND(ASV_Daten!A68="1a",ASV_Daten!E68="m"),"N1m",IF(AND(ASV_Daten!A68="1a",ASV_Daten!E68="w"),"N1w",IF(AND(ASV_Daten!A68="1b",ASV_Daten!E68="w"),"N1w",IF(AND(ASV_Daten!A68="1b",ASV_Daten!E68="m"),"N1m",IF(AND(ASV_Daten!A68="2a",ASV_Daten!E68="m"),"N2m",IF(AND(ASV_Daten!A68="2a",ASV_Daten!E68="w"),"N2w",IF(AND(ASV_Daten!A68="2b",ASV_Daten!E68="w"),"N2w",IF(AND(ASV_Daten!A68="2b",ASV_Daten!E68="m"),"N2m",IF(AND(ASV_Daten!A68="3a",ASV_Daten!E68="m"),"N3m",IF(AND(ASV_Daten!A68="3a",ASV_Daten!E68="w"),"N3w",IF(AND(ASV_Daten!A68="3b",ASV_Daten!E68="w"),"N3w",IF(AND(ASV_Daten!A68="3b",ASV_Daten!E68="m"),"N3m",IF(AND(ASV_Daten!A68="4a",ASV_Daten!E68="m"),"N4m",IF(AND(ASV_Daten!A68="4a",ASV_Daten!E68="w"),"N4w",IF(AND(ASV_Daten!A68="4b",ASV_Daten!E68="m"),"N4m",IF(AND(ASV_Daten!A68="4b",ASV_Daten!E68="w"),"N4w")))))))))))))))) -> FALSE | T61: nix
A62: =IF(ASV_Daten!A61="","",ASV_Daten!A61) -> 5c | B62: =IF(ASV_Daten!B61="","",ASV_Daten!B61) -> Salger | C62: =IF(ASV_Daten!C61="","",ASV_Daten!C61) -> Stephanie | D62: =IF(ASV_Daten!D61="","",ASV_Daten!D61) -> 2011 | E62: =IF(ASV_Daten!E61="","",ASV_Daten!E61) -> w | F62: 5cw | G62: =IF(ASV_Daten!D69="","",$B$1-ASV_Daten!$D69) -> 10 | H62: =G62&ASV_Daten!E69 -> 10w | I62: 500 | J62: 10.19 | K62: 1.82 | L62: 9.5 | M62: =IF(ASV_Daten!E69="w",(((800/I62)-2.0232)/0.00647),(((1000/I62)-2.158)/0.006)) -> -65.40958269 | N62: =IF(ASV_Daten!$E69="w",(((50/(J62+0.24))-3.648)/0.0066),IF(ASV_Daten!$E69="M",(((50/(J62+0.24))-3.79)/0.0069),0)) -> 173.6157355 | O62: =IF(ASV_Daten!$E69="w",((SQRT(K62)-1.0935)/0.00208),IF(ASV_Daten!$E69="m",((SQRT(K62)-1.15028)/0.00219),0)) -> 122.8719982 | P62: =IF(ASV_Daten!E69="w",((SQRT(L62)-2.0232)/0.00874),IF(ASV_Daten!$E69="M",((SQRT(L62)-2.8)/0.011),0)) -> 121.1678491 | Q62: 418 | R62: T | S62: =IF(AND(ASV_Daten!A69="1a",ASV_Daten!E69="m"),"N1m",IF(AND(ASV_Daten!A69="1a",ASV_Daten!E69="w"),"N1w",IF(AND(ASV_Daten!A69="1b",ASV_Daten!E69="w"),"N1w",IF(AND(ASV_Daten!A69="1b",ASV_Daten!E69="m"),"N1m",IF(AND(ASV_Daten!A69="2a",ASV_Daten!E69="m"),"N2m",IF(AND(ASV_Daten!A69="2a",ASV_Daten!E69="w"),"N2w",IF(AND(ASV_Daten!A69="2b",ASV_Daten!E69="w"),"N2w",IF(AND(ASV_Daten!A69="2b",ASV_Daten!E69="m"),"N2m",IF(AND(ASV_Daten!A69="3a",ASV_Daten!E69="m"),"N3m",IF(AND(ASV_Daten!A69="3a",ASV_Daten!E69="w"),"N3w",IF(AND(ASV_Daten!A69="3b",ASV_Daten!E69="w"),"N3w",IF(AND(ASV_Daten!A69="3b",ASV_Daten!E69="m"),"N3m",IF(AND(ASV_Daten!A69="4a",ASV_Daten!E69="m"),"N4m",IF(AND(ASV_Daten!A69="4a",ASV_Daten!E69="w"),"N4w",IF(AND(ASV_Daten!A69="4b",ASV_Daten!E69="m"),"N4m",IF(AND(ASV_Daten!A69="4b",ASV_Daten!E69="w"),"N4w")))))))))))))))) -> FALSE | T62: nix
A63: =IF(ASV_Daten!A62="","",ASV_Daten!A62) -> 5c | B63: =IF(ASV_Daten!B62="","",ASV_Daten!B62) -> Steinhart | C63: =IF(ASV_Daten!C62="","",ASV_Daten!C62) -> Philippa | D63: =IF(ASV_Daten!D62="","",ASV_Daten!D62) -> 2011 | E63: =IF(ASV_Daten!E62="","",ASV_Daten!E62) -> w | F63: 5cw | G63: =IF(ASV_Daten!D70="","",$B$1-ASV_Daten!$D70) -> 10 | H63: =G63&ASV_Daten!E70 -> 10w | I63: 364 | J63: 10.19 | K63: 2.54 | L63: 15.5 | M63: =IF(ASV_Daten!E70="w",(((800/I63)-2.0232)/0.00647),(((1000/I63)-2.158)/0.006)) -> 26.98642934 | N63: =IF(ASV_Daten!$E70="w",(((50/(J63+0.24))-3.648)/0.0066),IF(ASV_Daten!$E70="M",(((50/(J63+0.24))-3.79)/0.0069),0)) -> 173.6157355 | O63: =IF(ASV_Daten!$E70="w",((SQRT(K63)-1.0935)/0.00208),IF(ASV_Daten!$E70="m",((SQRT(K63)-1.15028)/0.00219),0)) -> 240.4989159 | P63: =IF(ASV_Daten!E70="w",((SQRT(L63)-2.0232)/0.00874),IF(ASV_Daten!$E70="M",((SQRT(L63)-2.8)/0.011),0)) -> 218.9707022 | Q63: 633 | R63: S | S63: =IF(AND(ASV_Daten!A70="1a",ASV_Daten!E70="m"),"N1m",IF(AND(ASV_Daten!A70="1a",ASV_Daten!E70="w"),"N1w",IF(AND(ASV_Daten!A70="1b",ASV_Daten!E70="w"),"N1w",IF(AND(ASV_Daten!A70="1b",ASV_Daten!E70="m"),"N1m",IF(AND(ASV_Daten!A70="2a",ASV_Daten!E70="m"),"N2m",IF(AND(ASV_Daten!A70="2a",ASV_Daten!E70="w"),"N2w",IF(AND(ASV_Daten!A70="2b",ASV_Daten!E70="w"),"N2w",IF(AND(ASV_Daten!A70="2b",ASV_Daten!E70="m"),"N2m",IF(AND(ASV_Daten!A70="3a",ASV_Daten!E70="m"),"N3m",IF(AND(ASV_Daten!A70="3a",ASV_Daten!E70="w"),"N3w",IF(AND(ASV_Daten!A70="3b",ASV_Daten!E70="w"),"N3w",IF(AND(ASV_Daten!A70="3b",ASV_Daten!E70="m"),"N3m",IF(AND(ASV_Daten!A70="4a",ASV_Daten!E70="m"),"N4m",IF(AND(ASV_Daten!A70="4a",ASV_Daten!E70="w"),"N4w",IF(AND(ASV_Daten!A70="4b",ASV_Daten!E70="m"),"N4m",IF(AND(ASV_Daten!A70="4b",ASV_Daten!E70="w"),"N4w")))))))))))))))) -> FALSE | T63: nix
A64: =IF(ASV_Daten!A63="","",ASV_Daten!A63) -> 5c | B64: =IF(ASV_Daten!B63="","",ASV_Daten!B63) -> wein | C64: =IF(ASV_Daten!C63="","",ASV_Daten!C63) -> Daniela | D64: =IF(ASV_Daten!D63="","",ASV_Daten!D63) -> 2011 | E64: =IF(ASV_Daten!E63="","",ASV_Daten!E63) -> w | F64: 5cw | G64: =IF(ASV_Daten!D71="","",$B$1-ASV_Daten!$D71) -> 10 | H64: =G64&ASV_Daten!E71 -> 10w | I64: 500 | J64: 9.97 | K64: 2.75 | L64: 13 | M64: =IF(ASV_Daten!E71="w",(((800/I64)-2.0232)/0.00647),(((1000/I64)-2.158)/0.006)) -> -65.40958269 | N64: =IF(ASV_Daten!$E71="w",(((50/(J64+0.24))-3.648)/0.0066),IF(ASV_Daten!$E71="M",(((50/(J64+0.24))-3.79)/0.0069),0)) -> 189.2666132 | O64: =IF(ASV_Daten!$E71="w",((SQRT(K64)-1.0935)/0.00208),IF(ASV_Daten!$E71="m",((SQRT(K64)-1.15028)/0.00219),0)) -> 271.5444208 | P64: =IF(ASV_Daten!E71="w",((SQRT(L64)-2.0232)/0.00874),IF(ASV_Daten!$E71="M",((SQRT(L64)-2.8)/0.011),0)) -> 181.0470567 | Q64: 642 | R64: S | S64: =IF(AND(ASV_Daten!A71="1a",ASV_Daten!E71="m"),"N1m",IF(AND(ASV_Daten!A71="1a",ASV_Daten!E71="w"),"N1w",IF(AND(ASV_Daten!A71="1b",ASV_Daten!E71="w"),"N1w",IF(AND(ASV_Daten!A71="1b",ASV_Daten!E71="m"),"N1m",IF(AND(ASV_Daten!A71="2a",ASV_Daten!E71="m"),"N2m",IF(AND(ASV_Daten!A71="2a",ASV_Daten!E71="w"),"N2w",IF(AND(ASV_Daten!A71="2b",ASV_Daten!E71="w"),"N2w",IF(AND(ASV_Daten!A71="2b",ASV_Daten!E71="m"),"N2m",IF(AND(ASV_Daten!A71="3a",ASV_Daten!E71="m"),"N3m",IF(AND(ASV_Daten!A71="3a",ASV_Daten!E71="w"),"N3w",IF(AND(ASV_Daten!A71="3b",ASV_Daten!E71="w"),"N3w",IF(AND(ASV_Daten!A71="3b",ASV_Daten!E71="m"),"N3m",IF(AND(ASV_Daten!A71="4a",ASV_Daten!E71="m"),"N4m",IF(AND(ASV_Daten!A71="4a",ASV_Daten!E71="w"),"N4w",IF(AND(ASV_Daten!A71="4b",ASV_Daten!E71="m"),"N4m",IF(AND(ASV_Daten!A71="4b",ASV_Daten!E71="w"),"N4w")))))))))))))))) -> FALSE | T64: nix
A65: =IF(ASV_Daten!A64="","",ASV_Daten!A64) -> 5c | B65: =IF(ASV_Daten!B64="","",ASV_Daten!B64) -> willsch | C65: =IF(ASV_Daten!C64="","",ASV_Daten!C64) -> Maria | D65: =IF(ASV_Daten!D64="","",ASV_Daten!D64) -> 2011 | E65: =IF(ASV_Daten!E64="","",ASV_Daten!E64) -> w | F65: 5cw | G65: =IF(ASV_Daten!D55="","",$B$1-ASV_Daten!$D55) -> 11 | H65: =G65&ASV_Daten!E55 -> 11w | I65: 500 | J65: 9.96 | K65: 2.36 | L65: 11.5 | M65: =IF(ASV_Daten!E55="w",(((800/I65)-2.0232)/0.00647),(((1000/I65)-2.158)/0.006)) -> -65.40958269 | N65: =IF(ASV_Daten!$E55="w",(((50/(J65+0.24))-3.648)/0.0066),IF(ASV_Daten!$E55="M",(((50/(J65+0.24))-3.79)/0.0069),0)) -> 189.9940582 | O65: =IF(ASV_Daten!$E55="w",((SQRT(K65)-1.0935)/0.00208),IF(ASV_Daten!$E55="m",((SQRT(K65)-1.15028)/0.00219),0)) -> 212.8505527 | P65: =IF(ASV_Daten!E55="w",((SQRT(L65)-2.0232)/0.00874),IF(ASV_Daten!$E55="M",((SQRT(L65)-2.8)/0.011),0)) -> 156.5177336 | Q65: 559 | R65: T | S65: =IF(AND(ASV_Daten!A55="1a",ASV_Daten!E55="m"),"N1m",IF(AND(ASV_Daten!A55="1a",ASV_Daten!E55="w"),"N1w",IF(AND(ASV_Daten!A55="1b",ASV_Daten!E55="w"),"N1w",IF(AND(ASV_Daten!A55="1b",ASV_Daten!E55="m"),"N1m",IF(AND(ASV_Daten!A55="2a",ASV_Daten!E55="m"),"N2m",IF(AND(ASV_Daten!A55="2a",ASV_Daten!E55="w"),"N2w",IF(AND(ASV_Daten!A55="2b",ASV_Daten!E55="w"),"N2w",IF(AND(ASV_Daten!A55="2b",ASV_Daten!E55="m"),"N2m",IF(AND(ASV_Daten!A55="3a",ASV_Daten!E55="m"),"N3m",IF(AND(ASV_Daten!A55="3a",ASV_Daten!E55="w"),"N3w",IF(AND(ASV_Daten!A55="3b",ASV_Daten!E55="w"),"N3w",IF(AND(ASV_Daten!A55="3b",ASV_Daten!E55="m"),"N3m",IF(AND(ASV_Daten!A55="4a",ASV_Daten!E55="m"),"N4m",IF(AND(ASV_Daten!A55="4a",ASV_Daten!E55="w"),"N4w",IF(AND(ASV_Daten!A55="4b",ASV_Daten!E55="m"),"N4m",IF(AND(ASV_Daten!A55="4b",ASV_Daten!E55="w"),"N4w")))))))))))))))) -> FALSE | T65: nix
A66: =IF(ASV_Daten!A65="","",ASV_Daten!A65) -> 5c | B66: =IF(ASV_Daten!B65="","",ASV_Daten!B65) -> woodstock | C66: =IF(ASV_Daten!C65="","",ASV_Daten!C65) -> Neele | D66: =IF(ASV_Daten!D65="","",ASV_Daten!D65) -> 2011 | E66: =IF(ASV_Daten!E65="","",ASV_Daten!E65) -> w | F66: 5cw | G66: =IF(ASV_Daten!D57="","",$B$1-ASV_Daten!$D57) -> 10 | H66: =G66&ASV_Daten!E57 -> 10w | I66: 500 | J66: 9.56 | K66: 2.86 | L66: 7 | M66: =IF(ASV_Daten!E57="w",(((800/I66)-2.0232)/0.00647),(((1000/I66)-2.158)/0.006)) -> -65.40958269 | N66: =IF(ASV_Daten!$E57="w",(((50/(J66+0.24))-3.648)/0.0066),IF(ASV_Daten!$E57="M",(((50/(J66+0.24))-3.79)/0.0069),0)) -> 220.3092146 | O66: =IF(ASV_Daten!$E57="w",((SQRT(K66)-1.0935)/0.00208),IF(ASV_Daten!$E57="m",((SQRT(K66)-1.15028)/0.00219),0)) -> 287.3333906 | P66: =IF(ASV_Daten!E57="w",((SQRT(L66)-2.0232)/0.00874),IF(ASV_Daten!$E57="M",((SQRT(L66)-2.8)/0.011),0)) -> 71.23012712 | Q66: 579 | R66: T | S66: =IF(AND(ASV_Daten!A57="1a",ASV_Daten!E57="m"),"N1m",IF(AND(ASV_Daten!A57="1a",ASV_Daten!E57="w"),"N1w",IF(AND(ASV_Daten!A57="1b",ASV_Daten!E57="w"),"N1w",IF(AND(ASV_Daten!A57="1b",ASV_Daten!E57="m"),"N1m",IF(AND(ASV_Daten!A57="2a",ASV_Daten!E57="m"),"N2m",IF(AND(ASV_Daten!A57="2a",ASV_Daten!E57="w"),"N2w",IF(AND(ASV_Daten!A57="2b",ASV_Daten!E57="w"),"N2w",IF(AND(ASV_Daten!A57="2b",ASV_Daten!E57="m"),"N2m",IF(AND(ASV_Daten!A57="3a",ASV_Daten!E57="m"),"N3m",IF(AND(ASV_Daten!A57="3a",ASV_Daten!E57="w"),"N3w",IF(AND(ASV_Daten!A57="3b",ASV_Daten!E57="w"),"N3w",IF(AND(ASV_Daten!A57="3b",ASV_Daten!E57="m"),"N3m",IF(AND(ASV_Daten!A57="4a",ASV_Daten!E57="m"),"N4m",IF(AND(ASV_Daten!A57="4a",ASV_Daten!E57="w"),"N4w",IF(AND(ASV_Daten!A57="4b",ASV_Daten!E57="m"),"N4m",IF(AND(ASV_Daten!A57="4b",ASV_Daten!E57="w"),"N4w")))))))))))))))) -> FALSE | T66: nix
A67: =IF(ASV_Daten!A66="","",ASV_Daten!A66) -> 5c | B67: =IF(ASV_Daten!B66="","",ASV_Daten!B66) -> Klassen | C67: =IF(ASV_Daten!C66="","",ASV_Daten!C66) -> Leonie | D67: =IF(ASV_Daten!D66="","",ASV_Daten!D66) -> 2010 | E67: =IF(ASV_Daten!E66="","",ASV_Daten!E66) -> w | F67: 5cw | G67: =IF(ASV_Daten!D58="","",$B$1-ASV_Daten!$D58) -> 11 | H67: =G67&ASV_Daten!E58 -> 11w | I67: 500 | J67: 9.15 | K67: 2.56 | L67: 7.5 | M67: =IF(ASV_Daten!E58="w",(((800/I67)-2.0232)/0.00647),(((1000/I67)-2.158)/0.006)) -> -65.40958269 | N67: =IF(ASV_Daten!$E58="w",(((50/(J67+0.24))-3.648)/0.0066),IF(ASV_Daten!$E58="M",(((50/(J67+0.24))-3.79)/0.0069),0)) -> 254.0626714 | O67: =IF(ASV_Daten!$E58="w",((SQRT(K67)-1.0935)/0.00208),IF(ASV_Daten!$E58="m",((SQRT(K67)-1.15028)/0.00219),0)) -> 243.5096154 | P67: =IF(ASV_Daten!E58="w",((SQRT(L67)-2.0232)/0.00874),IF(ASV_Daten!$E58="M",((SQRT(L67)-2.8)/0.011),0)) -> 81.85501001 | Q67: =ROUND((SUM(M67:P67)-MIN(M67:P67)),0) -> 579 | R67: =IF(H67="7w",VLOOKUP(Q67,weiblich8,2),IF(H67="7m",VLOOKUP(Q67,männlich8,2),IF(H67="8w",VLOOKUP(Q67,weiblich8,2),IF(H67="8m",VLOOKUP(Q67,männlich8,2),IF(H67="9w",VLOOKUP(Q67,weiblich9,2),IF(H67="9m",VLOOKUP(Q67,männlich9,2),IF(H67="10w",VLOOKUP(Q67,weiblich10,2),IF(H67="10m",VLOOKUP(Q67,männlich10,2),IF(H67="11w",VLOOKUP(Q67,weiblich11,2),IF(H67="11m",VLOOKUP(Q67,männlich11,2),IF(H67="12w",VLOOKUP(Q67,weiblich12,2),IF(H67="12m",VLOOKUP(Q67,männlich12,2),"H")))))))))))) -> T | S67: =IF(AND(ASV_Daten!A58="1a",ASV_Daten!E58="m"),"N1m",IF(AND(ASV_Daten!A58="1a",ASV_Daten!E58="w"),"N1w",IF(AND(ASV_Daten!A58="1b",ASV_Daten!E58="w"),"N1w",IF(AND(ASV_Daten!A58="1b",ASV_Daten!E58="m"),"N1m",IF(AND(ASV_Daten!A58="2a",ASV_Daten!E58="m"),"N2m",IF(AND(ASV_Daten!A58="2a",ASV_Daten!E58="w"),"N2w",IF(AND(ASV_Daten!A58="2b",ASV_Daten!E58="w"),"N2w",IF(AND(ASV_Daten!A58="2b",ASV_Daten!E58="m"),"N2m",IF(AND(ASV_Daten!A58="3a",ASV_Daten!E58="m"),"N3m",IF(AND(ASV_Daten!A58="3a",ASV_Daten!E58="w"),"N3w",IF(AND(ASV_Daten!A58="3b",ASV_Daten!E58="w"),"N3w",IF(AND(ASV_Daten!A58="3b",ASV_Daten!E58="m"),"N3m",IF(AND(ASV_Daten!A58="4a",ASV_Daten!E58="m"),"N4m",IF(AND(ASV_Daten!A58="4a",ASV_Daten!E58="w"),"N4w",IF(AND(ASV_Daten!A58="4b",ASV_Daten!E58="m"),"N4m",IF(AND(ASV_Daten!A58="4b",ASV_Daten!E58="w"),"N4w")))))))))))))))) -> FALSE | T67: =IF(S67="n1m",VLOOKUP(Q67,N1m,2),IF(S67="N1w",VLOOKUP(Q67,N1w,2),IF(S67="N2m",VLOOKUP(Q67,n2m,2),IF(S67="N2w",VLOOKUP(Q67,n2w,2),IF(S67="N3w",VLOOKUP(Q67,n3w,2),IF(S67="N3m",VLOOKUP(Q67,n3m,2),IF(S67="N4w",VLOOKUP(Q67,n4w,2),IF(S67="N4m",VLOOKUP(Q67,n4m,2),"nix")))))))) -> nix
A68: =IF(ASV_Daten!A67="","",ASV_Daten!A67) -> 5c | B68: =IF(ASV_Daten!B67="","",ASV_Daten!B67) -> Moll | C68: =IF(ASV_Daten!C67="","",ASV_Daten!C67) -> Quirinia | D68: =IF(ASV_Daten!D67="","",ASV_Daten!D67) -> 2011 | E68: =IF(ASV_Daten!E67="","",ASV_Daten!E67) -> w | F68: 5cw | G68: =IF(ASV_Daten!D59="","",$B$1-ASV_Daten!$D59) -> 11 | H68: =G68&ASV_Daten!E59 -> 11w | I68: 500 | J68: 10 | K68: 2.7 | L68: 10 | M68: =IF(ASV_Daten!E59="w",(((800/I68)-2.0232)/0.00647),(((1000/I68)-2.158)/0.006)) -> -65.40958269 | N68: =IF(ASV_Daten!$E59="w",(((50/(J68+0.24))-3.648)/0.0066),IF(ASV_Daten!$E59="M",(((50/(J68+0.24))-3.79)/0.0069),0)) -> 187.092803 | O68: =IF(ASV_Daten!$E59="w",((SQRT(K68)-1.0935)/0.00208),IF(ASV_Daten!$E59="m",((SQRT(K68)-1.15028)/0.00219),0)) -> 264.2633041 | P68: =IF(ASV_Daten!E59="w",((SQRT(L68)-2.0232)/0.00874),IF(ASV_Daten!$E59="M",((SQRT(L68)-2.8)/0.011),0)) -> 130.3292517 | Q68: 582 | R68: T | S68: =IF(AND(ASV_Daten!A59="1a",ASV_Daten!E59="m"),"N1m",IF(AND(ASV_Daten!A59="1a",ASV_Daten!E59="w"),"N1w",IF(AND(ASV_Daten!A59="1b",ASV_Daten!E59="w"),"N1w",IF(AND(ASV_Daten!A59="1b",ASV_Daten!E59="m"),"N1m",IF(AND(ASV_Daten!A59="2a",ASV_Daten!E59="m"),"N2m",IF(AND(ASV_Daten!A59="2a",ASV_Daten!E59="w"),"N2w",IF(AND(ASV_Daten!A59="2b",ASV_Daten!E59="w"),"N2w",IF(AND(ASV_Daten!A59="2b",ASV_Daten!E59="m"),"N2m",IF(AND(ASV_Daten!A59="3a",ASV_Daten!E59="m"),"N3m",IF(AND(ASV_Daten!A59="3a",ASV_Daten!E59="w"),"N3w",IF(AND(ASV_Daten!A59="3b",ASV_Daten!E59="w"),"N3w",IF(AND(ASV_Daten!A59="3b",ASV_Daten!E59="m"),"N3m",IF(AND(ASV_Daten!A59="4a",ASV_Daten!E59="m"),"N4m",IF(AND(ASV_Daten!A59="4a",ASV_Daten!E59="w"),"N4w",IF(AND(ASV_Daten!A59="4b",ASV_Daten!E59="m"),"N4m",IF(AND(ASV_Daten!A59="4b",ASV_Daten!E59="w"),"N4w")))))))))))))))) -> FALSE | T68: nix
A69: =IF(ASV_Daten!A68="","",ASV_Daten!A68) -> 5c | B69: =IF(ASV_Daten!B68="","",ASV_Daten!B68) -> Salger | C69: =IF(ASV_Daten!C68="","",ASV_Daten!C68) -> Stephanie | D69: =IF(ASV_Daten!D68="","",ASV_Daten!D68) -> 2011 | E69: =IF(ASV_Daten!E68="","",ASV_Daten!E68) -> w | F69: =A69&E69 -> 5cw | G69: =IF(ASV_Daten!D60="","",$B$1-ASV_Daten!$D60) -> 10 | H69: =G69&ASV_Daten!E60 -> 10w | I69: 500 | J69: 9.56 | K69: 2.6 | L69: 10 | M69: =IF(ASV_Daten!E60="w",(((800/I69)-2.0232)/0.00647),(((1000/I69)-2.158)/0.006)) -> -65.40958269 | N69: =IF(ASV_Daten!$E60="w",(((50/(J69+0.24))-3.648)/0.0066),IF(ASV_Daten!$E60="M",(((50/(J69+0.24))-3.79)/0.0069),0)) -> 220.3092146 | O69: =IF(ASV_Daten!$E60="w",((SQRT(K69)-1.0935)/0.00208),IF(ASV_Daten!$E60="m",((SQRT(K69)-1.15028)/0.00219),0)) -> 249.4959373 | P69: =IF(ASV_Daten!E60="w",((SQRT(L69)-2.0232)/0.00874),IF(ASV_Daten!$E60="M",((SQRT(L69)-2.8)/0.011),0)) -> 130.3292517 | Q69: 600 | R69: T | S69: =IF(AND(ASV_Daten!A60="1a",ASV_Daten!E60="m"),"N1m",IF(AND(ASV_Daten!A60="1a",ASV_Daten!E60="w"),"N1w",IF(AND(ASV_Daten!A60="1b",ASV_Daten!E60="w"),"N1w",IF(AND(ASV_Daten!A60="1b",ASV_Daten!E60="m"),"N1m",IF(AND(ASV_Daten!A60="2a",ASV_Daten!E60="m"),"N2m",IF(AND(ASV_Daten!A60="2a",ASV_Daten!E60="w"),"N2w",IF(AND(ASV_Daten!A60="2b",ASV_Daten!E60="w"),"N2w",IF(AND(ASV_Daten!A60="2b",ASV_Daten!E60="m"),"N2m",IF(AND(ASV_Daten!A60="3a",ASV_Daten!E60="m"),"N3m",IF(AND(ASV_Daten!A60="3a",ASV_Daten!E60="w"),"N3w",IF(AND(ASV_Daten!A60="3b",ASV_Daten!E60="w"),"N3w",IF(AND(ASV_Daten!A60="3b",ASV_Daten!E60="m"),"N3m",IF(AND(ASV_Daten!A60="4a",ASV_Daten!E60="m"),"N4m",IF(AND(ASV_Daten!A60="4a",ASV_Daten!E60="w"),"N4w",IF(AND(ASV_Daten!A60="4b",ASV_Daten!E60="m"),"N4m",IF(AND(ASV_Daten!A60="4b",ASV_Daten!E60="w"),"N4w")))))))))))))))) -> FALSE | T69: nix
A70: =IF(ASV_Daten!A69="","",ASV_Daten!A69) -> 5c | B70: =IF(ASV_Daten!B69="","",ASV_Daten!B69) -> Steinhart | C70: =IF(ASV_Daten!C69="","",ASV_Daten!C69) -> Philippa | D70: =IF(ASV_Daten!D69="","",ASV_Daten!D69) -> 2011 | E70: =IF(ASV_Daten!E69="","",ASV_Daten!E69) -> w | F70: 5cw | G70: =IF(ASV_Daten!D62="","",$B$1-ASV_Daten!$D62) -> 10 | H70: =G70&ASV_Daten!E62 -> 10w | I70: 500 | J70: 10.4 | K70: 2.86 | L70: 13 | M70: =IF(ASV_Daten!E62="w",(((800/I70)-2.0232)/0.00647),(((1000/I70)-2.158)/0.006)) -> -65.40958269 | N70: =IF(ASV_Daten!$E62="w",(((50/(J70+0.24))-3.648)/0.0066),IF(ASV_Daten!$E62="M",(((50/(J70+0.24))-3.79)/0.0069),0)) -> 159.2800182 | O70: =IF(ASV_Daten!$E62="w",((SQRT(K70)-1.0935)/0.00208),IF(ASV_Daten!$E62="m",((SQRT(K70)-1.15028)/0.00219),0)) -> 287.3333906 | P70: =IF(ASV_Daten!E62="w",((SQRT(L70)-2.0232)/0.00874),IF(ASV_Daten!$E62="M",((SQRT(L70)-2.8)/0.011),0)) -> 181.0470567 | Q70: 628 | R70: S | S70: =IF(AND(ASV_Daten!A62="1a",ASV_Daten!E62="m"),"N1m",IF(AND(ASV_Daten!A62="1a",ASV_Daten!E62="w"),"N1w",IF(AND(ASV_Daten!A62="1b",ASV_Daten!E62="w"),"N1w",IF(AND(ASV_Daten!A62="1b",ASV_Daten!E62="m"),"N1m",IF(AND(ASV_Daten!A62="2a",ASV_Daten!E62="m"),"N2m",IF(AND(ASV_Daten!A62="2a",ASV_Daten!E62="w"),"N2w",IF(AND(ASV_Daten!A62="2b",ASV_Daten!E62="w"),"N2w",IF(AND(ASV_Daten!A62="2b",ASV_Daten!E62="m"),"N2m",IF(AND(ASV_Daten!A62="3a",ASV_Daten!E62="m"),"N3m",IF(AND(ASV_Daten!A62="3a",ASV_Daten!E62="w"),"N3w",IF(AND(ASV_Daten!A62="3b",ASV_Daten!E62="w"),"N3w",IF(AND(ASV_Daten!A62="3b",ASV_Daten!E62="m"),"N3m",IF(AND(ASV_Daten!A62="4a",ASV_Daten!E62="m"),"N4m",IF(AND(ASV_Daten!A62="4a",ASV_Daten!E62="w"),"N4w",IF(AND(ASV_Daten!A62="4b",ASV_Daten!E62="m"),"N4m",IF(AND(ASV_Daten!A62="4b",ASV_Daten!E62="w"),"N4w")))))))))))))))) -> FALSE | T70: nix
A71: =IF(ASV_Daten!A70="","",ASV_Daten!A70) -> 5c | B71: =IF(ASV_Daten!B70="","",ASV_Daten!B70) -> wein | C71: =IF(ASV_Daten!C70="","",ASV_Daten!C70) -> Daniela | D71: =IF(ASV_Daten!D70="","",ASV_Daten!D70) -> 2011 | E71: =IF(ASV_Daten!E70="","",ASV_Daten!E70) -> w | F71: 5cw | G71: =IF(ASV_Daten!D63="","",$B$1-ASV_Daten!$D63) -> 10 | H71: =G71&ASV_Daten!E63 -> 10w | I71: 500 | J71: 9.84 | K71: 2.78 | L71: 11.5 | M71: =IF(ASV_Daten!E63="w",(((800/I71)-2.0232)/0.00647),(((1000/I71)-2.158)/0.006)) -> -65.40958269 | N71: =IF(ASV_Daten!$E63="w",(((50/(J71+0.24))-3.648)/0.0066),IF(ASV_Daten!$E63="M",(((50/(J71+0.24))-3.79)/0.0069),0)) -> 198.8359788 | O71: =IF(ASV_Daten!$E63="w",((SQRT(K71)-1.0935)/0.00208),IF(ASV_Daten!$E63="m",((SQRT(K71)-1.15028)/0.00219),0)) -> 275.8813462 | P71: =IF(ASV_Daten!E63="w",((SQRT(L71)-2.0232)/0.00874),IF(ASV_Daten!$E63="M",((SQRT(L71)-2.8)/0.011),0)) -> 156.5177336 | Q71: 631 | R71: S | S71: =IF(AND(ASV_Daten!A63="1a",ASV_Daten!E63="m"),"N1m",IF(AND(ASV_Daten!A63="1a",ASV_Daten!E63="w"),"N1w",IF(AND(ASV_Daten!A63="1b",ASV_Daten!E63="w"),"N1w",IF(AND(ASV_Daten!A63="1b",ASV_Daten!E63="m"),"N1m",IF(AND(ASV_Daten!A63="2a",ASV_Daten!E63="m"),"N2m",IF(AND(ASV_Daten!A63="2a",ASV_Daten!E63="w"),"N2w",IF(AND(ASV_Daten!A63="2b",ASV_Daten!E63="w"),"N2w",IF(AND(ASV_Daten!A63="2b",ASV_Daten!E63="m"),"N2m",IF(AND(ASV_Daten!A63="3a",ASV_Daten!E63="m"),"N3m",IF(AND(ASV_Daten!A63="3a",ASV_Daten!E63="w"),"N3w",IF(AND(ASV_Daten!A63="3b",ASV_Daten!E63="w"),"N3w",IF(AND(ASV_Daten!A63="3b",ASV_Daten!E63="m"),"N3m",IF(AND(ASV_Daten!A63="4a",ASV_Daten!E63="m"),"N4m",IF(AND(ASV_Daten!A63="4a",ASV_Daten!E63="w"),"N4w",IF(AND(ASV_Daten!A63="4b",ASV_Daten!E63="m"),"N4m",IF(AND(ASV_Daten!A63="4b",ASV_Daten!E63="w"),"N4w")))))))))))))))) -> FALSE | T71: nix
A72: =IF(ASV_Daten!A71="","",ASV_Daten!A71) -> 5c | B72: =IF(ASV_Daten!B71="","",ASV_Daten!B71) -> willsch | C72: =IF(ASV_Daten!C71="","",ASV_Daten!C71) -> Maria | D72: =IF(ASV_Daten!D71="","",ASV_Daten!D71) -> 2011 | E72: =IF(ASV_Daten!E71="","",ASV_Daten!E71) -> w | F72: 5cw | G72: =IF(ASV_Daten!D66="","",$B$1-ASV_Daten!$D66) -> 11 | H72: =G72&ASV_Daten!E66 -> 11w | I72: 500 | J72: 11.81 | K72: 1.7 | L72: 9.5 | M72: =IF(ASV_Daten!E66="w",(((800/I72)-2.0232)/0.00647),(((1000/I72)-2.158)/0.006)) -> -65.40958269 | N72: =IF(ASV_Daten!$E66="w",(((50/(J72+0.24))-3.648)/0.0066),IF(ASV_Daten!$E66="M",(((50/(J72+0.24))-3.79)/0.0069),0)) -> 75.96630202 | O72: =IF(ASV_Daten!$E66="w",((SQRT(K72)-1.0935)/0.00208),IF(ASV_Daten!$E66="m",((SQRT(K72)-1.15028)/0.00219),0)) -> 101.1252313 | P72: =IF(ASV_Daten!E66="w",((SQRT(L72)-2.0232)/0.00874),IF(ASV_Daten!$E66="M",((SQRT(L72)-2.8)/0.011),0)) -> 121.1678491 | Q72: 298 | R72: T | S72: =IF(AND(ASV_Daten!A66="1a",ASV_Daten!E66="m"),"N1m",IF(AND(ASV_Daten!A66="1a",ASV_Daten!E66="w"),"N1w",IF(AND(ASV_Daten!A66="1b",ASV_Daten!E66="w"),"N1w",IF(AND(ASV_Daten!A66="1b",ASV_Daten!E66="m"),"N1m",IF(AND(ASV_Daten!A66="2a",ASV_Daten!E66="m"),"N2m",IF(AND(ASV_Daten!A66="2a",ASV_Daten!E66="w"),"N2w",IF(AND(ASV_Daten!A66="2b",ASV_Daten!E66="w"),"N2w",IF(AND(ASV_Daten!A66="2b",ASV_Daten!E66="m"),"N2m",IF(AND(ASV_Daten!A66="3a",ASV_Daten!E66="m"),"N3m",IF(AND(ASV_Daten!A66="3a",ASV_Daten!E66="w"),"N3w",IF(AND(ASV_Daten!A66="3b",ASV_Daten!E66="w"),"N3w",IF(AND(ASV_Daten!A66="3b",ASV_Daten!E66="m"),"N3m",IF(AND(ASV_Daten!A66="4a",ASV_Daten!E66="m"),"N4m",IF(AND(ASV_Daten!A66="4a",ASV_Daten!E66="w"),"N4w",IF(AND(ASV_Daten!A66="4b",ASV_Daten!E66="m"),"N4m",IF(AND(ASV_Daten!A66="4b",ASV_Daten!E66="w"),"N4w")))))))))))))))) -> FALSE | T72: nix
A73: =IF(ASV_Daten!A72="","",ASV_Daten!A72) -> 5c | B73: =IF(ASV_Daten!B72="","",ASV_Daten!B72) -> woodstock | C73: =IF(ASV_Daten!C72="","",ASV_Daten!C72) -> Neele | D73: =IF(ASV_Daten!D72="","",ASV_Daten!D72) -> 2011 | E73: =IF(ASV_Daten!E72="","",ASV_Daten!E72) -> w | F73: 5cw | G73: =IF(ASV_Daten!D72="","",$B$1-ASV_Daten!$D72) -> 10 | H73: =G73&ASV_Daten!E72 -> 10w | I73: 354 | J73: 11.07 | K73: 2.5 | L73: 9.5 | M73: =IF(ASV_Daten!E72="w",(((800/I73)-2.0232)/0.00647),(((1000/I73)-2.158)/0.006)) -> 36.58222653 | N73: =IF(ASV_Daten!$E72="w",(((50/(J73+0.24))-3.648)/0.0066),IF(ASV_Daten!$E72="M",(((50/(J73+0.24))-3.79)/0.0069),0)) -> 117.1009833 | O73: =IF(ASV_Daten!$E72="w",((SQRT(K73)-1.0935)/0.00208),IF(ASV_Daten!$E72="m",((SQRT(K73)-1.15028)/0.00219),0)) -> 234.4417452 | P73: =IF(ASV_Daten!E72="w",((SQRT(L73)-2.0232)/0.00874),IF(ASV_Daten!$E72="M",((SQRT(L73)-2.8)/0.011),0)) -> 121.1678491 | Q73: 473 | R73: T | S73: =IF(AND(ASV_Daten!A72="1a",ASV_Daten!E72="m"),"N1m",IF(AND(ASV_Daten!A72="1a",ASV_Daten!E72="w"),"N1w",IF(AND(ASV_Daten!A72="1b",ASV_Daten!E72="w"),"N1w",IF(AND(ASV_Daten!A72="1b",ASV_Daten!E72="m"),"N1m",IF(AND(ASV_Daten!A72="2a",ASV_Daten!E72="m"),"N2m",IF(AND(ASV_Daten!A72="2a",ASV_Daten!E72="w"),"N2w",IF(AND(ASV_Daten!A72="2b",ASV_Daten!E72="w"),"N2w",IF(AND(ASV_Daten!A72="2b",ASV_Daten!E72="m"),"N2m",IF(AND(ASV_Daten!A72="3a",ASV_Daten!E72="m"),"N3m",IF(AND(ASV_Daten!A72="3a",ASV_Daten!E72="w"),"N3w",IF(AND(ASV_Daten!A72="3b",ASV_Daten!E72="w"),"N3w",IF(AND(ASV_Daten!A72="3b",ASV_Daten!E72="m"),"N3m",IF(AND(ASV_Daten!A72="4a",ASV_Daten!E72="m"),"N4m",IF(AND(ASV_Daten!A72="4a",ASV_Daten!E72="w"),"N4w",IF(AND(ASV_Daten!A72="4b",ASV_Daten!E72="m"),"N4m",IF(AND(ASV_Daten!A72="4b",ASV_Daten!E72="w"),"N4w")))))))))))))))) -> FALSE | T73: nix
A74: =IF(ASV_Daten!A73="","",ASV_Daten!A73) -> 5c | B74: =IF(ASV_Daten!B73="","",ASV_Daten!B73) -> Klassen | C74: =IF(ASV_Daten!C73="","",ASV_Daten!C73) -> Leonie | D74: =IF(ASV_Daten!D73="","",ASV_Daten!D73) -> 2010 | E74: =IF(ASV_Daten!E73="","",ASV_Daten!E73) -> w | F74: 5cw | G74: =IF(D74="","",$B$1-$D74) -> 11 | H74: =G74&E74 -> 11w | I74: 343 | J74: 11.19 | K74: 2.64 | L74: 11 | M74: =IF(E74="w",(((800/I74)-2.0232)/0.00647),(((1000/I74)-2.158)/0.006)) -> 47.78385101 | N74: =IF($E74="w",(((50/(J74+0.24))-3.648)/0.0066),IF($E74="M",(((50/(J74+0.24))-3.79)/0.0069),0)) -> 110.0686657 | O74: =IF($E74="w",((SQRT(K74)-1.0935)/0.00208),IF($E74="m",((SQRT(K74)-1.15028)/0.00219),0)) -> 255.4363851 | P74: =IF(E74="w",((SQRT(L74)-2.0232)/0.00874),IF($E74="M",((SQRT(L74)-2.8)/0.011),0)) -> 147.9891064 | Q74: 513 | R74: T | S74: =IF(AND(A74="1a",E74="m"),"N1m",IF(AND(A74="1a",E74="w"),"N1w",IF(AND(A74="1b",E74="w"),"N1w",IF(AND(A74="1b",E74="m"),"N1m",IF(AND(A74="2a",E74="m"),"N2m",IF(AND(A74="2a",E74="w"),"N2w",IF(AND(A74="2b",E74="w"),"N2w",IF(AND(A74="2b",E74="m"),"N2m",IF(AND(A74="3a",E74="m"),"N3m",IF(AND(A74="3a",E74="w"),"N3w",IF(AND(A74="3b",E74="w"),"N3w",IF(AND(A74="3b",E74="m"),"N3m",IF(AND(A74="4a",E74="m"),"N4m",IF(AND(A74="4a",E74="w"),"N4w",IF(AND(A74="4b",E74="m"),"N4m",IF(AND(A74="4b",E74="w"),"N4w")))))))))))))))) -> FALSE | T74: nix
A75: =IF(ASV_Daten!A74="","",ASV_Daten!A74) -> 5c | B75: =IF(ASV_Daten!B74="","",ASV_Daten!B74) -> Moll | C75: =IF(ASV_Daten!C74="","",ASV_Daten!C74) -> Quirinia | D75: =IF(ASV_Daten!D74="","",ASV_Daten!D74) -> 2011 | E75: =IF(ASV_Daten!E74="","",ASV_Daten!E74) -> w | F75: 5cw | G75: 10 | H75: 10w | I75: 334 | J75: 10.09 | K75: 2.42 | L75: 10 | M75: 57.49761682 | N75: 180.6471296 | O75: 222.1802493 | P75: 130.3292517 | Q75: 533 | R75: T | S75: FALSE | T75: nix
A76: =IF(ASV_Daten!A75="","",ASV_Daten!A75) -> 5c | B76: =IF(ASV_Daten!B75="","",ASV_Daten!B75) -> Salger | C76: =IF(ASV_Daten!C75="","",ASV_Daten!C75) -> Stephanie | D76: =IF(ASV_Daten!D75="","",ASV_Daten!D75) -> 2011 | E76: =IF(ASV_Daten!E75="","",ASV_Daten!E75) -> w | F76: 5cw | G76: 10 | H76: 10w | I76: 337 | J76: 9.69 | K76: 2.76 | L76: 14.5 | M76: 54.20204642 | N76: 210.188898 | O76: 272.9926791 | P76: 204.1975461 | Q76: 687 | R76: S | S76: FALSE | T76: nix
A77: =IF(ASV_Daten!A76="","",ASV_Daten!A76) -> 5c | B77: =IF(ASV_Daten!B76="","",ASV_Daten!B76) -> Steinhart | C77: =IF(ASV_Daten!C76="","",ASV_Daten!C76) -> Philippa | D77: =IF(ASV_Daten!D76="","",ASV_Daten!D76) -> 2011 | E77: =IF(ASV_Daten!E76="","",ASV_Daten!E76) -> w | F77: 5cw | G77: 10 | H77: 10w | I77: 325 | J77: 9.25 | K77: 2.8 | L77: 19.5 | M77: 67.74937582 | N77: 245.5611968 | O77: 278.7596409 | P77: 273.7620633 | Q77: 798 | R77: S | S77: FALSE | T77: nix
A78: =IF(ASV_Daten!A77="","",ASV_Daten!A77) -> 5c | B78: =IF(ASV_Daten!B77="","",ASV_Daten!B77) -> wein | C78: =IF(ASV_Daten!C77="","",ASV_Daten!C77) -> Daniela | D78: =IF(ASV_Daten!D77="","",ASV_Daten!D77) -> 2011 | E78: =IF(ASV_Daten!E77="","",ASV_Daten!E77) -> w | F78: 5cw | G78: 10 | H78: 10w | I78: 276 | J78: 9.88 | K78: 2.82 | L78: 10 | M78: 135.2937751 | N78: 195.8653731 | O78: 281.6276742 | P78: 130.3292517 | Q78: 613 | R78: T | S78: FALSE | T78: nix
A79: =IF(ASV_Daten!A78="","",ASV_Daten!A78) -> 5c | B79: =IF(ASV_Daten!B78="","",ASV_Daten!B78) -> willsch | C79: =IF(ASV_Daten!C78="","",ASV_Daten!C78) -> Maria | D79: =IF(ASV_Daten!D78="","",ASV_Daten!D78) -> 2011 | E79: =IF(ASV_Daten!E78="","",ASV_Daten!E78) -> w | F79: 5cw | G79: 10 | H79: 10w | I79: 500 | J79: 9.44 | K79: 2.6 | L79: 13 | M79: -65.40958269 | N79: 229.8923115 | O79: 249.4959373 | P79: 181.0470567 | Q79: 660 | R79: S | S79: FALSE | T79: nix
A80: =IF(ASV_Daten!A79="","",ASV_Daten!A79) -> 5c | B80: =IF(ASV_Daten!B79="","",ASV_Daten!B79) -> woodstock | C80: =IF(ASV_Daten!C79="","",ASV_Daten!C79) -> Neele | D80: =IF(ASV_Daten!D79="","",ASV_Daten!D79) -> 2011 | E80: =IF(ASV_Daten!E79="","",ASV_Daten!E79) -> w | F80: 5cw | G80: 10 | H80: 10w | I80: 281 | J80: 9.78 | K80: 2.86 | L80: 12.5 | M80: 127.3222703 | N80: 203.3363576 | O80: 287.3333906 | P80: 173.035916 | Q80: 664 | R80: S | S80: FALSE | T80: nix
A81: =IF(ASV_Daten!A80="","",ASV_Daten!A80) -> 5d | B81: =IF(ASV_Daten!B80="","",ASV_Daten!B80) -> Adler | C81: =IF(ASV_Daten!C80="","",ASV_Daten!C80) -> Marja | D81: =IF(ASV_Daten!D80="","",ASV_Daten!D80) -> 2011 | E81: =IF(ASV_Daten!E80="","",ASV_Daten!E80) -> w | F81: 5dw | G81: 10 | H81: 10w | I81: 289 | J81: 9.44 | K81: 3.14 | L81: 17 | M81: 115.1415904 | N81: 229.8923115 | O81: 326.2040936 | P81: 240.2638016 | Q81: 796 | R81: S | S81: FALSE | T81: nix
A82: =IF(ASV_Daten!A81="","",ASV_Daten!A81) -> 5d | B82: =IF(ASV_Daten!B81="","",ASV_Daten!B81) -> Jannowski | C82: =IF(ASV_Daten!C81="","",ASV_Daten!C81) -> Sonja | D82: =IF(ASV_Daten!D81="","",ASV_Daten!D81) -> 2011 | E82: =IF(ASV_Daten!E81="","",ASV_Daten!E81) -> w | F82: 5dw | G82: 10 | H82: 10w | I82: 253 | J82: 8.97 | K82: 2.6 | L82: 15 | M82: 176.0209175 | N82: 269.8305531 | O82: 249.4959373 | P82: 211.6456918 | Q82: 731 | R82: S | S82: FALSE | T82: nix
A83: =IF(ASV_Daten!A82="","",ASV_Daten!A82) -> 5d | B83: =IF(ASV_Daten!B82="","",ASV_Daten!B82) -> Lowsano | C83: =IF(ASV_Daten!C82="","",ASV_Daten!C82) -> Simon | D83: =IF(ASV_Daten!D82="","",ASV_Daten!D82) -> 2011 | E83: =IF(ASV_Daten!E82="","",ASV_Daten!E82) -> m | F83: 5dm | G83: 10 | H83: 10m | I83: 305 | J83: 10.12 | K83: 2.55 | L83: 10 | M83: 186.7814208 | N83: 150.1818589 | O83: 203.9232613 | P83: 32.93433274 | Q83: 541 | R83: T | S83: FALSE | T83: nix
A84: =IF(ASV_Daten!A83="","",ASV_Daten!A83) -> 5d | B84: =IF(ASV_Daten!B83="","",ASV_Daten!B83) -> Pretlow | C84: =IF(ASV_Daten!C83="","",ASV_Daten!C83) -> Janus | D84: =IF(ASV_Daten!D83="","",ASV_Daten!D83) -> 2011 | E84: =IF(ASV_Daten!E83="","",ASV_Daten!E83) -> m | F84: 5dm | G84: 10 | H84: 10m | I84: 318 | J84: 9.78 | K84: 2.66 | L84: 6.5 | M84: 164.442348 | N84: 173.9159362 | O84: 219.4843119 | P84: -22.77184029 | Q84: 558 | R84: T | S84: FALSE | T84: nix
A85: =IF(ASV_Daten!A84="","",ASV_Daten!A84) -> 5d | B85: =IF(ASV_Daten!B84="","",ASV_Daten!B84) -> Schibar | C85: =IF(ASV_Daten!C84="","",ASV_Daten!C84) -> Mara | D85: =IF(ASV_Daten!D84="","",ASV_Daten!D84) -> 2011 | E85: =IF(ASV_Daten!E84="","",ASV_Daten!E84) -> w | F85: 5dw | G85: 10 | H85: 10w | I85: 327 | J85: 10.16 | K85: 2.54 | L85: 11 | M85: 65.42243902 | N85: 175.7109557 | O85: 240.4989159 | P85: 147.9891064 | Q85: 564 | R85: T | S85: FALSE | T85: nix
A86: =IF(ASV_Daten!A85="","",ASV_Daten!A85) -> 5d | B86: =IF(ASV_Daten!B85="","",ASV_Daten!B85) -> Schulze | C86: =IF(ASV_Daten!C85="","",ASV_Daten!C85) -> Anjoschka | D86: =IF(ASV_Daten!D85="","",ASV_Daten!D85) -> 2011 | E86: =IF(ASV_Daten!E85="","",ASV_Daten!E85) -> w | F86: 5dw | G86: 10 | H86: 10w | I86: 361 | J86: 9 | K86: 3.22 | L86: 24 | M86: 29.80934807 | N86: 267.1599108 | O86: 336.9883868 | P86: 329.0365544 | Q86: 933 | R86: E | S86: FALSE | T86: nix
A87: =IF(ASV_Daten!A86="","",ASV_Daten!A86) -> 5d | B87: =IF(ASV_Daten!B86="","",ASV_Daten!B86) -> wlodomar | C87: =IF(ASV_Daten!C86="","",ASV_Daten!C86) -> Hermann | D87: =IF(ASV_Daten!D86="","",ASV_Daten!D86) -> 2011 | E87: =IF(ASV_Daten!E86="","",ASV_Daten!E86) -> m | F87: 5dm | G87: 10 | H87: 10m | I87: 253 | J87: 9.12 | K87: 2.68 | L87: 15 | M87: 299.0948617 | N87: 224.9101945 | O87: 222.278792 | P87: 97.54394056 | Q87: 746 | R87: S | S87: FALSE | T87: nix
A88: =IF(ASV_Daten!A87="","",ASV_Daten!A87) -> 5d | B88: =IF(ASV_Daten!B87="","",ASV_Daten!B87) -> Birkus | C88: =IF(ASV_Daten!C87="","",ASV_Daten!C87) -> Yvo | D88: =IF(ASV_Daten!D87="","",ASV_Daten!D87) -> 2011 | E88: =IF(ASV_Daten!E87="","",ASV_Daten!E87) -> m | F88: 5dm | G88: 10 | H88: 10m | I88: 256 | J88: 9 | K88: 2.82 | L88: 13 | M88: 291.375 | N88: 234.9645524 | O88: 241.5550513 | P88: 73.23193413 | Q88: 768 | R88: S | S88: FALSE | T88: nix
A89: =IF(ASV_Daten!A88="","",ASV_Daten!A88) -> 5d | B89: =IF(ASV_Daten!B88="","",ASV_Daten!B88) -> Adler | C89: =IF(ASV_Daten!C88="","",ASV_Daten!C88) -> Marja | D89: =IF(ASV_Daten!D88="","",ASV_Daten!D88) -> 2011 | E89: =IF(ASV_Daten!E88="","",ASV_Daten!E88) -> w | F89: 5dw | G89: 10 | H89: 10w | I89: 352 | J89: 9.53 | K89: 2.5 | L89: 19.5 | M89: 38.56681186 | N89: 222.6829193 | O89: 234.4417452 | P89: 273.7620633 | Q89: 731 | R89: S | S89: FALSE | T89: nix
A90: =IF(ASV_Daten!A89="","",ASV_Daten!A89) -> 5d | B90: =IF(ASV_Daten!B89="","",ASV_Daten!B89) -> Jannowski | C90: =IF(ASV_Daten!C89="","",ASV_Daten!C89) -> Sonja | D90: =IF(ASV_Daten!D89="","",ASV_Daten!D89) -> 2011 | E90: =IF(ASV_Daten!E89="","",ASV_Daten!E89) -> w | F90: 5dw | G90: 10 | H90: 10w | I90: 283 | J90: 8.34 | K90: 2.83 | L90: 9.5 | M90: 124.2125384 | N90: 330.2281557 | O90: 283.057877 | P90: 121.1678491 | Q90: 737 | R90: S | S90: FALSE | T90: nix
A91: =IF(ASV_Daten!A90="","",ASV_Daten!A90) -> 5d | B91: =IF(ASV_Daten!B90="","",ASV_Daten!B90) -> Lowsano | C91: =IF(ASV_Daten!C90="","",ASV_Daten!C90) -> Simon | D91: =IF(ASV_Daten!D90="","",ASV_Daten!D90) -> 2011 | E91: =IF(ASV_Daten!E90="","",ASV_Daten!E90) -> m | F91: 5dm | G91: 10 | H91: 10m | I91: 327 | J91: 8.66 | K91: 3.38 | L91: 25 | M91: 150.0173293 | N91: 264.9242794 | O91: 314.2454936 | P91: 200 | Q91: 779 | R91: E | S91: FALSE | T91: nix
A92: =IF(ASV_Daten!A91="","",ASV_Daten!A91) -> 5d | B92: =IF(ASV_Daten!B91="","",ASV_Daten!B91) -> Pretlow | C92: =IF(ASV_Daten!C91="","",ASV_Daten!C91) -> Janus | D92: =IF(ASV_Daten!D91="","",ASV_Daten!D91) -> 2011 | E92: =IF(ASV_Daten!E91="","",ASV_Daten!E91) -> m | F92: 5dm | G92: 10 | H92: 10m | I92: 328 | J92: 8.75 | K92: 3.24 | L92: 30.5 | M92: 148.4634146 | N92: 256.7732263 | O92: 296.6757991 | P92: 247.5164099 | Q92: 801 | R92: E | S92: FALSE | T92: nix
A93: =IF(ASV_Daten!A92="","",ASV_Daten!A92) -> 5d | B93: =IF(ASV_Daten!B92="","",ASV_Daten!B92) -> Schibar | C93: =IF(ASV_Daten!C92="","",ASV_Daten!C92) -> Mara | D93: =IF(ASV_Daten!D92="","",ASV_Daten!D92) -> 2011 | E93: =IF(ASV_Daten!E92="","",ASV_Daten!E92) -> w | F93: 5dw | G93: 10 | H93: 10w | I93: 626 | J93: 18.97 | K93: 1.7 | L93: 16.5 | M93: -115.1846566 | N93: -158.3619643 | O93: 101.1252313 | P93: 233.2745083 | Q93: 219 | R93: T | S93: FALSE | T93: nix
A94: =IF(ASV_Daten!A93="","",ASV_Daten!A93) -> 5d | B94: =IF(ASV_Daten!B93="","",ASV_Daten!B93) -> Schulze | C94: =IF(ASV_Daten!C93="","",ASV_Daten!C93) -> Anjoschka | D94: =IF(ASV_Daten!D93="","",ASV_Daten!D93) -> 2011 | E94: =IF(ASV_Daten!E93="","",ASV_Daten!E93) -> w | F94: 5dw | G94: 10 | H94: 10w | I94: 373 | J94: 10.22 | K94: 2.84 | L94: 13 | M94: 18.79012642 | N94: 171.5325338 | O94: 284.4855551 | P94: 181.0470567 | Q94: 637 | R94: S | S94: FALSE | T94: nix
A95: =IF(ASV_Daten!A94="","",ASV_Daten!A94) -> 5d | B95: =IF(ASV_Daten!B94="","",ASV_Daten!B94) -> wlodomar | C95: =IF(ASV_Daten!C94="","",ASV_Daten!C94) -> Hermann | D95: =IF(ASV_Daten!D94="","",ASV_Daten!D94) -> 2011 | E95: =IF(ASV_Daten!E94="","",ASV_Daten!E94) -> m | F95: 5dm | G95: 10 | H95: 10m | I95: 349 | J95: 10.53 | K95: 2.8 | L95: 19.5 | M95: 117.8882521 | N95: 123.5544252 | O95: 238.8310745 | P95: 146.8982212 | Q95: 509 | R95: T | S95: FALSE | T95: nix
A96: =IF(ASV_Daten!A95="","",ASV_Daten!A95) -> 5d | B96: =IF(ASV_Daten!B95="","",ASV_Daten!B95) -> Birkus | C96: =IF(ASV_Daten!C95="","",ASV_Daten!C95) -> Yvo | D96: =IF(ASV_Daten!D95="","",ASV_Daten!D95) -> 2011 | E96: =IF(ASV_Daten!E95="","",ASV_Daten!E95) -> m | F96: 5dm | G96: 10 | H96: 10m | I96: 320 | J96: 10.4 | K96: 2.7 | L96: 19.5 | M96: 161.1666667 | N96: 131.7750899 | O96: 225.0628642 | P96: 146.8982212 | Q96: 533 | R96: T | S96: FALSE | T96: nix
A97: =IF(ASV_Daten!A96="","",ASV_Daten!A96) -> 5d | B97: =IF(ASV_Daten!B96="","",ASV_Daten!B96) -> Adler | C97: =IF(ASV_Daten!C96="","",ASV_Daten!C96) -> Marja | D97: =IF(ASV_Daten!D96="","",ASV_Daten!D96) -> 2011 | E97: =IF(ASV_Daten!E96="","",ASV_Daten!E96) -> w | F97: 5dw | G97: 10 | H97: 10w | I97: 419 | J97: 10.38 | K97: 2.6 | L97: 24 | M97: -17.60311037 | N97: 160.6208982 | O97: 249.4959373 | P97: 329.0365544 | Q97: 739 | R97: S | S97: FALSE | T97: nix
A98: =IF(ASV_Daten!A97="","",ASV_Daten!A97) -> 5d | B98: =IF(ASV_Daten!B97="","",ASV_Daten!B97) -> Jannowski | C98: =IF(ASV_Daten!C97="","",ASV_Daten!C97) -> Sonja | D98: =IF(ASV_Daten!D97="","",ASV_Daten!D97) -> 2011 | E98: =IF(ASV_Daten!E97="","",ASV_Daten!E97) -> w | F98: 5dw | G98: 10 | H98: 10w | I98: 347 | J98: 10 | K98: 2.4 | L98: 10 | M98: 43.62836234 | N98: 187.092803 | O98: 219.0833358 | P98: 130.3292517 | Q98: 537 | R98: T | S98: FALSE | T98: nix
A99: =IF(ASV_Daten!A98="","",ASV_Daten!A98) -> 5d | B99: =IF(ASV_Daten!B98="","",ASV_Daten!B98) -> Lowsano | C99: =IF(ASV_Daten!C98="","",ASV_Daten!C98) -> Simon | D99: =IF(ASV_Daten!D98="","",ASV_Daten!D98) -> 2011 | E99: =IF(ASV_Daten!E98="","",ASV_Daten!E98) -> m | F99: 5dm | G99: 10 | H99: 10m | I99: 270 | J99: 9.31 | K99: 2.74 | L99: 17 | M99: 257.617284 | N99: 209.5075499 | O99: 230.6002446 | P99: 120.2823296 | Q99: =ROUND((SUM(M99:P99)-MIN(M99:P99)),0) -> 698 | R99: =IF(H99="7w",VLOOKUP(Q99,weiblich8,2),IF(H99="7m",VLOOKUP(Q99,männlich8,2),IF(H99="8w",VLOOKUP(Q99,weiblich8,2),IF(H99="8m",VLOOKUP(Q99,männlich8,2),IF(H99="9w",VLOOKUP(Q99,weiblich9,2),IF(H99="9m",VLOOKUP(Q99,männlich9,2),IF(H99="10w",VLOOKUP(Q99,weiblich10,2),IF(H99="10m",VLOOKUP(Q99,männlich10,2),IF(H99="11w",VLOOKUP(Q99,weiblich11,2),IF(H99="11m",VLOOKUP(Q99,männlich11,2),IF(H99="12w",VLOOKUP(Q99,weiblich12,2),IF(H99="12m",VLOOKUP(Q99,männlich12,2),"H")))))))))))) -> S | S99: FALSE | T99: =IF(S99="n1m",VLOOKUP(Q99,N1m,2),IF(S99="N1w",VLOOKUP(Q99,N1w,2),IF(S99="N2m",VLOOKUP(Q99,n2m,2),IF(S99="N2w",VLOOKUP(Q99,n2w,2),IF(S99="N3w",VLOOKUP(Q99,n3w,2),IF(S99="N3m",VLOOKUP(Q99,n3m,2),IF(S99="N4w",VLOOKUP(Q99,n4w,2),IF(S99="N4m",VLOOKUP(Q99,n4m,2),"nix")))))))) -> nix
A100: =IF(ASV_Daten!A99="","",ASV_Daten!A99) -> 5d | B100: =IF(ASV_Daten!B99="","",ASV_Daten!B99) -> Pretlow | C100: =IF(ASV_Daten!C99="","",ASV_Daten!C99) -> Janus | D100: =IF(ASV_Daten!D99="","",ASV_Daten!D99) -> 2011 | E100: =IF(ASV_Daten!E99="","",ASV_Daten!E99) -> m | F100: 5dm | G100: 10 | H100: 10m | I100: 282 | J100: 8.91 | K100: 3.16 | L100: 20 | M100: 231.3498818 | N100: 242.6783876 | O100: 286.4652436 | P100: 152.0123595 | Q100: 760 | R100: S | S100: FALSE | T100: nix
A101: =IF(ASV_Daten!A100="","",ASV_Daten!A100) -> 5d | B101: =IF(ASV_Daten!B100="","",ASV_Daten!B100) -> Schibar | C101: =IF(ASV_Daten!C100="","",ASV_Daten!C100) -> Mara | D101: =IF(ASV_Daten!D100="","",ASV_Daten!D100) -> 2011 | E101: =IF(ASV_Daten!E100="","",ASV_Daten!E100) -> w | F101: 5dw | G101: 10 | H101: 10w | I101: 500 | J101: 8.09 | K101: 3.32 | L101: 23.5 | M101: -65.40958269 | N101: 356.7274182 | O101: 350.2820749 | P101: 323.1670317 | Q101: 1030 | R101: E | S101: FALSE | T101: nix
A102: =IF(ASV_Daten!A101="","",ASV_Daten!A101) -> 5d | B102: =IF(ASV_Daten!B101="","",ASV_Daten!B101) -> Schulze | C102: =IF(ASV_Daten!C101="","",ASV_Daten!C101) -> Anjoschka | D102: =IF(ASV_Daten!D101="","",ASV_Daten!D101) -> 2011 | E102: =IF(ASV_Daten!E101="","",ASV_Daten!E101) -> w | F102: 5dw | G102: 10 | H102: 10w | I102: 500 | J102: 8.09 | K102: 3.32 | L102: 23.5 | M102: -65.40958269 | N102: 356.7274182 | O102: 350.2820749 | P102: 323.1670317 | Q102: 1030 | R102: E | S102: FALSE | T102: nix
A103: =IF(ASV_Daten!A102="","",ASV_Daten!A102) -> 5d | B103: =IF(ASV_Daten!B102="","",ASV_Daten!B102) -> wlodomar | C103: =IF(ASV_Daten!C102="","",ASV_Daten!C102) -> Hermann | D103: =IF(ASV_Daten!D102="","",ASV_Daten!D102) -> 2011 | E103: =IF(ASV_Daten!E102="","",ASV_Daten!E102) -> m | F103: 5dm | G103: 10 | H103: 10m | I103: 406 | J103: 11.37 | K103: 2.22 | L103: 12 | M103: 50.84236453 | N103: 74.87423386 | O103: 155.1079646 | P103: 60.3728741 | Q103: 290 | R103: T | S103: FALSE | T103: nix
A104: =IF(ASV_Daten!A103="","",ASV_Daten!A103) -> 5d | B104: =IF(ASV_Daten!B103="","",ASV_Daten!B103) -> Birkus | C104: =IF(ASV_Daten!C103="","",ASV_Daten!C103) -> Yvo | D104: =IF(ASV_Daten!D103="","",ASV_Daten!D103) -> 2011 | E104: =IF(ASV_Daten!E103="","",ASV_Daten!E103) -> m | F104: 5dm | G104: 10 | H104: 10m | I104: 367 | J104: 11.84 | K104: 2.3 | L104: 11.5 | M104: 94.46594005 | N104: 50.59026778 | O104: 167.2580314 | P104: 53.74227196 | Q104: 315 | R104: T | S104: FALSE | T104: nix
A105: =IF(ASV_Daten!A104="","",ASV_Daten!A104) -> 5d | B105: =IF(ASV_Daten!B104="","",ASV_Daten!B104) -> Echems | C105: =IF(ASV_Daten!C104="","",ASV_Daten!C104) -> Alexander | D105: =IF(ASV_Daten!D104="","",ASV_Daten!D104) -> 2011 | E105: =IF(ASV_Daten!E104="","",ASV_Daten!E104) -> m | F105: 5dm | G105: 10 | H105: 10m | I105: 400 | J105: 10.97 | K105: 2.82 | L105: 18 | M105: 57 | N105: 97.14540589 | O105: 241.5550513 | P105: 131.1491534 | Q105: 470 | R105: T | S105: FALSE | T105: nix
A106: =IF(ASV_Daten!A105="","",ASV_Daten!A105) -> 6a | B106: =IF(ASV_Daten!B105="","",ASV_Daten!B105) -> Paustik | C106: =IF(ASV_Daten!C105="","",ASV_Daten!C105) -> Tanja | D106: =IF(ASV_Daten!D105="","",ASV_Daten!D105) -> 2009 | E106: =IF(ASV_Daten!E105="","",ASV_Daten!E105) -> w | F106: 6aw | G106: =IF(D106="","",$B$1-$D106) -> 12 | H106: =G106&E106 -> 12w | I106: 319 | J106: 10.28 | K106: 2.72 | L106: 15.5 | M106: =IF(E106="w",(((800/I106)-2.0232)/0.00647),(((1000/I106)-2.158)/0.006)) -> 74.90525357 | N106: =IF($E106="w",(((50/(J106+0.24))-3.648)/0.0066),IF($E106="M",(((50/(J106+0.24))-3.79)/0.0069),0)) -> 167.4017744 | O106: =IF($E106="w",((SQRT(K106)-1.0935)/0.00208),IF($E106="m",((SQRT(K106)-1.15028)/0.00219),0)) -> 267.1837742 | P106: =IF(E106="w",((SQRT(L106)-2.0232)/0.00874),IF($E106="M",((SQRT(L106)-2.8)/0.011),0)) -> 218.9707022 | Q106: 654 | R106: T | S106: =IF(AND(A106="1a",E106="m"),"N1m",IF(AND(A106="1a",E106="w"),"N1w",IF(AND(A106="1b",E106="w"),"N1w",IF(AND(A106="1b",E106="m"),"N1m",IF(AND(A106="2a",E106="m"),"N2m",IF(AND(A106="2a",E106="w"),"N2w",IF(AND(A106="2b",E106="w"),"N2w",IF(AND(A106="2b",E106="m"),"N2m",IF(AND(A106="3a",E106="m"),"N3m",IF(AND(A106="3a",E106="w"),"N3w",IF(AND(A106="3b",E106="w"),"N3w",IF(AND(A106="3b",E106="m"),"N3m",IF(AND(A106="4a",E106="m"),"N4m",IF(AND(A106="4a",E106="w"),"N4w",IF(AND(A106="4b",E106="m"),"N4m",IF(AND(A106="4b",E106="w"),"N4w")))))))))))))))) -> FALSE | T106: nix
A107: =IF(ASV_Daten!A106="","",ASV_Daten!A106) -> 6a | B107: =IF(ASV_Daten!B106="","",ASV_Daten!B106) -> Struwe | C107: =IF(ASV_Daten!C106="","",ASV_Daten!C106) -> Bert | D107: =IF(ASV_Daten!D106="","",ASV_Daten!D106) -> 2009 | E107: =IF(ASV_Daten!E106="","",ASV_Daten!E106) -> m | F107: 6am | G107: 12 | H107: 12m | I107: 500 | J107: 8.85 | K107: 2.18 | L107: 8.5 | M107: -26.33333333 | N107: 247.9058051 | O107: 148.9508247 | P107: 10.4978134 | Q107: 407 | R107: T | S107: FALSE | T107: nix
A108: =IF(ASV_Daten!A107="","",ASV_Daten!A107) -> 6a | B108: =IF(ASV_Daten!B107="","",ASV_Daten!B107) -> Langwasser | C108: =IF(ASV_Daten!C107="","",ASV_Daten!C107) -> Yvo | D108: =IF(ASV_Daten!D107="","",ASV_Daten!D107) -> 2009 | E108: =IF(ASV_Daten!E107="","",ASV_Daten!E107) -> m | F108: 6am | G108: 12 | H108: 12m | I108: 464 | J108: 9.87 | K108: 2.94 | L108: 19.5 | M108: -0.4712643678 | N108: 167.4780315 | O108: 257.6999178 | P108: 146.8982212 | Q108: 572 | R108: T | S108: FALSE | T108: nix
A109: =IF(ASV_Daten!A108="","",ASV_Daten!A108) -> 6a | B109: =IF(ASV_Daten!B108="","",ASV_Daten!B108) -> Schöbel | C109: =IF(ASV_Daten!C108="","",ASV_Daten!C108) -> Uwe | D109: =IF(ASV_Daten!D108="","",ASV_Daten!D108) -> 2009 | E109: =IF(ASV_Daten!E108="","",ASV_Daten!E108) -> m | F109: 6am | G109: 12 | H109: 12m | I109: 295 | J109: 10.1 | K109: 2.68 | L109: 10.5 | M109: 205.3050847 | N109: 151.5347742 | O109: 222.278792 | P109: 40.03366811 | Q109: 579 | R109: T | S109: FALSE | T109: nix
A110: =IF(ASV_Daten!A109="","",ASV_Daten!A109) -> 6a | B110: =IF(ASV_Daten!B109="","",ASV_Daten!B109) -> Schrüll | C110: =IF(ASV_Daten!C109="","",ASV_Daten!C109) -> Sigbert | D110: =IF(ASV_Daten!D109="","",ASV_Daten!D109) -> 2009 | E110: =IF(ASV_Daten!E109="","",ASV_Daten!E109) -> m | F110: 6am | G110: 12 | H110: 12m | I110: 339 | J110: 10.53 | K110: 2.32 | L110: 16 | M110: 131.9754179 | N110: 123.5544252 | O110: 170.2623841 | P110: 109.0909091 | Q110: 426 | R110: T | S110: FALSE | T110: nix
A111: =IF(ASV_Daten!A110="","",ASV_Daten!A110) -> 6a | B111: =IF(ASV_Daten!B110="","",ASV_Daten!B110) -> Klim | C111: =IF(ASV_Daten!C110="","",ASV_Daten!C110) -> Christian | D111: =IF(ASV_Daten!D110="","",ASV_Daten!D110) -> 2009 | E111: =IF(ASV_Daten!E110="","",ASV_Daten!E110) -> m | F111: 6am | G111: 12 | H111: 12m | I111: 319 | J111: 10 | K111: 3 | L111: 19 | M111: 162.799373 | N111: 158.3786232 | O111: 265.6487706 | P111: 141.7180858 | Q111: 587 | R111: T | S111: FALSE | T111: nix
A112: =IF(ASV_Daten!A111="","",ASV_Daten!A111) -> 6a | B112: =IF(ASV_Daten!B111="","",ASV_Daten!B111) -> Schlup | C112: =IF(ASV_Daten!C111="","",ASV_Daten!C111) -> Alexander | D112: =IF(ASV_Daten!D111="","",ASV_Daten!D111) -> 2009 | E112: =IF(ASV_Daten!E111="","",ASV_Daten!E111) -> m | F112: 6am | G112: 12 | H112: 12m | I112: 278 | J112: 9.65 | K112: 2.56 | L112: 12.5 | M112: 239.853717 | N112: 183.4219897 | O112: 205.3515982 | P112: 66.86671872 | Q112: 629 | R112: T | S112: FALSE | T112: nix
A113: =IF(ASV_Daten!A112="","",ASV_Daten!A112) -> 6a | B113: =IF(ASV_Daten!B112="","",ASV_Daten!B112) -> weber | C113: =IF(ASV_Daten!C112="","",ASV_Daten!C112) -> Katharina | D113: =IF(ASV_Daten!D112="","",ASV_Daten!D112) -> 2011 | E113: =IF(ASV_Daten!E112="","",ASV_Daten!E112) -> w | F113: 6aw | G113: 10 | H113: 10w | I113: 282 | J113: 10.19 | K113: 2.86 | L113: 22.5 | M113: 125.7618907 | N113: 173.6157355 | O113: 287.3333906 | P113: 311.2375847 | Q113: 772 | R113: S | S113: FALSE | T113: nix
A114: =IF(ASV_Daten!A113="","",ASV_Daten!A113) -> 6a | B114: =IF(ASV_Daten!B113="","",ASV_Daten!B113) -> Echems | C114: =IF(ASV_Daten!C113="","",ASV_Daten!C113) -> Alexander | D114: =IF(ASV_Daten!D113="","",ASV_Daten!D113) -> 2011 | E114: =IF(ASV_Daten!E113="","",ASV_Daten!E113) -> m | F114: 6am | G114: 10 | H114: 10m | I114: 298 | J114: 9.65 | K114: 3.16 | L114: 19.5 | M114: 199.6174497 | N114: 183.4219897 | O114: 286.4652436 | P114: 146.8982212 | Q114: 670 | R114: S | S114: FALSE | T114: nix
A115: =IF(ASV_Daten!A114="","",ASV_Daten!A114) -> 6a | B115: =IF(ASV_Daten!B114="","",ASV_Daten!B114) -> Paustik | C115: =IF(ASV_Daten!C114="","",ASV_Daten!C114) -> Tanja | D115: =IF(ASV_Daten!D114="","",ASV_Daten!D114) -> 2009 | E115: =IF(ASV_Daten!E114="","",ASV_Daten!E114) -> w | F115: 6aw | G115: 12 | H115: 12w | I115: 439 | J115: 9.53 | K115: 3.1 | L115: 25.5 | M115: -31.0473783 | N115: 222.6829193 | O115: 320.760426 | P115: 346.2874679 | Q115: 890 | R115: S | S115: FALSE | T115: nix
A116: =IF(ASV_Daten!A115="","",ASV_Daten!A115) -> 6a | B116: =IF(ASV_Daten!B115="","",ASV_Daten!B115) -> Struwe | C116: =IF(ASV_Daten!C115="","",ASV_Daten!C115) -> Bert | D116: =IF(ASV_Daten!D115="","",ASV_Daten!D115) -> 2009 | E116: =IF(ASV_Daten!E115="","",ASV_Daten!E115) -> m | F116: 6am | G116: 12 | H116: 12m | I116: 261 | J116: 9.65 | K116: 2.66 | L116: 16.5 | M116: 278.9029374 | N116: 183.4219897 | O116: 219.4843119 | P116: 114.7290184 | Q116: 682 | R116: T | S116: FALSE | T116: nix
A117: =IF(ASV_Daten!A116="","",ASV_Daten!A116) -> 6a | B117: =IF(ASV_Daten!B116="","",ASV_Daten!B116) -> Langwasser | C117: =IF(ASV_Daten!C116="","",ASV_Daten!C116) -> Yvo | D117: =IF(ASV_Daten!D116="","",ASV_Daten!D116) -> 2009 | E117: =IF(ASV_Daten!E116="","",ASV_Daten!E116) -> m | F117: 6am | G117: 12 | H117: 12m | I117: 312 | J117: 11.3 | K117: 2.65 | L117: 24 | M117: 174.5213675 | N117: 78.66023661 | O117: 218.0831322 | P117: 190.8163169 | Q117: 583 | R117: T | S117: FALSE | T117: nix
A118: =IF(ASV_Daten!A117="","",ASV_Daten!A117) -> 6a | B118: =IF(ASV_Daten!B117="","",ASV_Daten!B117) -> Schöbel | C118: =IF(ASV_Daten!C117="","",ASV_Daten!C117) -> Uwe | D118: =IF(ASV_Daten!D117="","",ASV_Daten!D117) -> 2009 | E118: =IF(ASV_Daten!E117="","",ASV_Daten!E117) -> m | F118: 6am | G118: 12 | H118: 12m | I118: 278 | J118: 10.04 | K118: 2.38 | L118: 16 | M118: 239.853717 | N118: 155.6251057 | O118: 179.1985671 | P118: 109.0909091 | Q118: 575 | R118: T | S118: FALSE | T118: nix
A119: =IF(ASV_Daten!A118="","",ASV_Daten!A118) -> 6a | B119: =IF(ASV_Daten!B118="","",ASV_Daten!B118) -> Schrüll | C119: =IF(ASV_Daten!C118="","",ASV_Daten!C118) -> Sigbert | D119: =IF(ASV_Daten!D118="","",ASV_Daten!D118) -> 2009 | E119: =IF(ASV_Daten!E118="","",ASV_Daten!E118) -> m | F119: 6am | G119: 12 | H119: 12m | I119: 300 | J119: 9.72 | K119: 2.96 | L119: 17.5 | M119: 195.8888889 | N119: 178.2725103 | O119: 260.3584719 | P119: 125.7545575 | Q119: 635 | R119: T | S119: FALSE | T119: nix
A120: =IF(ASV_Daten!A119="","",ASV_Daten!A119) -> 6a | B120: =IF(ASV_Daten!B119="","",ASV_Daten!B119) -> Klim | C120: =IF(ASV_Daten!C119="","",ASV_Daten!C119) -> Christian | D120: =IF(ASV_Daten!D119="","",ASV_Daten!D119) -> 2009 | E120: =IF(ASV_Daten!E119="","",ASV_Daten!E119) -> m | F120: 6am | G120: 12 | H120: 12m | I120: 319 | J120: 9.44 | K120: 3.07 | L120: 13.5 | M120: 162.799373 | N120: 199.3172835 | O120: 274.8226241 | P120: 79.47587402 | Q120: 637 | R120: T | S120: FALSE | T120: nix
A121: =IF(ASV_Daten!A120="","",ASV_Daten!A120) -> 6a | B121: =IF(ASV_Daten!B120="","",ASV_Daten!B120) -> Schlup | C121: =IF(ASV_Daten!C120="","",ASV_Daten!C120) -> Alexander | D121: =IF(ASV_Daten!D120="","",ASV_Daten!D120) -> 2009 | E121: =IF(ASV_Daten!E120="","",ASV_Daten!E120) -> m | F121: 6am | G121: 12 | H121: 12m | I121: 259 | J121: 9.06 | K121: 2.06 | L121: 16 | M121: 283.8339768 | N121: 229.90494 | O121: 130.1324244 | P121: 109.0909091 | Q121: 644 | R121: T | S121: FALSE | T121: nix
A122: =IF(ASV_Daten!A121="","",ASV_Daten!A121) -> 6a | B122: =IF(ASV_Daten!B121="","",ASV_Daten!B121) -> weber | C122: =IF(ASV_Daten!C121="","",ASV_Daten!C121) -> Katharina | D122: =IF(ASV_Daten!D121="","",ASV_Daten!D121) -> 2011 | E122: =IF(ASV_Daten!E121="","",ASV_Daten!E121) -> w | F122: 6aw | G122: 10 | H122: 10w | I122: 332 | J122: 9.25 | K122: 2.7 | L122: 11.5 | M122: 59.72775181 | N122: 245.5611968 | O122: 264.2633041 | P122: 156.5177336 | Q122: 666 | R122: S | S122: FALSE | T122: nix
A123: =IF(ASV_Daten!A122="","",ASV_Daten!A122) -> 6a | B123: =IF(ASV_Daten!B122="","",ASV_Daten!B122) -> Echems | C123: =IF(ASV_Daten!C122="","",ASV_Daten!C122) -> Alexander | D123: =IF(ASV_Daten!D122="","",ASV_Daten!D122) -> 2011 | E123: =IF(ASV_Daten!E122="","",ASV_Daten!E122) -> m | F123: 6am | G123: 10 | H123: 10m | I123: 332 | J123: 9.34 | K123: 2.9 | L123: 11.5 | M123: 142.3413655 | N123: 207.131403 | O123: 252.3555418 | P123: 53.74227196 | Q123: 602 | R123: S | S123: FALSE | T123: nix
A124: =IF(ASV_Daten!A123="","",ASV_Daten!A123) -> 6a | B124: =IF(ASV_Daten!B123="","",ASV_Daten!B123) -> Paustik | C124: =IF(ASV_Daten!C123="","",ASV_Daten!C123) -> Tanja | D124: =IF(ASV_Daten!D123="","",ASV_Daten!D123) -> 2009 | E124: =IF(ASV_Daten!E123="","",ASV_Daten!E123) -> w | F124: 6aw | G124: 12 | H124: 12w | I124: 271 | J124: 9.69 | K124: 2.98 | L124: 23 | M124: 143.5594313 | N124: 210.188898 | O124: 304.2152164 | P124: 317.2347281 | Q124: 832 | R124: S | S124: FALSE | T124: nix
A125: =IF(ASV_Daten!A124="","",ASV_Daten!A124) -> 6a | B125: =IF(ASV_Daten!B124="","",ASV_Daten!B124) -> Struwe | C125: =IF(ASV_Daten!C124="","",ASV_Daten!C124) -> Bert | D125: =IF(ASV_Daten!D124="","",ASV_Daten!D124) -> 2009 | E125: =IF(ASV_Daten!E124="","",ASV_Daten!E124) -> m | F125: 6am | G125: 12 | H125: 12m | I125: 312 | J125: 8.94 | K125: 2.7 | L125: 14 | M125: 174.5213675 | N125: 240.0903034 | O125: 225.0628642 | P125: 85.60521698 | Q125: 640 | R125: T | S125: FALSE | T125: nix
A126: =IF(ASV_Daten!A125="","",ASV_Daten!A125) -> 6a | B126: =IF(ASV_Daten!B125="","",ASV_Daten!B125) -> Langwasser | C126: =IF(ASV_Daten!C125="","",ASV_Daten!C125) -> Yvo | D126: =IF(ASV_Daten!D125="","",ASV_Daten!D125) -> 2009 | E126: =IF(ASV_Daten!E125="","",ASV_Daten!E125) -> m | F126: 6am | G126: 12 | H126: 12m | I126: 272 | J126: 9.28 | K126: 3.12 | L126: 21.5 | M126: 253.0784314 | N126: 211.8986725 | O126: 281.3114946 | P126: 166.9826589 | Q126: 746 | R126: T | S126: FALSE | T126: nix
A127: =IF(ASV_Daten!A126="","",ASV_Daten!A126) -> 6a | B127: =IF(ASV_Daten!B126="","",ASV_Daten!B126) -> Schöbel | C127: =IF(ASV_Daten!C126="","",ASV_Daten!C126) -> Uwe | D127: =IF(ASV_Daten!D126="","",ASV_Daten!D126) -> 2009 | E127: =IF(ASV_Daten!E126="","",ASV_Daten!E126) -> m | F127: 6am | G127: 12 | H127: 12m | I127: 283 | J127: 8.32 | K127: 3.43 | L127: 26.5 | M127: 229.2614841 | N127: 297.2639848 | O127: 320.4319259 | P127: 213.4377337 | Q127: 847 | R127: S | S127: FALSE | T127: nix
A128: =IF(ASV_Daten!A127="","",ASV_Daten!A127) -> 6a | B128: =IF(ASV_Daten!B127="","",ASV_Daten!B127) -> Schrüll | C128: =IF(ASV_Daten!C127="","",ASV_Daten!C127) -> Sigbert | D128: =IF(ASV_Daten!D127="","",ASV_Daten!D127) -> 2009 | E128: =IF(ASV_Daten!E127="","",ASV_Daten!E127) -> m | F128: 6am | G128: 12 | H128: 12m | I128: 241 | J128: 8.84 | K128: 3.3 | L128: 18.5 | M128: 331.8962656 | N128: 248.7837579 | O128: 304.2512386 | P128: 136.4693303 | Q128: 885 | R128: S | S128: FALSE | T128: nix
A129: =IF(ASV_Daten!A128="","",ASV_Daten!A128) -> 6a | B129: =IF(ASV_Daten!B128="","",ASV_Daten!B128) -> Klim | C129: =IF(ASV_Daten!C128="","",ASV_Daten!C128) -> Christian | D129: =IF(ASV_Daten!D128="","",ASV_Daten!D128) -> 2009 | E129: =IF(ASV_Daten!E128="","",ASV_Daten!E128) -> m | F129: 6am | G129: 12 | H129: 12m | I129: 217 | J129: 9.25 | K129: 3.3 | L129: 25 | M129: 408.3824885 | N129: 214.3049129 | O129: 304.2512386 | P129: 200 | Q129: 927 | R129: S | S129: FALSE | T129: nix
A130: =IF(ASV_Daten!A129="","",ASV_Daten!A129) -> 6a | B130: =IF(ASV_Daten!B129="","",ASV_Daten!B129) -> Schlup | C130: =IF(ASV_Daten!C129="","",ASV_Daten!C129) -> Alexander | D130: =IF(ASV_Daten!D129="","",ASV_Daten!D129) -> 2009 | E130: =IF(ASV_Daten!E129="","",ASV_Daten!E129) -> m | F130: 6am | G130: 12 | H130: 12m | I130: 296 | J130: 9.47 | K130: 3.16 | L130: 29.5 | M130: 203.3963964 | N130: 197.0044329 | O130: 286.4652436 | P130: 239.2172951 | Q130: 729 | R130: T | S130: FALSE | T130: nix
A131: =IF(ASV_Daten!A130="","",ASV_Daten!A130) -> 6a | B131: =IF(ASV_Daten!B130="","",ASV_Daten!B130) -> weber | C131: =IF(ASV_Daten!C130="","",ASV_Daten!C130) -> Katharina | D131: =IF(ASV_Daten!D130="","",ASV_Daten!D130) -> 2011 | E131: =IF(ASV_Daten!E130="","",ASV_Daten!E130) -> w | F131: 6aw | G131: 10 | H131: 10w | I131: 332 | J131: 10.29 | K131: 3 | L131: 25.5 | M131: 59.72775181 | N131: 166.7178912 | O131: 306.9955806 | P131: 346.2874679 | Q131: =ROUND((SUM(M131:P131)-MIN(M131:P131)),0) -> 820 | R131: =IF(H131="7w",VLOOKUP(Q131,weiblich8,2),IF(H131="7m",VLOOKUP(Q131,männlich8,2),IF(H131="8w",VLOOKUP(Q131,weiblich8,2),IF(H131="8m",VLOOKUP(Q131,männlich8,2),IF(H131="9w",VLOOKUP(Q131,weiblich9,2),IF(H131="9m",VLOOKUP(Q131,männlich9,2),IF(H131="10w",VLOOKUP(Q131,weiblich10,2),IF(H131="10m",VLOOKUP(Q131,männlich10,2),IF(H131="11w",VLOOKUP(Q131,weiblich11,2),IF(H131="11m",VLOOKUP(Q131,männlich11,2),IF(H131="12w",VLOOKUP(Q131,weiblich12,2),IF(H131="12m",VLOOKUP(Q131,männlich12,2),"H")))))))))))) -> S | S131: FALSE | T131: =IF(S131="n1m",VLOOKUP(Q131,N1m,2),IF(S131="N1w",VLOOKUP(Q131,N1w,2),IF(S131="N2m",VLOOKUP(Q131,n2m,2),IF(S131="N2w",VLOOKUP(Q131,n2w,2),IF(S131="N3w",VLOOKUP(Q131,n3w,2),IF(S131="N3m",VLOOKUP(Q131,n3m,2),IF(S131="N4w",VLOOKUP(Q131,n4w,2),IF(S131="N4m",VLOOKUP(Q131,n4m,2),"nix")))))))) -> nix
A132: =IF(ASV_Daten!A131="","",ASV_Daten!A131) -> 6b | B132: =IF(ASV_Daten!B131="","",ASV_Daten!B131) -> Becker | C132: =IF(ASV_Daten!C131="","",ASV_Daten!C131) -> Jonas | D132: =IF(ASV_Daten!D131="","",ASV_Daten!D131) -> 2010 | E132: =IF(ASV_Daten!E131="","",ASV_Daten!E131) -> m | F132: 6bm | G132: 11 | H132: 11m | I132: 275 | J132: 10.41 | K132: 3.24 | L132: 21 | M132: 246.3939394 | N132: 131.1356059 | O132: 296.6757991 | P132: 162.0523359 | Q132: 705 | R132: S | S132: FALSE | T132: nix
A133: =IF(ASV_Daten!A132="","",ASV_Daten!A132) -> 6b | B133: =IF(ASV_Daten!B132="","",ASV_Daten!B132) -> Becker | C133: =IF(ASV_Daten!C132="","",ASV_Daten!C132) -> Jutta | D133: =IF(ASV_Daten!D132="","",ASV_Daten!D132) -> 2010 | E133: =IF(ASV_Daten!E132="","",ASV_Daten!E132) -> w | F133: =A133&E133 -> 6bw | G133: 11 | H133: 11w | I133: 341 | J133: 8.38 | K133: 3.22 | L133: 16 | M133: 49.8981539 | N133: 326.1309147 | O133: 336.9883868 | P133: 226.1784897 | Q133: 889 | R133: S | S133: FALSE | T133: nix
A134: =IF(ASV_Daten!A133="","",ASV_Daten!A133) -> 6b | B134: =IF(ASV_Daten!B133="","",ASV_Daten!B133) -> Gerlach | C134: =IF(ASV_Daten!C133="","",ASV_Daten!C133) -> Peter | D134: =IF(ASV_Daten!D133="","",ASV_Daten!D133) -> 2010 | E134: =IF(ASV_Daten!E133="","",ASV_Daten!E133) -> m | F134: 6bm | G134: 11 | H134: 11m | I134: 319 | J134: 8.69 | K134: 3.22 | L134: 20.5 | M134: 162.799373 | N134: 262.1890063 | O134: 294.1350888 | P134: 157.0629608 | Q134: 719 | R134: S | S134: FALSE | T134: nix
A135: =IF(ASV_Daten!A134="","",ASV_Daten!A134) -> 6b | B135: =IF(ASV_Daten!B134="","",ASV_Daten!B134) -> Herold | C135: =IF(ASV_Daten!C134="","",ASV_Daten!C134) -> Karin | D135: =IF(ASV_Daten!D134="","",ASV_Daten!D134) -> 2010 | E135: =IF(ASV_Daten!E134="","",ASV_Daten!E134) -> w | F135: 6bw | G135: 11 | H135: 11w | I135: 285 | J135: 9.44 | K135: 3.32 | L135: 21.5 | M135: 121.1464519 | N135: 229.8923115 | O135: 350.2820749 | P135: 299.0399597 | Q135: 879 | R135: S | S135: FALSE | T135: nix
A136: =IF(ASV_Daten!A135="","",ASV_Daten!A135) -> 6b | B136: =IF(ASV_Daten!B135="","",ASV_Daten!B135) -> Herbst | C136: =IF(ASV_Daten!C135="","",ASV_Daten!C135) -> Sandra | D136: =IF(ASV_Daten!D135="","",ASV_Daten!D135) -> 2009 | E136: =IF(ASV_Daten!E135="","",ASV_Daten!E135) -> w | F136: 6bw | G136: 12 | H136: 12w | I136: 237 | J136: 9.28 | K136: 3 | L136: 14.5 | M136: 209.0150581 | N136: 243.0455819 | O136: 306.9955806 | P136: 204.1975461 | Q136: 759 | R136: T | S136: FALSE | T136: nix
A137: =IF(ASV_Daten!A136="","",ASV_Daten!A136) -> 6b | B137: =IF(ASV_Daten!B136="","",ASV_Daten!B136) -> König | C137: =IF(ASV_Daten!C136="","",ASV_Daten!C136) -> Gabriele | D137: =IF(ASV_Daten!D136="","",ASV_Daten!D136) -> 2009 | E137: =IF(ASV_Daten!E136="","",ASV_Daten!E136) -> w | F137: 6bw | G137: 12 | H137: 12w | I137: 275 | J137: 9.91 | K137: 2.76 | L137: 24.5 | M137: 136.9228608 | N137: 193.652784 | O137: 272.9926791 | P137: 334.8452481 | Q137: 801 | R137: S | S137: FALSE | T137: nix
A138: =IF(ASV_Daten!A137="","",ASV_Daten!A137) -> 6b | B138: =IF(ASV_Daten!B137="","",ASV_Daten!B137) -> Löwe | C138: =IF(ASV_Daten!C137="","",ASV_Daten!C137) -> Jutta | D138: =IF(ASV_Daten!D137="","",ASV_Daten!D137) -> 2009 | E138: =IF(ASV_Daten!E137="","",ASV_Daten!E137) -> w | F138: 6bw | G138: 12 | H138: =G138&E138 -> 12w | I138: 256 | J138: 9.69 | K138: 2.9 | L138: 21.5 | M138: 170.2936631 | N138: 210.188898 | O138: 292.9993445 | P138: 299.0399597 | Q138: 802 | R138: S | S138: FALSE | T138: nix
A139: =IF(ASV_Daten!A138="","",ASV_Daten!A138) -> 6b | B139: =IF(ASV_Daten!B138="","",ASV_Daten!B138) -> Lachner | C139: =IF(ASV_Daten!C138="","",ASV_Daten!C138) -> Thomas | D139: =IF(ASV_Daten!D138="","",ASV_Daten!D138) -> 2009 | E139: =IF(ASV_Daten!E138="","",ASV_Daten!E138) -> m | F139: 6bm | G139: 12 | H139: 12m | I139: 457 | J139: 10.56 | K139: 2.82 | L139: 20.5 | M139: 5.030634573 | N139: 121.6854536 | O139: 241.5550513 | P139: 157.0629608 | Q139: 520 | R139: T | S139: FALSE | T139: nix
A140: =IF(ASV_Daten!A139="","",ASV_Daten!A139) -> 6b | B140: =IF(ASV_Daten!B139="","",ASV_Daten!B139) -> Becker | C140: =IF(ASV_Daten!C139="","",ASV_Daten!C139) -> Jonas | D140: =IF(ASV_Daten!D139="","",ASV_Daten!D139) -> 2010 | E140: =IF(ASV_Daten!E139="","",ASV_Daten!E139) -> m | F140: 6bm | G140: 11 | H140: 11m | I140: 439 | J140: 9.78 | K140: 2.9 | L140: 25.5 | M140: 19.98405467 | N140: 173.9159362 | O140: 252.3555418 | P140: 204.5229517 | Q140: 631 | R140: T | S140: FALSE | T140: nix
A141: =IF(ASV_Daten!A140="","",ASV_Daten!A140) -> 6b | B141: =IF(ASV_Daten!B140="","",ASV_Daten!B140) -> Becker | C141: =IF(ASV_Daten!C140="","",ASV_Daten!C140) -> Jutta | D141: =IF(ASV_Daten!D140="","",ASV_Daten!D140) -> 2010 | E141: =IF(ASV_Daten!E140="","",ASV_Daten!E140) -> w | F141: 6bw | G141: 11 | H141: 11w | I141: 314 | J141: 9.72 | K141: 2.9 | L141: 25 | M141: 81.07738804 | N141: 207.8909578 | O141: 292.9993445 | P141: 340.5949657 | Q141: 841 | R141: S | S141: FALSE | T141: nix
A142: =IF(ASV_Daten!A141="","",ASV_Daten!A141) -> 6b | B142: =IF(ASV_Daten!B141="","",ASV_Daten!B141) -> Gerlach | C142: =IF(ASV_Daten!C141="","",ASV_Daten!C141) -> Peter | D142: =IF(ASV_Daten!D141="","",ASV_Daten!D141) -> 2010 | E142: =IF(ASV_Daten!E141="","",ASV_Daten!E141) -> m | F142: 6bm | G142: 11 | H142: 11m | I142: 244 | J142: 9.38 | K142: 2.96 | L142: 15.5 | M142: 323.3934426 | N142: 203.9862605 | O142: 260.3584719 | P142: 103.3639943 | Q142: 788 | R142: S | S142: FALSE | T142: nix
A143: =IF(ASV_Daten!A142="","",ASV_Daten!A142) -> 6b | B143: =IF(ASV_Daten!B142="","",ASV_Daten!B142) -> Herold | C143: =IF(ASV_Daten!C142="","",ASV_Daten!C142) -> Karin | D143: =IF(ASV_Daten!D142="","",ASV_Daten!D142) -> 2010 | E143: =IF(ASV_Daten!E142="","",ASV_Daten!E142) -> w | F143: =A143&E143 -> 6bw | G143: =IF(D143="","",$B$1-$D143) -> 11 | H143: =G143&E143 -> 11w | S143: =IF(AND(A143="1a",E143="m"),"N1m",IF(AND(A143="1a",E143="w"),"N1w",IF(AND(A143="1b",E143="w"),"N1w",IF(AND(A143="1b",E143="m"),"N1m",IF(AND(A143="2a",E143="m"),"N2m",IF(AND(A143="2a",E143="w"),"N2w",IF(AND(A143="2b",E143="w"),"N2w",IF(AND(A143="2b",E143="m"),"N2m",IF(AND(A143="3a",E143="m"),"N3m",IF(AND(A143="3a",E143="w"),"N3w",IF(AND(A143="3b",E143="w"),"N3w",IF(AND(A143="3b",E143="m"),"N3m",IF(AND(A143="4a",E143="m"),"N4m",IF(AND(A143="4a",E143="w"),"N4w",IF(AND(A143="4b",E143="m"),"N4m",IF(AND(A143="4b",E143="w"),"N4w")))))))))))))))) -> FALSE | T143: =IF(S143="n1m",VLOOKUP(Q143,N1m,2),IF(S143="N1w",VLOOKUP(Q143,N1w,2),IF(S143="N2m",VLOOKUP(Q143,n2m,2),IF(S143="N2w",VLOOKUP(Q143,n2w,2),IF(S143="N3w",VLOOKUP(Q143,n3w,2),IF(S143="N3m",VLOOKUP(Q143,n3m,2),IF(S143="N4w",VLOOKUP(Q143,n4w,2),IF(S143="N4m",VLOOKUP(Q143,n4m,2),"nix")))))))) -> nix
A144: =IF(ASV_Daten!A143="","",ASV_Daten!A143) -> 6b | B144: =IF(ASV_Daten!B143="","",ASV_Daten!B143) -> Herbst | C144: =IF(ASV_Daten!C143="","",ASV_Daten!C143) -> Sandra | D144: =IF(ASV_Daten!D143="","",ASV_Daten!D143) -> 2009 | E144: =IF(ASV_Daten!E143="","",ASV_Daten!E143) -> w | F144: 6bw | G144: 12 | H144: 12w | S144: FALSE | T144: nix
A145: =IF(ASV_Daten!A144="","",ASV_Daten!A144) -> 6b | B145: =IF(ASV_Daten!B144="","",ASV_Daten!B144) -> König | C145: =IF(ASV_Daten!C144="","",ASV_Daten!C144) -> Gabriele | D145: =IF(ASV_Daten!D144="","",ASV_Daten!D144) -> 2009 | E145: =IF(ASV_Daten!E144="","",ASV_Daten!E144) -> w | F145: 6bw | G145: 12 | H145: 12w | S145: FALSE | T145: nix
A146: =IF(ASV_Daten!A145="","",ASV_Daten!A145) -> 6b | B146: =IF(ASV_Daten!B145="","",ASV_Daten!B145) -> Löwe | C146: =IF(ASV_Daten!C145="","",ASV_Daten!C145) -> Jutta | D146: =IF(ASV_Daten!D145="","",ASV_Daten!D145) -> 2009 | E146: =IF(ASV_Daten!E145="","",ASV_Daten!E145) -> w | F146: 6bw | G146: 12 | H146: 12w | S146: FALSE | T146: nix
A147: =IF(ASV_Daten!A146="","",ASV_Daten!A146) -> 6b | B147: =IF(ASV_Daten!B146="","",ASV_Daten!B146) -> Lachner | C147: =IF(ASV_Daten!C146="","",ASV_Daten!C146) -> Thomas | D147: =IF(ASV_Daten!D146="","",ASV_Daten!D146) -> 2009 | E147: =IF(ASV_Daten!E146="","",ASV_Daten!E146) -> m | F147: 6bm | G147: 12 | H147: 12m | S147: FALSE | T147: nix
A148: =IF(ASV_Daten!A147="","",ASV_Daten!A147) -> 6b | B148: =IF(ASV_Daten!B147="","",ASV_Daten!B147) -> Becker | C148: =IF(ASV_Daten!C147="","",ASV_Daten!C147) -> Jonas | D148: =IF(ASV_Daten!D147="","",ASV_Daten!D147) -> 2010 | E148: =IF(ASV_Daten!E147="","",ASV_Daten!E147) -> m | F148: 6bm | G148: 11 | H148: 11m | S148: FALSE | T148: nix
A149: =IF(ASV_Daten!A148="","",ASV_Daten!A148) -> 6b | B149: =IF(ASV_Daten!B148="","",ASV_Daten!B148) -> Becker | C149: =IF(ASV_Daten!C148="","",ASV_Daten!C148) -> Jutta | D149: =IF(ASV_Daten!D148="","",ASV_Daten!D148) -> 2010 | E149: =IF(ASV_Daten!E148="","",ASV_Daten!E148) -> w | F149: 6bw | G149: 11 | H149: 11w | S149: =IF(AND(A149="1a",E149="m"),"N1m",IF(AND(A149="1a",E149="w"),"N1w",IF(AND(A149="1b",E149="w"),"N1w",IF(AND(A149="1b",E149="m"),"N1m",IF(AND(A149="2a",E149="m"),"N2m",IF(AND(A149="2a",E149="w"),"N2w",IF(AND(A149="2b",E149="w"),"N2w",IF(AND(A149="2b",E149="m"),"N2m",IF(AND(A149="3a",E149="m"),"N3m",IF(AND(A149="3a",E149="w"),"N3w",IF(AND(A149="3b",E149="w"),"N3w",IF(AND(A149="3b",E149="m"),"N3m",IF(AND(A149="4a",E149="m"),"N4m",IF(AND(A149="4a",E149="w"),"N4w",IF(AND(A149="4b",E149="m"),"N4m",IF(AND(A149="4b",E149="w"),"N4w")))))))))))))))) -> FALSE | T149: =IF(S149="n1m",VLOOKUP(Q149,N1m,2),IF(S149="N1w",VLOOKUP(Q149,N1w,2),IF(S149="N2m",VLOOKUP(Q149,n2m,2),IF(S149="N2w",VLOOKUP(Q149,n2w,2),IF(S149="N3w",VLOOKUP(Q149,n3w,2),IF(S149="N3m",VLOOKUP(Q149,n3m,2),IF(S149="N4w",VLOOKUP(Q149,n4w,2),IF(S149="N4m",VLOOKUP(Q149,n4m,2),"nix")))))))) -> nix
A150: =IF(ASV_Daten!A149="","",ASV_Daten!A149) -> 6b | B150: =IF(ASV_Daten!B149="","",ASV_Daten!B149) -> Gerlach | C150: =IF(ASV_Daten!C149="","",ASV_Daten!C149) -> Peter | D150: =IF(ASV_Daten!D149="","",ASV_Daten!D149) -> 2010 | E150: =IF(ASV_Daten!E149="","",ASV_Daten!E149) -> m | F150: 6bm | G150: 11 | H150: 11m | S150: FALSE | T150: nix
A151: =IF(ASV_Daten!A150="","",ASV_Daten!A150) -> 6b | B151: =IF(ASV_Daten!B150="","",ASV_Daten!B150) -> Herold | C151: =IF(ASV_Daten!C150="","",ASV_Daten!C150) -> Karin | D151: =IF(ASV_Daten!D150="","",ASV_Daten!D150) -> 2010 | E151: =IF(ASV_Daten!E150="","",ASV_Daten!E150) -> w | F151: 6bw | G151: 11 | H151: 11w | S151: FALSE | T151: nix
A152: =IF(ASV_Daten!A151="","",ASV_Daten!A151) -> 6b | B152: =IF(ASV_Daten!B151="","",ASV_Daten!B151) -> Herbst | C152: =IF(ASV_Daten!C151="","",ASV_Daten!C151) -> Sandra | D152: =IF(ASV_Daten!D151="","",ASV_Daten!D151) -> 2009 | E152: =IF(ASV_Daten!E151="","",ASV_Daten!E151) -> w | F152: =A152&E152 -> 6bw | G152: =IF(D152="","",$B$1-$D152) -> 12 | H152: =G152&E152 -> 12w | S152: FALSE | T152: nix
A153: =IF(ASV_Daten!A152="","",ASV_Daten!A152) -> 6b | B153: =IF(ASV_Daten!B152="","",ASV_Daten!B152) -> König | C153: =IF(ASV_Daten!C152="","",ASV_Daten!C152) -> Gabriele | D153: =IF(ASV_Daten!D152="","",ASV_Daten!D152) -> 2009 | E153: =IF(ASV_Daten!E152="","",ASV_Daten!E152) -> w | F153: 6bw | G153: 12 | H153: 12w | S153: FALSE | T153: nix
A154: =IF(ASV_Daten!A153="","",ASV_Daten!A153) -> 6b | B154: =IF(ASV_Daten!B153="","",ASV_Daten!B153) -> Löwe | C154: =IF(ASV_Daten!C153="","",ASV_Daten!C153) -> Jutta | D154: =IF(ASV_Daten!D153="","",ASV_Daten!D153) -> 2009 | E154: =IF(ASV_Daten!E153="","",ASV_Daten!E153) -> w | F154: 6bw | G154: 12 | H154: 12w | S154: FALSE | T154: nix
A155: =IF(ASV_Daten!A154="","",ASV_Daten!A154) -> 6b | B155: =IF(ASV_Daten!B154="","",ASV_Daten!B154) -> Lachner | C155: =IF(ASV_Daten!C154="","",ASV_Daten!C154) -> Thomas | D155: =IF(ASV_Daten!D154="","",ASV_Daten!D154) -> 2009 | E155: =IF(ASV_Daten!E154="","",ASV_Daten!E154) -> m | F155: 6bm | G155: 12 | H155: 12m | S155: FALSE | T155: nix
A156: =IF(ASV_Daten!A155="","",ASV_Daten!A155) -> 6c | B156: =IF(ASV_Daten!B155="","",ASV_Daten!B155) -> Bäter | C156: =IF(ASV_Daten!C155="","",ASV_Daten!C155) -> Stella | D156: =IF(ASV_Daten!D155="","",ASV_Daten!D155) -> 2011 | E156: =IF(ASV_Daten!E155="","",ASV_Daten!E155) -> w | F156: 6cw | G156: 10 | H156: 10w | S156: FALSE | T156: nix
A157: =IF(ASV_Daten!A156="","",ASV_Daten!A156) -> 6c | B157: =IF(ASV_Daten!B156="","",ASV_Daten!B156) -> Brüssing | C157: =IF(ASV_Daten!C156="","",ASV_Daten!C156) -> Philipp | D157: =IF(ASV_Daten!D156="","",ASV_Daten!D156) -> 2011 | E157: =IF(ASV_Daten!E156="","",ASV_Daten!E156) -> m | F157: 6cm | G157: 10 | H157: 10m | S157: FALSE | T157: nix
A158: =IF(ASV_Daten!A157="","",ASV_Daten!A157) -> 6c | B158: =IF(ASV_Daten!B157="","",ASV_Daten!B157) -> Rollas | C158: =IF(ASV_Daten!C157="","",ASV_Daten!C157) -> Gerd | D158: =IF(ASV_Daten!D157="","",ASV_Daten!D157) -> 2011 | E158: =IF(ASV_Daten!E157="","",ASV_Daten!E157) -> m | F158: 6cm | G158: 10 | H158: 10m | S158: FALSE | T158: nix
A159: =IF(ASV_Daten!A158="","",ASV_Daten!A158) -> 6c | B159: =IF(ASV_Daten!B158="","",ASV_Daten!B158) -> Gerlach | C159: =IF(ASV_Daten!C158="","",ASV_Daten!C158) -> Siegfried | D159: =IF(ASV_Daten!D158="","",ASV_Daten!D158) -> 2011 | E159: =IF(ASV_Daten!E158="","",ASV_Daten!E158) -> m | F159: 6cm | G159: 10 | H159: 10m | S159: FALSE | T159: nix
A160: =IF(ASV_Daten!A159="","",ASV_Daten!A159) -> 6c | B160: =IF(ASV_Daten!B159="","",ASV_Daten!B159) -> Althaus | C160: =IF(ASV_Daten!C159="","",ASV_Daten!C159) -> Christa | D160: =IF(ASV_Daten!D159="","",ASV_Daten!D159) -> 2009 | E160: =IF(ASV_Daten!E159="","",ASV_Daten!E159) -> w | F160: 6cw | G160: 12 | H160: 12w | S160: FALSE | T160: nix
A161: =IF(ASV_Daten!A160="","",ASV_Daten!A160) -> 6c | B161: =IF(ASV_Daten!B160="","",ASV_Daten!B160) -> Alt | C161: =IF(ASV_Daten!C160="","",ASV_Daten!C160) -> Julia | D161: =IF(ASV_Daten!D160="","",ASV_Daten!D160) -> 2009 | E161: =IF(ASV_Daten!E160="","",ASV_Daten!E160) -> w | F161: 6cw | G161: 12 | H161: 12w | S161: FALSE | T161: nix
A162: =IF(ASV_Daten!A161="","",ASV_Daten!A161) -> 6c | B162: =IF(ASV_Daten!B161="","",ASV_Daten!B161) -> Andersen | C162: =IF(ASV_Daten!C161="","",ASV_Daten!C161) -> Thomas | D162: =IF(ASV_Daten!D161="","",ASV_Daten!D161) -> 2009 | E162: =IF(ASV_Daten!E161="","",ASV_Daten!E161) -> m | F162: 6cm | G162: 12 | H162: 12m | S162: FALSE | T162: nix
A163: =IF(ASV_Daten!A162="","",ASV_Daten!A162) -> 6c | B163: =IF(ASV_Daten!B162="","",ASV_Daten!B162) -> Becker | C163: =IF(ASV_Daten!C162="","",ASV_Daten!C162) -> Carola | D163: =IF(ASV_Daten!D162="","",ASV_Daten!D162) -> 2009 | E163: =IF(ASV_Daten!E162="","",ASV_Daten!E162) -> w | F163: 6cw | G163: 12 | H163: 12w | S163: FALSE | T163: nix
A164: =IF(ASV_Daten!A163="","",ASV_Daten!A163) -> 6c | B164: =IF(ASV_Daten!B163="","",ASV_Daten!B163) -> Beck | C164: =IF(ASV_Daten!C163="","",ASV_Daten!C163) -> Franz | D164: =IF(ASV_Daten!D163="","",ASV_Daten!D163) -> 2009 | E164: =IF(ASV_Daten!E163="","",ASV_Daten!E163) -> m | F164: 6cm | G164: 12 | H164: 12m | S164: FALSE | T164: nix
A165: =IF(ASV_Daten!A164="","",ASV_Daten!A164) -> 6c | B165: =IF(ASV_Daten!B164="","",ASV_Daten!B164) -> Bäter | C165: =IF(ASV_Daten!C164="","",ASV_Daten!C164) -> Stella | D165: =IF(ASV_Daten!D164="","",ASV_Daten!D164) -> 2011 | E165: =IF(ASV_Daten!E164="","",ASV_Daten!E164) -> w | F165: 6cw | G165: 10 | H165: 10w | S165: FALSE | T165: nix
A166: =IF(ASV_Daten!A165="","",ASV_Daten!A165) -> 6c | B166: =IF(ASV_Daten!B165="","",ASV_Daten!B165) -> Brüssing | C166: =IF(ASV_Daten!C165="","",ASV_Daten!C165) -> Philipp | D166: =IF(ASV_Daten!D165="","",ASV_Daten!D165) -> 2011 | E166: =IF(ASV_Daten!E165="","",ASV_Daten!E165) -> m | F166: 6cm | G166: 10 | H166: 10m | S166: FALSE | T166: nix
A167: =IF(ASV_Daten!A166="","",ASV_Daten!A166) -> 6c | B167: =IF(ASV_Daten!B166="","",ASV_Daten!B166) -> Rollas | C167: =IF(ASV_Daten!C166="","",ASV_Daten!C166) -> Gerd | D167: =IF(ASV_Daten!D166="","",ASV_Daten!D166) -> 2011 | E167: =IF(ASV_Daten!E166="","",ASV_Daten!E166) -> m | F167: 6cm | G167: 10 | H167: 10m | S167: FALSE | T167: nix
A168: =IF(ASV_Daten!A167="","",ASV_Daten!A167) -> 6c | B168: =IF(ASV_Daten!B167="","",ASV_Daten!B167) -> Gerlach | C168: =IF(ASV_Daten!C167="","",ASV_Daten!C167) -> Siegfried | D168: =IF(ASV_Daten!D167="","",ASV_Daten!D167) -> 2011 | E168: =IF(ASV_Daten!E167="","",ASV_Daten!E167) -> m | F168: 6cm | G168: 10 | H168: 10m | S168: FALSE | T168: nix
A169: =IF(ASV_Daten!A168="","",ASV_Daten!A168) -> 6c | B169: =IF(ASV_Daten!B168="","",ASV_Daten!B168) -> Althaus | C169: =IF(ASV_Daten!C168="","",ASV_Daten!C168) -> Christa | D169: =IF(ASV_Daten!D168="","",ASV_Daten!D168) -> 2009 | E169: =IF(ASV_Daten!E168="","",ASV_Daten!E168) -> w | F169: 6cw | G169: 12 | H169: 12w | S169: FALSE | T169: nix
A170: =IF(ASV_Daten!A169="","",ASV_Daten!A169) -> 6c | B170: =IF(ASV_Daten!B169="","",ASV_Daten!B169) -> Alt | C170: =IF(ASV_Daten!C169="","",ASV_Daten!C169) -> Julia | D170: =IF(ASV_Daten!D169="","",ASV_Daten!D169) -> 2009 | E170: =IF(ASV_Daten!E169="","",ASV_Daten!E169) -> w | F170: 6cw | G170: 12 | H170: 12w | S170: FALSE | T170: nix
A171: =IF(ASV_Daten!A170="","",ASV_Daten!A170) -> 6c | B171: =IF(ASV_Daten!B170="","",ASV_Daten!B170) -> Andersen | C171: =IF(ASV_Daten!C170="","",ASV_Daten!C170) -> Thomas | D171: =IF(ASV_Daten!D170="","",ASV_Daten!D170) -> 2009 | E171: =IF(ASV_Daten!E170="","",ASV_Daten!E170) -> m | F171: 6cm | G171: 12 | H171: 12m | S171: FALSE | T171: nix
A172: =IF(ASV_Daten!A171="","",ASV_Daten!A171) -> 6c | B172: =IF(ASV_Daten!B171="","",ASV_Daten!B171) -> Becker | C172: =IF(ASV_Daten!C171="","",ASV_Daten!C171) -> Carola | D172: =IF(ASV_Daten!D171="","",ASV_Daten!D171) -> 2009 | E172: =IF(ASV_Daten!E171="","",ASV_Daten!E171) -> w | F172: 6cw | G172: 12 | H172: 12w | S172: FALSE | T172: nix
A173: =IF(ASV_Daten!A172="","",ASV_Daten!A172) -> 6c | B173: =IF(ASV_Daten!B172="","",ASV_Daten!B172) -> Beck | C173: =IF(ASV_Daten!C172="","",ASV_Daten!C172) -> Franz | D173: =IF(ASV_Daten!D172="","",ASV_Daten!D172) -> 2009 | E173: =IF(ASV_Daten!E172="","",ASV_Daten!E172) -> m | F173: 6cm | G173: 12 | H173: 12m | S173: FALSE | T173: nix
A174: =IF(ASV_Daten!A173="","",ASV_Daten!A173) -> 6c | B174: =IF(ASV_Daten!B173="","",ASV_Daten!B173) -> Bäter | C174: =IF(ASV_Daten!C173="","",ASV_Daten!C173) -> Stella | D174: =IF(ASV_Daten!D173="","",ASV_Daten!D173) -> 2011 | E174: =IF(ASV_Daten!E173="","",ASV_Daten!E173) -> w | F174: 6cw | G174: 10 | H174: 10w | S174: FALSE | T174: nix
A175: =IF(ASV_Daten!A174="","",ASV_Daten!A174) -> 6c | B175: =IF(ASV_Daten!B174="","",ASV_Daten!B174) -> Brüssing | C175: =IF(ASV_Daten!C174="","",ASV_Daten!C174) -> Philipp | D175: =IF(ASV_Daten!D174="","",ASV_Daten!D174) -> 2011 | E175: =IF(ASV_Daten!E174="","",ASV_Daten!E174) -> m | F175: 6cm | G175: 10 | H175: 10m | S175: FALSE | T175: nix
A176: =IF(ASV_Daten!A175="","",ASV_Daten!A175) -> 6c | B176: =IF(ASV_Daten!B175="","",ASV_Daten!B175) -> Rollas | C176: =IF(ASV_Daten!C175="","",ASV_Daten!C175) -> Gerd | D176: =IF(ASV_Daten!D175="","",ASV_Daten!D175) -> 2011 | E176: =IF(ASV_Daten!E175="","",ASV_Daten!E175) -> m | F176: 6cm | G176: 10 | H176: 10m | S176: FALSE | T176: nix
A177: =IF(ASV_Daten!A176="","",ASV_Daten!A176) -> 6c | B177: =IF(ASV_Daten!B176="","",ASV_Daten!B176) -> Gerlach | C177: =IF(ASV_Daten!C176="","",ASV_Daten!C176) -> Siegfried | D177: =IF(ASV_Daten!D176="","",ASV_Daten!D176) -> 2011 | E177: =IF(ASV_Daten!E176="","",ASV_Daten!E176) -> m | F177: 6cm | G177: 10 | H177: 10m | S177: FALSE | T177: nix
A178: =IF(ASV_Daten!A177="","",ASV_Daten!A177) -> 6c | B178: =IF(ASV_Daten!B177="","",ASV_Daten!B177) -> Althaus | C178: =IF(ASV_Daten!C177="","",ASV_Daten!C177) -> Christa | D178: =IF(ASV_Daten!D177="","",ASV_Daten!D177) -> 2009 | E178: =IF(ASV_Daten!E177="","",ASV_Daten!E177) -> w | F178: 6cw | G178: 12 | H178: 12w | S178: FALSE | T178: nix
A179: =IF(ASV_Daten!A178="","",ASV_Daten!A178) -> 6c | B179: =IF(ASV_Daten!B178="","",ASV_Daten!B178) -> Alt | C179: =IF(ASV_Daten!C178="","",ASV_Daten!C178) -> Julia | D179: =IF(ASV_Daten!D178="","",ASV_Daten!D178) -> 2009 | E179: =IF(ASV_Daten!E178="","",ASV_Daten!E178) -> w | F179: 6cw | G179: 12 | H179: 12w | S179: FALSE | T179: nix
A180: =IF(ASV_Daten!A179="","",ASV_Daten!A179) -> 6c | B180: =IF(ASV_Daten!B179="","",ASV_Daten!B179) -> Andersen | C180: =IF(ASV_Daten!C179="","",ASV_Daten!C179) -> Thomas | D180: =IF(ASV_Daten!D179="","",ASV_Daten!D179) -> 2009 | E180: =IF(ASV_Daten!E179="","",ASV_Daten!E179) -> m | F180: 6cm | G180: 12 | H180: 12m | S180: FALSE | T180: nix
A181: =IF(ASV_Daten!A180="","",ASV_Daten!A180) -> 6c | B181: =IF(ASV_Daten!B180="","",ASV_Daten!B180) -> Becker | C181: =IF(ASV_Daten!C180="","",ASV_Daten!C180) -> Carola | D181: =IF(ASV_Daten!D180="","",ASV_Daten!D180) -> 2009 | E181: =IF(ASV_Daten!E180="","",ASV_Daten!E180) -> w | F181: 6cw | G181: 12 | H181: 12w | S181: FALSE | T181: nix
A182: =IF(ASV_Daten!A181="","",ASV_Daten!A181) -> 6c | B182: =IF(ASV_Daten!B181="","",ASV_Daten!B181) -> Beck | C182: =IF(ASV_Daten!C181="","",ASV_Daten!C181) -> Franz | D182: =IF(ASV_Daten!D181="","",ASV_Daten!D181) -> 2009 | E182: =IF(ASV_Daten!E181="","",ASV_Daten!E181) -> m | F182: 6cm | G182: 12 | H182: 12m | S182: FALSE | T182: nix
A183: =IF(ASV_Daten!A182="","",ASV_Daten!A182) -> 6d | B183: =IF(ASV_Daten!B182="","",ASV_Daten!B182) -> Meyer | C183: =IF(ASV_Daten!C182="","",ASV_Daten!C182) -> Jutta | D183: =IF(ASV_Daten!D182="","",ASV_Daten!D182) -> 2009 | E183: =IF(ASV_Daten!E182="","",ASV_Daten!E182) -> w | F183: 6dw | G183: 12 | H183: 12w | S183: FALSE | T183: nix
A184: =IF(ASV_Daten!A183="","",ASV_Daten!A183) -> 6d | B184: =IF(ASV_Daten!B183="","",ASV_Daten!B183) -> Müller | C184: =IF(ASV_Daten!C183="","",ASV_Daten!C183) -> Tanja | D184: =IF(ASV_Daten!D183="","",ASV_Daten!D183) -> 2009 | E184: =IF(ASV_Daten!E183="","",ASV_Daten!E183) -> w | F184: 6dw | G184: 12 | H184: 12w | S184: FALSE | T184: nix
A185: =IF(ASV_Daten!A184="","",ASV_Daten!A184) -> 6d | B185: =IF(ASV_Daten!B184="","",ASV_Daten!B184) -> Meisner | C185: =IF(ASV_Daten!C184="","",ASV_Daten!C184) -> wilfried | D185: =IF(ASV_Daten!D184="","",ASV_Daten!D184) -> 2010 | E185: =IF(ASV_Daten!E184="","",ASV_Daten!E184) -> m | F185: 6dm | G185: 11 | H185: 11m | S185: FALSE | T185: nix
A186: =IF(ASV_Daten!A185="","",ASV_Daten!A185) -> 6d | B186: =IF(ASV_Daten!B185="","",ASV_Daten!B185) -> Petersen | C186: =IF(ASV_Daten!C185="","",ASV_Daten!C185) -> Günter | D186: =IF(ASV_Daten!D185="","",ASV_Daten!D185) -> 2010 | E186: =IF(ASV_Daten!E185="","",ASV_Daten!E185) -> m | F186: 6dm | G186: 11 | H186: 11m | S186: FALSE | T186: nix
A187: =IF(ASV_Daten!A186="","",ASV_Daten!A186) -> 6d | B187: =IF(ASV_Daten!B186="","",ASV_Daten!B186) -> Pilowski | C187: =IF(ASV_Daten!C186="","",ASV_Daten!C186) -> Heike | D187: =IF(ASV_Daten!D186="","",ASV_Daten!D186) -> 2010 | E187: =IF(ASV_Daten!E186="","",ASV_Daten!E186) -> w | F187: 6dw | G187: 11 | H187: 11w | S187: FALSE | T187: nix
A188: =IF(ASV_Daten!A187="","",ASV_Daten!A187) -> 6d | B188: =IF(ASV_Daten!B187="","",ASV_Daten!B187) -> Pausch | C188: =IF(ASV_Daten!C187="","",ASV_Daten!C187) -> Jens | D188: =IF(ASV_Daten!D187="","",ASV_Daten!D187) -> 2010 | E188: =IF(ASV_Daten!E187="","",ASV_Daten!E187) -> m | F188: 6dm | G188: 11 | H188: 11m | S188: FALSE | T188: nix
A189: =IF(ASV_Daten!A188="","",ASV_Daten!A188) -> 6d | B189: =IF(ASV_Daten!B188="","",ASV_Daten!B188) -> Schösser | C189: =IF(ASV_Daten!C188="","",ASV_Daten!C188) -> Bernd | D189: =IF(ASV_Daten!D188="","",ASV_Daten!D188) -> 2010 | E189: =IF(ASV_Daten!E188="","",ASV_Daten!E188) -> m | F189: 6dm | G189: 11 | H189: 11m | S189: FALSE | T189: nix
A190: =IF(ASV_Daten!A189="","",ASV_Daten!A189) -> 6d | B190: =IF(ASV_Daten!B189="","",ASV_Daten!B189) -> Schmidt | C190: =IF(ASV_Daten!C189="","",ASV_Daten!C189) -> Karl | D190: =IF(ASV_Daten!D189="","",ASV_Daten!D189) -> 2009 | E190: =IF(ASV_Daten!E189="","",ASV_Daten!E189) -> m | F190: 6dm | G190: 12 | H190: 12m | S190: FALSE | T190: nix
A191: =IF(ASV_Daten!A190="","",ASV_Daten!A190) -> 6d | B191: =IF(ASV_Daten!B190="","",ASV_Daten!B190) -> Schützer | C191: =IF(ASV_Daten!C190="","",ASV_Daten!C190) -> Ulf | D191: =IF(ASV_Daten!D190="","",ASV_Daten!D190) -> 2009 | E191: =IF(ASV_Daten!E190="","",ASV_Daten!E190) -> m | F191: 6dm | G191: 12 | H191: 12m | S191: FALSE | T191: nix
A192: =IF(ASV_Daten!A191="","",ASV_Daten!A191) -> 6d | B192: =IF(ASV_Daten!B191="","",ASV_Daten!B191) -> Tönje | C192: =IF(ASV_Daten!C191="","",ASV_Daten!C191) -> Christoph | D192: =IF(ASV_Daten!D191="","",ASV_Daten!D191) -> 2009 | E192: =IF(ASV_Daten!E191="","",ASV_Daten!E191) -> m | F192: 6dm | G192: 12 | H192: 12m | S192: FALSE | T192: nix
A193: =IF(ASV_Daten!A192="","",ASV_Daten!A192) -> 6d | B193: =IF(ASV_Daten!B192="","",ASV_Daten!B192) -> Meyer | C193: =IF(ASV_Daten!C192="","",ASV_Daten!C192) -> Jutta | D193: =IF(ASV_Daten!D192="","",ASV_Daten!D192) -> 2009 | E193: =IF(ASV_Daten!E192="","",ASV_Daten!E192) -> w | F193: 6dw | G193: 12 | H193: 12w | S193: FALSE | T193: nix
A194: =IF(ASV_Daten!A193="","",ASV_Daten!A193) -> 6d | B194: =IF(ASV_Daten!B193="","",ASV_Daten!B193) -> Müller | C194: =IF(ASV_Daten!C193="","",ASV_Daten!C193) -> Tanja | D194: =IF(ASV_Daten!D193="","",ASV_Daten!D193) -> 2009 | E194: =IF(ASV_Daten!E193="","",ASV_Daten!E193) -> w | F194: 6dw | G194: 12 | H194: 12w | S194: FALSE | T194: nix
A195: =IF(ASV_Daten!A194="","",ASV_Daten!A194) -> 6d | B195: =IF(ASV_Daten!B194="","",ASV_Daten!B194) -> Meisner | C195: =IF(ASV_Daten!C194="","",ASV_Daten!C194) -> wilfried | D195: =IF(ASV_Daten!D194="","",ASV_Daten!D194) -> 2010 | E195: =IF(ASV_Daten!E194="","",ASV_Daten!E194) -> m | F195: 6dm | G195: 11 | H195: 11m | S195: FALSE | T195: nix
A196: =IF(ASV_Daten!A195="","",ASV_Daten!A195) -> 6d | B196: =IF(ASV_Daten!B195="","",ASV_Daten!B195) -> Petersen | C196: =IF(ASV_Daten!C195="","",ASV_Daten!C195) -> Günter | D196: =IF(ASV_Daten!D195="","",ASV_Daten!D195) -> 2010 | E196: =IF(ASV_Daten!E195="","",ASV_Daten!E195) -> m | F196: 6dm | G196: 11 | H196: 11m | S196: FALSE | T196: nix
A197: =IF(ASV_Daten!A196="","",ASV_Daten!A196) -> 6d | B197: =IF(ASV_Daten!B196="","",ASV_Daten!B196) -> Pilowski | C197: =IF(ASV_Daten!C196="","",ASV_Daten!C196) -> Heike | D197: =IF(ASV_Daten!D196="","",ASV_Daten!D196) -> 2010 | E197: =IF(ASV_Daten!E196="","",ASV_Daten!E196) -> w | F197: 6dw | G197: 11 | H197: 11w | S197: FALSE | T197: nix
A198: =IF(ASV_Daten!A197="","",ASV_Daten!A197) -> 6d | B198: =IF(ASV_Daten!B197="","",ASV_Daten!B197) -> Pausch | C198: =IF(ASV_Daten!C197="","",ASV_Daten!C197) -> Jens | D198: =IF(ASV_Daten!D197="","",ASV_Daten!D197) -> 2010 | E198: =IF(ASV_Daten!E197="","",ASV_Daten!E197) -> m | F198: 6dm | G198: 11 | H198: 11m | S198: FALSE | T198: nix
A199: =IF(ASV_Daten!A198="","",ASV_Daten!A198) -> 6d | B199: =IF(ASV_Daten!B198="","",ASV_Daten!B198) -> Schösser | C199: =IF(ASV_Daten!C198="","",ASV_Daten!C198) -> Bernd | D199: =IF(ASV_Daten!D198="","",ASV_Daten!D198) -> 2010 | E199: =IF(ASV_Daten!E198="","",ASV_Daten!E198) -> m | F199: 6dm | G199: 11 | H199: 11m | S199: FALSE | T199: nix
A200: =IF(ASV_Daten!A199="","",ASV_Daten!A199) -> 6d | B200: =IF(ASV_Daten!B199="","",ASV_Daten!B199) -> Schmidt | C200: =IF(ASV_Daten!C199="","",ASV_Daten!C199) -> Karl | D200: =IF(ASV_Daten!D199="","",ASV_Daten!D199) -> 2009 | E200: =IF(ASV_Daten!E199="","",ASV_Daten!E199) -> m | F200: 6dm | G200: 12 | H200: 12m | S200: FALSE | T200: nix
... 303 more rows

Sheet Punkte_Matrix
A2: Punkte | B2: 8w | D2: Punkte | E2: 8m
A3: 0 | B3: H | D3: 0 | E3: H
A4: 1 | B4: T | D4: 1 | E4: T
A5: 475 | B5: S | D5: 450 | E5: S
A6: 625 | B6: E | D6: 575 | E6: E
A9: Punkte | B9: 9w | D9: Punkte | E9: 9m
A10: 0 | B10: H | D10: 0 | E10: H
A11: 1 | B11: T | D11: 1 | E11: T
A12: 550 | B12: S | D12: 525 | E12: S
A13: 725 | B13: E | D13: 675 | E13: E
A16: Punkte | B16: 10w | D16: Punkte | E16: 10m
A17: 0 | B17: H | D17: 0 | E17: H
A18: 1 | B18: T | D18: 1 | E18: T
A19: 625 | B19: S | D19: 600 | E19: S
A20: 825 | B20: E | D20: 775 | E20: E
A23: Punkte | B23: 11w | D23: Punkte | E23: 11m
A24: 0 | B24: H | D24: 0 | E24: H
A25: 1 | B25: T | D25: 1 | E25: T
A26: 700 | B26: S | D26: 675 | E26: S
A27: 900 | B27: E | D27: 875 | E27: E
A30: Punkte | B30: 12w | D30: Punkte | E30: 12m
A31: 0 | B31: H | D31: 0 | E31: H
A32: 1 | B32: T | D32: 1 | E32: T
A33: 775 | B33: S | D33: 750 | E33: S
A34: 975 | B34: E | D34: 975 | E34: E

Sheet Noten_Matrix
A1: Punkte | B1: n1w | D1: Punkte | E1: n1m
A2: 0 | B2: 4 | D2: 0 | E2: 4
A3: 250 | B3: 3 | D3: 225 | E3: 3
A4: 400 | B4: 2 | D4: 350 | E4: 2
A5: 500 | B5: 1 | D5: 475 | E5: 1
A8: Punkte | B8: n2w | D8: Punkte | E8: n2m
A9: 0 | B9: 4 | D9: 0 | E9: 4
A10: 400 | B10: 3 | D10: 375 | E10: 3
A11: 475 | B11: 2 | D11: 450 | E11: 2
A12: 625 | B12: 1 | D12: 575 | E12: 1
A15: Punkte | B15: n3w | D15: Punkte | E15: n3m
A16: 0 | B16: 4 | D16: 0 | E16: 4
A17: 475 | B17: 3 | D17: 450 | E17: 3
A18: 550 | B18: 2 | D18: 525 | E18: 2
A19: 725 | B19: 1 | D19: 675 | E19: 1
A22: Punkte | B22: n4w | D22: Punkte | E22: n4m
A23: 0 | B23: 4 | D23: 0 | E23: 4
A24: =A26*0.7 -> 577.5 | B24: 3 | D24: =D26*0.7 -> 542.5 | E24: 3
A25: 625 | B25: 2 | D25: 600 | E25: 2
A26: 825 | B26: 1 | D26: 775 | E26: 1

Sheet ASV_Daten
A1: Klasse | B1: Name | C1: Vorname | D1: Geburtsjahr | E1: Geschl | G1: Klassen | H1: Zahl
A2: 5a | B2: Alaba | C2: David | D2: 2011 | E2: m | G2: 5a | H2: =COUNTIF($A$2:$A$421,G2) -> 28
A3: 5a | B3: Belkahia | C3: Semi | D3: 2010 | E3: m | G3: 5b | H3: =COUNTIF($A$2:$A$421,G3) -> 29
A4: 5a | B4: Dressel | C4: Dennis | D4: 2011 | E4: m | G4: 5c | H4: 21
A5: 5a | B5: Djajo | C5: Johann | D5: 2011 | E5: m | G5: 5d | H5: 25
A6: 5a | B6: Hiller | C6: Marco | D6: 2011 | E6: m | G6: 6a | H6: 26
A7: 5a | B7: Lex | C7: Stefan | D7: 2010 | E7: m | G7: 6b | H7: 24
A8: 5a | B8: Mölders | C8: Sascha | D8: 2011 | E8: m | G8: 6c | H8: 27
A9: 5a | B9: Tallig | C9: Erik | D9: 2011 | E9: m | G9: 6d | H9: 30
A10: 5a | B10: Belkner | C10: Jerome | D10: 2010 | E10: m | G10: 7a | H10: 27
A11: 5a | B11: Zeppelin | C11: Leni | D11: 2011 | E11: w | G11: 7b | H11: 27
A12: 5a | B12: Kallote | C12: Marus | D12: 2011 | E12: m | G12: 7c | H12: 24
A13: 5a | B13: Alaba | C13: David | D13: 2011 | E13: m | G13: 7d | H13: 27
A14: 5a | B14: Dressel | C14: Dennis | D14: 2011 | E14: m | G14: 8a | H14: 24
A15: 5a | B15: Djajo | C15: Johann | D15: 2011 | E15: m | G15: 8b | H15: 24
A16: 5a | B16: Hiller | C16: Marco | D16: 2011 | E16: m | G16: 8c | H16: 27
A17: 5a | B17: Lex | C17: Stefan | D17: 2010 | E17: m | G17: 8d | H17: 30
A18: 5a | B18: Mölders | C18: Sascha | D18: 2011 | E18: m | H18: =SUM(H2:H17) -> 420
A19: 5a | B19: Tallig | C19: Erik | D19: 2011 | E19: m
A20: 5a | B20: Zeppelin | C20: Leni | D20: 2011 | E20: w
A21: 5a | B21: Kallote | C21: Marus | D21: 2011 | E21: m
A22: 5a | B22: Alaba | C22: David | D22: 2011 | E22: m
A23: 5a | B23: Belkahia | C23: Semi | D23: 2010 | E23: m
A24: 5a | B24: Dressel | C24: Dennis | D24: 2011 | E24: m
A25: 5a | B25: Djajo | C25: Johann | D25: 2011 | E25: m
A26: 5a | B26: Hiller | C26: Marco | D26: 2011 | E26: m
A27: 5a | B27: Lex | C27: Stefan | D27: 2010 | E27: m
A28: 5a | B28: Mölders | C28: Sascha | D28: 2011 | E28: m
A29: 5a | B29: Tallig | C29: Erik | D29: 2011 | E29: m
A30: 5b | B30: Belkner | C30: Jerome | D30: 2010 | E30: m
A31: 5b | B31: Belkahia | C31: Semi | D31: 2010 | E31: m
A32: 5b | B32: Belkner | C32: Jerome | D32: 2010 | E32: m
A33: 5b | B33: Zeppelin | C33: Leni | D33: 2011 | E33: w
A34: 5b | B34: Kallote | C34: Marus | D34: 2011 | E34: m
A35: 5b | B35: Hund | C35: Kurt | D35: 2010 | E35: m
A36: 5b | B36: Penara | C36: Horst | D36: 2010 | E36: m
A37: 5b | B37: Rieser | C37: Jennifer | D37: 2010 | E37: w
A38: 5b | B38: Schoning | C38: Daniela | D38: 2010 | E38: w
A39: 5b | B39: Grimmig | C39: Karola | D39: 2010 | E39: w
A40: 5b | B40: Jordu | C40: Jaja | D40: 2010 | E40: w
A41: 5b | B41: Erdmann | C41: Denise | D41: 2011 | E41: w
A42: 5b | B42: Greilinger | C42: Fabienne | D42: 2010 | E42: w
A43: 5b | B43: Hund | C43: Kurt | D43: 2010 | E43: m
A44: 5b | B44: Penara | C44: Horst | D44: 2010 | E44: m
A45: 5b | B45: Rieser | C45: Jennifer | D45: 2010 | E45: w
A46: 5b | B46: Schoning | C46: Daniela | D46: 2010 | E46: w
A47: 5b | B47: Grimmig | C47: Karola | D47: 2010 | E47: w
A48: 5b | B48: Jordu | C48: Jaja | D48: 2010 | E48: w
A49: 5b | B49: Erdmann | C49: Denise | D49: 2011 | E49: w
A50: 5b | B50: Greilinger | C50: Fabienne | D50: 2010 | E50: w
A51: 5b | B51: Hund | C51: Kurt | D51: 2010 | E51: m
A52: 5b | B52: Penara | C52: Horst | D52: 2010 | E52: m
A53: 5b | B53: Rieser | C53: Jennifer | D53: 2010 | E53: w
A54: 5b | B54: Schoning | C54: Daniela | D54: 2010 | E54: w
A55: 5b | B55: Grimmig | C55: Karola | D55: 2010 | E55: w
A56: 5b | B56: Jordu | C56: Jaja | D56: 2010 | E56: w
A57: 5b | B57: Erdmann | C57: Denise | D57: 2011 | E57: w
A58: 5b | B58: Greilinger | C58: Fabienne | D58: 2010 | E58: w
A59: 5c | B59: Klassen | C59: Leonie | D59: 2010 | E59: w
A60: 5c | B60: Moll | C60: Quirinia | D60: 2011 | E60: w
A61: 5c | B61: Salger | C61: Stephanie | D61: 2011 | E61: w
A62: 5c | B62: Steinhart | C62: Philippa | D62: 2011 | E62: w
A63: 5c | B63: wein | C63: Daniela | D63: 2011 | E63: w
A64: 5c | B64: willsch | C64: Maria | D64: 2011 | E64: w
A65: 5c | B65: woodstock | C65: Neele | D65: 2011 | E65: w
A66: 5c | B66: Klassen | C66: Leonie | D66: 2010 | E66: w
A67: 5c | B67: Moll | C67: Quirinia | D67: 2011 | E67: w
A68: 5c | B68: Salger | C68: Stephanie | D68: 2011 | E68: w
A69: 5c | B69: Steinhart | C69: Philippa | D69: 2011 | E69: w
A70: 5c | B70: wein | C70: Daniela | D70: 2011 | E70: w
A71: 5c | B71: willsch | C71: Maria | D71: 2011 | E71: w
A72: 5c | B72: woodstock | C72: Neele | D72: 2011 | E72: w
A73: 5c | B73: Klassen | C73: Leonie | D73: 2010 | E73: w
A74: 5c | B74: Moll | C74: Quirinia | D74: 2011 | E74: w
A75: 5c | B75: Salger | C75: Stephanie | D75: 2011 | E75: w
A76: 5c | B76: Steinhart | C76: Philippa | D76: 2011 | E76: w
A77: 5c | B77: wein | C77: Daniela | D77: 2011 | E77: w
A78: 5c | B78: willsch | C78: Maria | D78: 2011 | E78: w
A79: 5c | B79: woodstock | C79: Neele | D79: 2011 | E79: w
A80: 5d | B80: Adler | C80: Marja | D80: 2011 | E80: w
A81: 5d | B81: Jannowski | C81: Sonja | D81: 2011 | E81: w
A82: 5d | B82: Lowsano | C82: Simon | D82: 2011 | E82: m
A83: 5d | B83: Pretlow | C83: Janus | D83: 2011 | E83: m
A84: 5d | B84: Schibar | C84: Mara | D84: 2011 | E84: w
A85: 5d | B85: Schulze | C85: Anjoschka | D85: 2011 | E85: w
A86: 5d | B86: wlodomar | C86: Hermann | D86: 2011 | E86: m
A87: 5d | B87: Birkus | C87: Yvo | D87: 2011 | E87: m
A88: 5d | B88: Adler | C88: Marja | D88: 2011 | E88: w
A89: 5d | B89: Jannowski | C89: Sonja | D89: 2011 | E89: w
A90: 5d | B90: Lowsano | C90: Simon | D90: 2011 | E90: m
A91: 5d | B91: Pretlow | C91: Janus | D91: 2011 | E91: m
A92: 5d | B92: Schibar | C92: Mara | D92: 2011 | E92: w
A93: 5d | B93: Schulze | C93: Anjoschka | D93: 2011 | E93: w
A94: 5d | B94: wlodomar | C94: Hermann | D94: 2011 | E94: m
A95: 5d | B95: Birkus | C95: Yvo | D95: 2011 | E95: m
A96: 5d | B96: Adler | C96: Marja | D96: 2011 | E96: w
A97: 5d | B97: Jannowski | C97: Sonja | D97: 2011 | E97: w
A98: 5d | B98: Lowsano | C98: Simon | D98: 2011 | E98: m
A99: 5d | B99: Pretlow | C99: Janus | D99: 2011 | E99: m
A100: 5d | B100: Schibar | C100: Mara | D100: 2011 | E100: w
A101: 5d | B101: Schulze | C101: Anjoschka | D101: 2011 | E101: w
A102: 5d | B102: wlodomar | C102: Hermann | D102: 2011 | E102: m
A103: 5d | B103: Birkus | C103: Yvo | D103: 2011 | E103: m
A104: 5d | B104: Echems | C104: Alexander | D104: 2011 | E104: m
A105: 6a | B105: Paustik | C105: Tanja | D105: 2009 | E105: w
A106: 6a | B106: Struwe | C106: Bert | D106: 2009 | E106: m
A107: 6a | B107: Langwasser | C107: Yvo | D107: 2009 | E107: m
A108: 6a | B108: Schöbel | C108: Uwe | D108: 2009 | E108: m
A109: 6a | B109: Schrüll | C109: Sigbert | D109: 2009 | E109: m
A110: 6a | B110: Klim | C110: Christian | D110: 2009 | E110: m
A111: 6a | B111: Schlup | C111: Alexander | D111: 2009 | E111: m
A112: 6a | B112: weber | C112: Katharina | D112: 2011 | E112: w
A113: 6a | B113: Echems | C113: Alexander | D113: 2011 | E113: m
A114: 6a | B114: Paustik | C114: Tanja | D114: 2009 | E114: w
A115: 6a | B115: Struwe | C115: Bert | D115: 2009 | E115: m
A116: 6a | B116: Langwasser | C116: Yvo | D116: 2009 | E116: m
A117: 6a | B117: Schöbel | C117: Uwe | D117: 2009 | E117: m
A118: 6a | B118: Schrüll | C118: Sigbert | D118: 2009 | E118: m
A119: 6a | B119: Klim | C119: Christian | D119: 2009 | E119: m
A120: 6a | B120: Schlup | C120: Alexander | D120: 2009 | E120: m
A121: 6a | B121: weber | C121: Katharina | D121: 2011 | E121: w
A122: 6a | B122: Echems | C122: Alexander | D122: 2011 | E122: m
A123: 6a | B123: Paustik | C123: Tanja | D123: 2009 | E123: w
A124: 6a | B124: Struwe | C124: Bert | D124: 2009 | E124: m
A125: 6a | B125: Langwasser | C125: Yvo | D125: 2009 | E125: m
A126: 6a | B126: Schöbel | C126: Uwe | D126: 2009 | E126: m
A127: 6a | B127: Schrüll | C127: Sigbert | D127: 2009 | E127: m
A128: 6a | B128: Klim | C128: Christian | D128: 2009 | E128: m
A129: 6a | B129: Schlup | C129: Alexander | D129: 2009 | E129: m
A130: 6a | B130: weber | C130: Katharina | D130: 2011 | E130: w
A131: 6b | B131: Becker | C131: Jonas | D131: 2010 | E131: m
A132: 6b | B132: Becker | C132: Jutta | D132: 2010 | E132: w
A133: 6b | B133: Gerlach | C133: Peter | D133: 2010 | E133: m
A134: 6b | B134: Herold | C134: Karin | D134: 2010 | E134: w
A135: 6b | B135: Herbst | C135: Sandra | D135: 2009 | E135: w
A136: 6b | B136: König | C136: Gabriele | D136: 2009 | E136: w
A137: 6b | B137: Löwe | C137: Jutta | D137: 2009 | E137: w
A138: 6b | B138: Lachner | C138: Thomas | D138: 2009 | E138: m
A139: 6b | B139: Becker | C139: Jonas | D139: 2010 | E139: m
A140: 6b | B140: Becker | C140: Jutta | D140: 2010 | E140: w
A141: 6b | B141: Gerlach | C141: Peter | D141: 2010 | E141: m
A142: 6b | B142: Herold | C142: Karin | D142: 2010 | E142: w
A143: 6b | B143: Herbst | C143: Sandra | D143: 2009 | E143: w
A144: 6b | B144: König | C144: Gabriele | D144: 2009 | E144: w
A145: 6b | B145: Löwe | C145: Jutta | D145: 2009 | E145: w
A146: 6b | B146: Lachner | C146: Thomas | D146: 2009 | E146: m
A147: 6b | B147: Becker | C147: Jonas | D147: 2010 | E147: m
A148: 6b | B148: Becker | C148: Jutta | D148: 2010 | E148: w
A149: 6b | B149: Gerlach | C149: Peter | D149: 2010 | E149: m
A150: 6b | B150: Herold | C150: Karin | D150: 2010 | E150: w
A151: 6b | B151: Herbst | C151: Sandra | D151: 2009 | E151: w
A152: 6b | B152: König | C152: Gabriele | D152: 2009 | E152: w
A153: 6b | B153: Löwe | C153: Jutta | D153: 2009 | E153: w
A154: 6b | B154: Lachner | C154: Thomas | D154: 2009 | E154: m
A155: 6c | B155: Bäter | C155: Stella | D155: 2011 | E155: w
A156: 6c | B156: Brüssing | C156: Philipp | D156: 2011 | E156: m
A157: 6c | B157: Rollas | C157: Gerd | D157: 2011 | E157: m
A158: 6c | B158: Gerlach | C158: Siegfried | D158: 2011 | E158: m
A159: 6c | B159: Althaus | C159: Christa | D159: 2009 | E159: w
A160: 6c | B160: Alt | C160: Julia | D160: 2009 | E160: w
A161: 6c | B161: Andersen | C161: Thomas | D161: 2009 | E161: m
A162: 6c | B162: Becker | C162: Carola | D162: 2009 | E162: w
A163: 6c | B163: Beck | C163: Franz | D163: 2009 | E163: m
A164: 6c | B164: Bäter | C164: Stella | D164: 2011 | E164: w
A165: 6c | B165: Brüssing | C165: Philipp | D165: 2011 | E165: m
A166: 6c | B166: Rollas | C166: Gerd | D166: 2011 | E166: m
A167: 6c | B167: Gerlach | C167: Siegfried | D167: 2011 | E167: m
A168: 6c | B168: Althaus | C168: Christa | D168: 2009 | E168: w
A169: 6c | B169: Alt | C169: Julia | D169: 2009 | E169: w
A170: 6c | B170: Andersen | C170: Thomas | D170: 2009 | E170: m
A171: 6c | B171: Becker | C171: Carola | D171: 2009 | E171: w
A172: 6c | B172: Beck | C172: Franz | D172: 2009 | E172: m
A173: 6c | B173: Bäter | C173: Stella | D173: 2011 | E173: w
A174: 6c | B174: Brüssing | C174: Philipp | D174: 2011 | E174: m
A175: 6c | B175: Rollas | C175: Gerd | D175: 2011 | E175: m
A176: 6c | B176: Gerlach | C176: Siegfried | D176: 2011 | E176: m
A177: 6c | B177: Althaus | C177: Christa | D177: 2009 | E177: w
A178: 6c | B178: Alt | C178: Julia | D178: 2009 | E178: w
A179: 6c | B179: Andersen | C179: Thomas | D179: 2009 | E179: m
A180: 6c | B180: Becker | C180: Carola | D180: 2009 | E180: w
A181: 6c | B181: Beck | C181: Franz | D181: 2009 | E181: m
A182: 6d | B182: Meyer | C182: Jutta | D182: 2009 | E182: w
A183: 6d | B183: Müller | C183: Tanja | D183: 2009 | E183: w
A184: 6d | B184: Meisner | C184: wilfried | D184: 2010 | E184: m
A185: 6d | B185: Petersen | C185: Günter | D185: 2010 | E185: m
A186: 6d | B186: Pilowski | C186: Heike | D186: 2010 | E186: w
A187: 6d | B187: Pausch | C187: Jens | D187: 2010 | E187: m
A188: 6d | B188: Schösser | C188: Bernd | D188: 2010 | E188: m
A189: 6d | B189: Schmidt | C189: Karl | D189: 2009 | E189: m
A190: 6d | B190: Schützer | C190: Ulf | D190: 2009 | E190: m
A191: 6d | B191: Tönje | C191: Christoph | D191: 2009 | E191: m
A192: 6d | B192: Meyer | C192: Jutta | D192: 2009 | E192: w
A193: 6d | B193: Müller | C193: Tanja | D193: 2009 | E193: w
A194: 6d | B194: Meisner | C194: wilfried | D194: 2010 | E194: m
A195: 6d | B195: Petersen | C195: Günter | D195: 2010 | E195: m
A196: 6d | B196: Pilowski | C196: Heike | D196: 2010 | E196: w
A197: 6d | B197: Pausch | C197: Jens | D197: 2010 | E197: m
A198: 6d | B198: Schösser | C198: Bernd | D198: 2010 | E198: m
A199: 6d | B199: Schmidt | C199: Karl | D199: 2009 | E199: m
A200: 6d | B200: Schützer | C200: Ulf | D200: 2009 | E200: m
... 221 more rows

Sheet Formeln
C1: Formeln
B3: 8w | C3: WENN(k2=0;0;WENN(k2<475;"T";WENN(k2<625;"S";WENN(k2>624;"E"))))
B4: 9w | C4: WENN(K3=0;0;WENN(K3<550;"T";WENN(K3<725;"S";WENN(K3>724;"E"))))
B5: 10w | C5: WENN(K4=0;0;WENN(K4<625;"T";WENN(K4<825;"S";WENN(K4>824;"E"))))
B6: 11w | C6: WENN(K4=0;0;WENN(K4<700;"T";WENN(K4<900;"S";WENN(K4>899;"E"))))
B7: 12w | C7: WENN(B7=0;0;WENN(B7<775;"T";WENN(B7<975;"S";WENN(B7>974;"E"))))
B8: 8m | C8: WENN(K2=0;0;WENN(K2<450;"T";WENN(K2<575;"S";WENN(K2>574;"E"))))
B9: 9m | C9: WENN(K7=0;0;WENN(K7<525;"T";WENN(K7<675;"S";WENN(K7>674;"E"))))
B10: 10m | C10: WENN(K8=0;0;WENN(K8<600;"T";WENN(K8<775;"S";WENN(K8>774;"E"))))
B11: 11m | C11: WENN(K8=0;0;WENN(K8<675;"T";WENN(K8<875;"S";WENN(K8>874;"E"))))
B12: 12m | C12: WENN(K8=0;0;WENN(K8<750;"T";WENN(K8<975;"S";WENN(K8>974;"E"))))
C14: Ausdauer | D14: Sprint | E14: Sprung | F14: Wurf
B15: w | C15: (((800/(g3))-2,0232)/0,00647) | D15: (((50/(12,38+0,24))-3,648)/0,0066) | E15: ((WURZEL(A15)-1,0935)/0,00208) | F15: ((WURZEL(B15)-2,0232)/0,00874)
B16: m | C16: (((1000/G5)-2,158)/0,006) | D16: (((50/(12,38+0,24))-3,79)/0,0069) | E16: ((WURZEL(A16)-1,15028)/0,00219) | F16: ((WURZEL(B16)-2,8)/0,011)

Sheet Ausgangstabelle
B1: Wettkampfliste 2022 | L1: Kl
B2: Leichtathletik | F2: Disziplin
F3: Ausdauer | G3: Sprint | H3: Weitsprung | K3: Wurf
F4: 800 m | G4: 50 m
A5: 0 | B5: Name | C5: Vorname | D5: Kl. | E5: Alter | F5: Leistung | G5: Leistung | H5: 1. V. | I5: 2. V. | J5: 3. V. | K5: 1. V. | L5: 2. V. | M5: 3. V.
A6: 1 | B6: =IF($M$1="","",IF($D6=$M$1,Eingabe!B3,"")) ->  | C6: =IF($M$1="","",IF($D6=$M$1,Eingabe!C3,"")) ->  | D6: =IF(Eingabe!$A3=$M$1,$M$1,"") ->  | E6: =IF($M$1="","",IF($D6=$M$1,Eingabe!G3,"")) -> 
A7: 2 | B7: =IF($M$1="","",IF($D7=$M$1,Eingabe!B4,"")) ->  | C7: =IF($M$1="","",IF($D7=$M$1,Eingabe!C4,"")) ->  | D7: =IF(Eingabe!$A4=$M$1,$M$1,"") ->  | E7: =IF($M$1="","",IF($D7=$M$1,Eingabe!G4,"")) -> 
A8: 3 | B8: =IF($M$1="","",IF($D8=$M$1,Eingabe!B5,"")) ->  | C8: =IF($M$1="","",IF($D8=$M$1,Eingabe!C5,"")) ->  | D8: =IF(Eingabe!$A5=$M$1,$M$1,"") ->  | E8: =IF($M$1="","",IF($D8=$M$1,Eingabe!G5,"")) -> 
A9: 4 | B9: =IF($M$1="","",IF($D9=$M$1,Eingabe!B6,"")) ->  | C9: =IF($M$1="","",IF($D9=$M$1,Eingabe!C6,"")) ->  | D9: =IF(Eingabe!$A6=$M$1,$M$1,"") ->  | E9: =IF($M$1="","",IF($D9=$M$1,Eingabe!G6,"")) -> 
A10: 5 | B10: =IF($M$1="","",IF($D10=$M$1,Eingabe!B7,"")) ->  | C10: =IF($M$1="","",IF($D10=$M$1,Eingabe!C7,"")) ->  | D10: =IF(Eingabe!$A7=$M$1,$M$1,"") ->  | E10: =IF($M$1="","",IF($D10=$M$1,Eingabe!G7,"")) -> 
A11: 6 | B11: =IF($M$1="","",IF($D11=$M$1,Eingabe!B8,"")) ->  | C11: =IF($M$1="","",IF($D11=$M$1,Eingabe!C8,"")) ->  | D11: =IF(Eingabe!$A8=$M$1,$M$1,"") ->  | E11: =IF($M$1="","",IF($D11=$M$1,Eingabe!G8,"")) -> 
A12: 7 | B12: =IF($M$1="","",IF($D12=$M$1,Eingabe!B9,"")) ->  | C12: =IF($M$1="","",IF($D12=$M$1,Eingabe!C9,"")) ->  | D12: =IF(Eingabe!$A9=$M$1,$M$1,"") ->  | E12: =IF($M$1="","",IF($D12=$M$1,Eingabe!G9,"")) -> 
A13: 8 | B13: =IF($M$1="","",IF($D13=$M$1,Eingabe!B10,"")) ->  | C13: =IF($M$1="","",IF($D13=$M$1,Eingabe!C10,"")) ->  | D13: =IF(Eingabe!$A10=$M$1,$M$1,"") ->  | E13: =IF($M$1="","",IF($D13=$M$1,Eingabe!G10,"")) -> 
A14: 9 | B14: =IF($M$1="","",IF($D14=$M$1,Eingabe!B11,"")) ->  | C14: =IF($M$1="","",IF($D14=$M$1,Eingabe!C11,"")) ->  | D14: =IF(Eingabe!$A11=$M$1,$M$1,"") ->  | E14: =IF($M$1="","",IF($D14=$M$1,Eingabe!G11,"")) -> 
A15: 10 | B15: =IF($M$1="","",IF($D15=$M$1,Eingabe!B12,"")) ->  | C15: =IF($M$1="","",IF($D15=$M$1,Eingabe!C12,"")) ->  | D15: =IF(Eingabe!$A12=$M$1,$M$1,"") ->  | E15: =IF($M$1="","",IF($D15=$M$1,Eingabe!G12,"")) -> 
A16: 11 | B16: =IF($M$1="","",IF($D16=$M$1,Eingabe!B13,"")) ->  | C16: =IF($M$1="","",IF($D16=$M$1,Eingabe!C13,"")) ->  | D16: =IF(Eingabe!$A13=$M$1,$M$1,"") ->  | E16: =IF($M$1="","",IF($D16=$M$1,Eingabe!G13,"")) -> 
A17: 12 | B17: =IF($M$1="","",IF($D17=$M$1,Eingabe!B14,"")) ->  | C17: =IF($M$1="","",IF($D17=$M$1,Eingabe!C14,"")) ->  | D17: =IF(Eingabe!$A14=$M$1,$M$1,"") ->  | E17: =IF($M$1="","",IF($D17=$M$1,Eingabe!G14,"")) -> 
A18: 13 | B18: =IF($M$1="","",IF($D18=$M$1,Eingabe!B15,"")) ->  | C18: =IF($M$1="","",IF($D18=$M$1,Eingabe!C15,"")) ->  | D18: =IF(Eingabe!$A15=$M$1,$M$1,"") ->  | E18: =IF($M$1="","",IF($D18=$M$1,Eingabe!G15,"")) -> 
A19: 14 | B19: =IF($M$1="","",IF($D19=$M$1,Eingabe!B16,"")) ->  | C19: =IF($M$1="","",IF($D19=$M$1,Eingabe!C16,"")) ->  | D19: =IF(Eingabe!$A16=$M$1,$M$1,"") ->  | E19: =IF($M$1="","",IF($D19=$M$1,Eingabe!G16,"")) -> 
A20: 15 | B20: =IF($M$1="","",IF($D20=$M$1,Eingabe!B17,"")) ->  | C20: =IF($M$1="","",IF($D20=$M$1,Eingabe!C17,"")) ->  | D20: =IF(Eingabe!$A17=$M$1,$M$1,"") ->  | E20: =IF($M$1="","",IF($D20=$M$1,Eingabe!G17,"")) -> 
A21: 16 | B21: =IF($M$1="","",IF($D21=$M$1,Eingabe!B18,"")) ->  | C21: =IF($M$1="","",IF($D21=$M$1,Eingabe!C18,"")) ->  | D21: =IF(Eingabe!$A18=$M$1,$M$1,"") ->  | E21: =IF($M$1="","",IF($D21=$M$1,Eingabe!G18,"")) -> 
A22: 17 | B22: =IF($M$1="","",IF($D22=$M$1,Eingabe!B19,"")) ->  | C22: =IF($M$1="","",IF($D22=$M$1,Eingabe!C19,"")) ->  | D22: =IF(Eingabe!$A19=$M$1,$M$1,"") ->  | E22: =IF($M$1="","",IF($D22=$M$1,Eingabe!G19,"")) -> 
A23: 18 | B23: =IF($M$1="","",IF($D23=$M$1,Eingabe!B20,"")) ->  | C23: =IF($M$1="","",IF($D23=$M$1,Eingabe!C20,"")) ->  | D23: =IF(Eingabe!$A20=$M$1,$M$1,"") ->  | E23: =IF($M$1="","",IF($D23=$M$1,Eingabe!G20,"")) -> 
A24: 19 | B24: =IF($M$1="","",IF($D24=$M$1,Eingabe!B21,"")) ->  | C24: =IF($M$1="","",IF($D24=$M$1,Eingabe!C21,"")) ->  | D24: =IF(Eingabe!$A21=$M$1,$M$1,"") ->  | E24: =IF($M$1="","",IF($D24=$M$1,Eingabe!G21,"")) -> 
A25: 20 | B25: =IF($M$1="","",IF($D25=$M$1,Eingabe!B22,"")) ->  | C25: =IF($M$1="","",IF($D25=$M$1,Eingabe!C22,"")) ->  | D25: =IF(Eingabe!$A22=$M$1,$M$1,"") ->  | E25: =IF($M$1="","",IF($D25=$M$1,Eingabe!G22,"")) -> 
A26: 21 | B26: =IF($M$1="","",IF($D26=$M$1,Eingabe!B23,"")) ->  | C26: =IF($M$1="","",IF($D26=$M$1,Eingabe!C23,"")) ->  | D26: =IF(Eingabe!$A23=$M$1,$M$1,"") ->  | E26: =IF($M$1="","",IF($D26=$M$1,Eingabe!G23,"")) -> 
A27: 22 | B27: =IF($M$1="","",IF($D27=$M$1,Eingabe!B24,"")) ->  | C27: =IF($M$1="","",IF($D27=$M$1,Eingabe!C24,"")) ->  | D27: =IF(Eingabe!$A24=$M$1,$M$1,"") ->  | E27: =IF($M$1="","",IF($D27=$M$1,Eingabe!G24,"")) -> 
A28: 23 | B28: =IF($M$1="","",IF($D28=$M$1,Eingabe!B25,"")) ->  | C28: =IF($M$1="","",IF($D28=$M$1,Eingabe!C25,"")) ->  | D28: =IF(Eingabe!$A25=$M$1,$M$1,"") ->  | E28: =IF($M$1="","",IF($D28=$M$1,Eingabe!G25,"")) -> 
A29: 24 | B29: =IF($M$1="","",IF($D29=$M$1,Eingabe!B26,"")) ->  | C29: =IF($M$1="","",IF($D29=$M$1,Eingabe!C26,"")) ->  | D29: =IF(Eingabe!$A26=$M$1,$M$1,"") ->  | E29: =IF($M$1="","",IF($D29=$M$1,Eingabe!G26,"")) -> 
A30: 25 | B30: =IF($M$1="","",IF($D30=$M$1,Eingabe!B27,"")) ->  | C30: =IF($M$1="","",IF($D30=$M$1,Eingabe!C27,"")) ->  | D30: =IF(Eingabe!$A27=$M$1,$M$1,"") ->  | E30: =IF($M$1="","",IF($D30=$M$1,Eingabe!G27,"")) -> 
A31: 26 | B31: =IF($M$1="","",IF($D31=$M$1,Eingabe!B28,"")) ->  | C31: =IF($M$1="","",IF($D31=$M$1,Eingabe!C28,"")) ->  | D31: =IF(Eingabe!$A28=$M$1,$M$1,"") ->  | E31: =IF($M$1="","",IF($D31=$M$1,Eingabe!G28,"")) -> 
A32: 27 | B32: =IF($M$1="","",IF($D32=$M$1,Eingabe!B29,"")) ->  | C32: =IF($M$1="","",IF($D32=$M$1,Eingabe!C29,"")) ->  | D32: =IF(Eingabe!$A29=$M$1,$M$1,"") ->  | E32: =IF($M$1="","",IF($D32=$M$1,Eingabe!G29,"")) -> 
A33: 28 | B33: =IF($M$1="","",IF($D33=$M$1,Eingabe!B30,"")) ->  | C33: =IF($M$1="","",IF($D33=$M$1,Eingabe!C30,"")) ->  | D33: =IF(Eingabe!$A30=$M$1,$M$1,"") ->  | E33: =IF($M$1="","",IF($D33=$M$1,Eingabe!G30,"")) -> 
A34: 29 | B34: =IF($M$1="","",IF($D34=$M$1,Eingabe!B31,"")) ->  | C34: =IF($M$1="","",IF($D34=$M$1,Eingabe!C31,"")) ->  | D34: =IF(Eingabe!$A31=$M$1,$M$1,"") ->  | E34: =IF($M$1="","",IF($D34=$M$1,Eingabe!G31,"")) -> 
A35: 30 | B35: =IF($M$1="","",IF($D35=$M$1,Eingabe!B32,"")) ->  | C35: =IF($M$1="","",IF($D35=$M$1,Eingabe!C32,"")) ->  | D35: =IF(Eingabe!$A32=$M$1,$M$1,"") ->  | E35: =IF($M$1="","",IF($D35=$M$1,Eingabe!G32,"")) -> 
A36: 31 | B36: =IF($M$1="","",IF($D36=$M$1,Eingabe!B33,"")) ->  | C36: =IF($M$1="","",IF($D36=$M$1,Eingabe!C33,"")) ->  | D36: =IF(Eingabe!$A33=$M$1,$M$1,"") ->  | E36: =IF($M$1="","",IF($D36=$M$1,Eingabe!G33,"")) -> 
A37: 32 | B37: =IF($M$1="","",IF($D37=$M$1,Eingabe!B34,"")) ->  | C37: =IF($M$1="","",IF($D37=$M$1,Eingabe!C34,"")) ->  | D37: =IF(Eingabe!$A34=$M$1,$M$1,"") ->  | E37: =IF($M$1="","",IF($D37=$M$1,Eingabe!G34,"")) -> 
A38: 33 | B38: =IF($M$1="","",IF($D38=$M$1,Eingabe!B35,"")) ->  | C38: =IF($M$1="","",IF($D38=$M$1,Eingabe!C35,"")) ->  | D38: =IF(Eingabe!$A35=$M$1,$M$1,"") ->  | E38: =IF($M$1="","",IF($D38=$M$1,Eingabe!G35,"")) -> 
A39: 34 | B39: =IF($M$1="","",IF($D39=$M$1,Eingabe!B36,"")) ->  | C39: =IF($M$1="","",IF($D39=$M$1,Eingabe!C36,"")) ->  | D39: =IF(Eingabe!$A36=$M$1,$M$1,"") ->  | E39: =IF($M$1="","",IF($D39=$M$1,Eingabe!G36,"")) -> 
A40: 35 | B40: =IF($M$1="","",IF($D40=$M$1,Eingabe!B37,"")) ->  | C40: =IF($M$1="","",IF($D40=$M$1,Eingabe!C37,"")) ->  | D40: =IF(Eingabe!$A37=$M$1,$M$1,"") ->  | E40: =IF($M$1="","",IF($D40=$M$1,Eingabe!G37,"")) -> 
A41: 36 | B41: =IF($M$1="","",IF($D41=$M$1,Eingabe!B38,"")) ->  | C41: =IF($M$1="","",IF($D41=$M$1,Eingabe!C38,"")) ->  | D41: =IF(Eingabe!$A38=$M$1,$M$1,"") ->  | E41: =IF($M$1="","",IF($D41=$M$1,Eingabe!G38,"")) -> 
A42: 37 | B42: =IF($M$1="","",IF($D42=$M$1,Eingabe!B39,"")) ->  | C42: =IF($M$1="","",IF($D42=$M$1,Eingabe!C39,"")) ->  | D42: =IF(Eingabe!$A39=$M$1,$M$1,"") ->  | E42: =IF($M$1="","",IF($D42=$M$1,Eingabe!G39,"")) -> 
A43: 38 | B43: =IF($M$1="","",IF($D43=$M$1,Eingabe!B40,"")) ->  | C43: =IF($M$1="","",IF($D43=$M$1,Eingabe!C40,"")) ->  | D43: =IF(Eingabe!$A40=$M$1,$M$1,"") ->  | E43: =IF($M$1="","",IF($D43=$M$1,Eingabe!G40,"")) -> 
A44: 39 | B44: =IF($M$1="","",IF($D44=$M$1,Eingabe!B41,"")) ->  | C44: =IF($M$1="","",IF($D44=$M$1,Eingabe!C41,"")) ->  | D44: =IF(Eingabe!$A41=$M$1,$M$1,"") ->  | E44: =IF($M$1="","",IF($D44=$M$1,Eingabe!G41,"")) -> 
A45: 40 | B45: =IF($M$1="","",IF($D45=$M$1,Eingabe!B42,"")) ->  | C45: =IF($M$1="","",IF($D45=$M$1,Eingabe!C42,"")) ->  | D45: =IF(Eingabe!$A42=$M$1,$M$1,"") ->  | E45: =IF($M$1="","",IF($D45=$M$1,Eingabe!G42,"")) -> 
A46: 41 | B46: =IF($M$1="","",IF($D46=$M$1,Eingabe!B43,"")) ->  | C46: =IF($M$1="","",IF($D46=$M$1,Eingabe!C43,"")) ->  | D46: =IF(Eingabe!$A43=$M$1,$M$1,"") ->  | E46: =IF($M$1="","",IF($D46=$M$1,Eingabe!G43,"")) -> 
A47: 42 | B47: =IF($M$1="","",IF($D47=$M$1,Eingabe!B44,"")) ->  | C47: =IF($M$1="","",IF($D47=$M$1,Eingabe!C44,"")) ->  | D47: =IF(Eingabe!$A44=$M$1,$M$1,"") ->  | E47: =IF($M$1="","",IF($D47=$M$1,Eingabe!G44,"")) -> 
A48: 43 | B48: =IF($M$1="","",IF($D48=$M$1,Eingabe!B45,"")) ->  | C48: =IF($M$1="","",IF($D48=$M$1,Eingabe!C45,"")) ->  | D48: =IF(Eingabe!$A45=$M$1,$M$1,"") ->  | E48: =IF($M$1="","",IF($D48=$M$1,Eingabe!G45,"")) -> 
A49: 44 | B49: =IF($M$1="","",IF($D49=$M$1,Eingabe!B46,"")) ->  | C49: =IF($M$1="","",IF($D49=$M$1,Eingabe!C46,"")) ->  | D49: =IF(Eingabe!$A46=$M$1,$M$1,"") ->  | E49: =IF($M$1="","",IF($D49=$M$1,Eingabe!G46,"")) -> 
A50: 45 | B50: =IF($M$1="","",IF($D50=$M$1,Eingabe!B47,"")) ->  | C50: =IF($M$1="","",IF($D50=$M$1,Eingabe!C47,"")) ->  | D50: =IF(Eingabe!$A47=$M$1,$M$1,"") ->  | E50: =IF($M$1="","",IF($D50=$M$1,Eingabe!G47,"")) -> 
A51: 46 | B51: =IF($M$1="","",IF($D51=$M$1,Eingabe!B48,"")) ->  | C51: =IF($M$1="","",IF($D51=$M$1,Eingabe!C48,"")) ->  | D51: =IF(Eingabe!$A48=$M$1,$M$1,"") ->  | E51: =IF($M$1="","",IF($D51=$M$1,Eingabe!G48,"")) -> 
A52: 47 | B52: =IF($M$1="","",IF($D52=$M$1,Eingabe!B49,"")) ->  | C52: =IF($M$1="","",IF($D52=$M$1,Eingabe!C49,"")) ->  | D52: =IF(Eingabe!$A49=$M$1,$M$1,"") ->  | E52: =IF($M$1="","",IF($D52=$M$1,Eingabe!G49,"")) -> 
A53: 48 | B53: =IF($M$1="","",IF($D53=$M$1,Eingabe!B50,"")) ->  | C53: =IF($M$1="","",IF($D53=$M$1,Eingabe!C50,"")) ->  | D53: =IF(Eingabe!$A50=$M$1,$M$1,"") ->  | E53: =IF($M$1="","",IF($D53=$M$1,Eingabe!G50,"")) -> 
A54: 49 | B54: =IF($M$1="","",IF($D54=$M$1,Eingabe!B51,"")) ->  | C54: =IF($M$1="","",IF($D54=$M$1,Eingabe!C51,"")) ->  | D54: =IF(Eingabe!$A51=$M$1,$M$1,"") ->  | E54: =IF($M$1="","",IF($D54=$M$1,Eingabe!G51,"")) -> 
A55: 50 | B55: =IF($M$1="","",IF($D55=$M$1,Eingabe!B52,"")) ->  | C55: =IF($M$1="","",IF($D55=$M$1,Eingabe!C52,"")) ->  | D55: =IF(Eingabe!$A52=$M$1,$M$1,"") ->  | E55: =IF($M$1="","",IF($D55=$M$1,Eingabe!G52,"")) -> 
A56: 51 | B56: =IF($M$1="","",IF($D56=$M$1,Eingabe!B53,"")) ->  | C56: =IF($M$1="","",IF($D56=$M$1,Eingabe!C53,"")) ->  | D56: =IF(Eingabe!$A53=$M$1,$M$1,"") ->  | E56: =IF($M$1="","",IF($D56=$M$1,Eingabe!G53,"")) -> 
A57: 52 | B57: =IF($M$1="","",IF($D57=$M$1,Eingabe!B54,"")) ->  | C57: =IF($M$1="","",IF($D57=$M$1,Eingabe!C54,"")) ->  | D57: =IF(Eingabe!$A54=$M$1,$M$1,"") ->  | E57: =IF($M$1="","",IF($D57=$M$1,Eingabe!G54,"")) -> 
A58: 53 | B58: =IF($M$1="","",IF($D58=$M$1,Eingabe!B55,"")) ->  | C58: =IF($M$1="","",IF($D58=$M$1,Eingabe!C55,"")) ->  | D58: =IF(Eingabe!$A55=$M$1,$M$1,"") ->  | E58: =IF($M$1="","",IF($D58=$M$1,Eingabe!G55,"")) -> 
A59: 54 | B59: =IF($M$1="","",IF($D59=$M$1,Eingabe!B56,"")) ->  | C59: =IF($M$1="","",IF($D59=$M$1,Eingabe!C56,"")) ->  | D59: =IF(Eingabe!$A56=$M$1,$M$1,"") ->  | E59: =IF($M$1="","",IF($D59=$M$1,Eingabe!G56,"")) -> 
A60: 55 | B60: =IF($M$1="","",IF($D60=$M$1,Eingabe!B57,"")) ->  | C60: =IF($M$1="","",IF($D60=$M$1,Eingabe!C57,"")) ->  | D60: =IF(Eingabe!$A57=$M$1,$M$1,"") ->  | E60: =IF($M$1="","",IF($D60=$M$1,Eingabe!G57,"")) -> 
A61: 56 | B61: =IF($M$1="","",IF($D61=$M$1,Eingabe!B58,"")) ->  | C61: =IF($M$1="","",IF($D61=$M$1,Eingabe!C58,"")) ->  | D61: =IF(Eingabe!$A58=$M$1,$M$1,"") ->  | E61: =IF($M$1="","",IF($D61=$M$1,Eingabe!G58,"")) -> 
A62: 57 | B62: =IF($M$1="","",IF($D62=$M$1,Eingabe!B59,"")) ->  | C62: =IF($M$1="","",IF($D62=$M$1,Eingabe!C59,"")) ->  | D62: =IF(Eingabe!$A59=$M$1,$M$1,"") ->  | E62: =IF($M$1="","",IF($D62=$M$1,Eingabe!G59,"")) -> 
A63: 58 | B63: =IF($M$1="","",IF($D63=$M$1,Eingabe!B60,"")) ->  | C63: =IF($M$1="","",IF($D63=$M$1,Eingabe!C60,"")) ->  | D63: =IF(Eingabe!$A60=$M$1,$M$1,"") ->  | E63: =IF($M$1="","",IF($D63=$M$1,Eingabe!G60,"")) -> 
A64: 59 | B64: =IF($M$1="","",IF($D64=$M$1,Eingabe!B61,"")) ->  | C64: =IF($M$1="","",IF($D64=$M$1,Eingabe!C61,"")) ->  | D64: =IF(Eingabe!$A61=$M$1,$M$1,"") ->  | E64: =IF($M$1="","",IF($D64=$M$1,Eingabe!G61,"")) -> 
A65: 60 | B65: =IF($M$1="","",IF($D65=$M$1,Eingabe!B62,"")) ->  | C65: =IF($M$1="","",IF($D65=$M$1,Eingabe!C62,"")) ->  | D65: =IF(Eingabe!$A62=$M$1,$M$1,"") ->  | E65: =IF($M$1="","",IF($D65=$M$1,Eingabe!G62,"")) -> 
A66: 61 | B66: =IF($M$1="","",IF($D66=$M$1,Eingabe!B63,"")) ->  | C66: =IF($M$1="","",IF($D66=$M$1,Eingabe!C63,"")) ->  | D66: =IF(Eingabe!$A63=$M$1,$M$1,"") ->  | E66: =IF($M$1="","",IF($D66=$M$1,Eingabe!G63,"")) -> 
A67: 62 | B67: =IF($M$1="","",IF($D67=$M$1,Eingabe!B64,"")) ->  | C67: =IF($M$1="","",IF($D67=$M$1,Eingabe!C64,"")) ->  | D67: =IF(Eingabe!$A64=$M$1,$M$1,"") ->  | E67: =IF($M$1="","",IF($D67=$M$1,Eingabe!G64,"")) -> 
A68: 63 | B68: =IF($M$1="","",IF($D68=$M$1,Eingabe!B65,"")) ->  | C68: =IF($M$1="","",IF($D68=$M$1,Eingabe!C65,"")) ->  | D68: =IF(Eingabe!$A65=$M$1,$M$1,"") ->  | E68: =IF($M$1="","",IF($D68=$M$1,Eingabe!G65,"")) -> 
A69: 64 | B69: =IF($M$1="","",IF($D69=$M$1,Eingabe!B66,"")) ->  | C69: =IF($M$1="","",IF($D69=$M$1,Eingabe!C66,"")) ->  | D69: =IF(Eingabe!$A66=$M$1,$M$1,"") ->  | E69: =IF($M$1="","",IF($D69=$M$1,Eingabe!G66,"")) -> 
A70: 65 | B70: =IF($M$1="","",IF($D70=$M$1,Eingabe!B67,"")) ->  | C70: =IF($M$1="","",IF($D70=$M$1,Eingabe!C67,"")) ->  | D70: =IF(Eingabe!$A67=$M$1,$M$1,"") ->  | E70: =IF($M$1="","",IF($D70=$M$1,Eingabe!G67,"")) -> 
A71: 66 | B71: =IF($M$1="","",IF($D71=$M$1,Eingabe!B68,"")) ->  | C71: =IF($M$1="","",IF($D71=$M$1,Eingabe!C68,"")) ->  | D71: =IF(Eingabe!$A68=$M$1,$M$1,"") ->  | E71: =IF($M$1="","",IF($D71=$M$1,Eingabe!G68,"")) -> 
A72: 67 | B72: =IF($M$1="","",IF($D72=$M$1,Eingabe!B69,"")) ->  | C72: =IF($M$1="","",IF($D72=$M$1,Eingabe!C69,"")) ->  | D72: =IF(Eingabe!$A69=$M$1,$M$1,"") ->  | E72: =IF($M$1="","",IF($D72=$M$1,Eingabe!G69,"")) -> 
A73: 68 | B73: =IF($M$1="","",IF($D73=$M$1,Eingabe!B70,"")) ->  | C73: =IF($M$1="","",IF($D73=$M$1,Eingabe!C70,"")) ->  | D73: =IF(Eingabe!$A70=$M$1,$M$1,"") ->  | E73: =IF($M$1="","",IF($D73=$M$1,Eingabe!G70,"")) -> 
A74: 69 | B74: =IF($M$1="","",IF($D74=$M$1,Eingabe!B71,"")) ->  | C74: =IF($M$1="","",IF($D74=$M$1,Eingabe!C71,"")) ->  | D74: =IF(Eingabe!$A71=$M$1,$M$1,"") ->  | E74: =IF($M$1="","",IF($D74=$M$1,Eingabe!G71,"")) -> 
A75: 70 | B75: =IF($M$1="","",IF($D75=$M$1,Eingabe!B72,"")) ->  | C75: =IF($M$1="","",IF($D75=$M$1,Eingabe!C72,"")) ->  | D75: =IF(Eingabe!$A72=$M$1,$M$1,"") ->  | E75: =IF($M$1="","",IF($D75=$M$1,Eingabe!G72,"")) -> 
A76: 71 | B76: =IF($M$1="","",IF($D76=$M$1,Eingabe!B73,"")) ->  | C76: =IF($M$1="","",IF($D76=$M$1,Eingabe!C73,"")) ->  | D76: =IF(Eingabe!$A73=$M$1,$M$1,"") ->  | E76: =IF($M$1="","",IF($D76=$M$1,Eingabe!G73,"")) -> 
A77: 72 | B77: =IF($M$1="","",IF($D77=$M$1,Eingabe!B74,"")) ->  | C77: =IF($M$1="","",IF($D77=$M$1,Eingabe!C74,"")) ->  | D77: =IF(Eingabe!$A74=$M$1,$M$1,"") ->  | E77: =IF($M$1="","",IF($D77=$M$1,Eingabe!G74,"")) -> 
A78: 73 | B78: =IF($M$1="","",IF($D78=$M$1,Eingabe!B75,"")) ->  | C78: =IF($M$1="","",IF($D78=$M$1,Eingabe!C75,"")) ->  | D78: =IF(Eingabe!$A75=$M$1,$M$1,"") ->  | E78: =IF($M$1="","",IF($D78=$M$1,Eingabe!G75,"")) -> 
A79: 74 | B79: =IF($M$1="","",IF($D79=$M$1,Eingabe!B76,"")) ->  | C79: =IF($M$1="","",IF($D79=$M$1,Eingabe!C76,"")) ->  | D79: =IF(Eingabe!$A76=$M$1,$M$1,"") ->  | E79: =IF($M$1="","",IF($D79=$M$1,Eingabe!G76,"")) -> 
A80: 75 | B80: =IF($M$1="","",IF($D80=$M$1,Eingabe!B77,"")) ->  | C80: =IF($M$1="","",IF($D80=$M$1,Eingabe!C77,"")) ->  | D80: =IF(Eingabe!$A77=$M$1,$M$1,"") ->  | E80: =IF($M$1="","",IF($D80=$M$1,Eingabe!G77,"")) -> 
A81: 76 | B81: =IF($M$1="","",IF($D81=$M$1,Eingabe!B78,"")) ->  | C81: =IF($M$1="","",IF($D81=$M$1,Eingabe!C78,"")) ->  | D81: =IF(Eingabe!$A78=$M$1,$M$1,"") ->  | E81: =IF($M$1="","",IF($D81=$M$1,Eingabe!G78,"")) -> 
A82: 77 | B82: =IF($M$1="","",IF($D82=$M$1,Eingabe!B79,"")) ->  | C82: =IF($M$1="","",IF($D82=$M$1,Eingabe!C79,"")) ->  | D82: =IF(Eingabe!$A79=$M$1,$M$1,"") ->  | E82: =IF($M$1="","",IF($D82=$M$1,Eingabe!G79,"")) -> 
A83: 78 | B83: =IF($M$1="","",IF($D83=$M$1,Eingabe!B80,"")) ->  | C83: =IF($M$1="","",IF($D83=$M$1,Eingabe!C80,"")) ->  | D83: =IF(Eingabe!$A80=$M$1,$M$1,"") ->  | E83: =IF($M$1="","",IF($D83=$M$1,Eingabe!G80,"")) -> 
A84: 79 | B84: =IF($M$1="","",IF($D84=$M$1,Eingabe!B81,"")) ->  | C84: =IF($M$1="","",IF($D84=$M$1,Eingabe!C81,"")) ->  | D84: =IF(Eingabe!$A81=$M$1,$M$1,"") ->  | E84: =IF($M$1="","",IF($D84=$M$1,Eingabe!G81,"")) -> 
A85: 80 | B85: =IF($M$1="","",IF($D85=$M$1,Eingabe!B82,"")) ->  | C85: =IF($M$1="","",IF($D85=$M$1,Eingabe!C82,"")) ->  | D85: =IF(Eingabe!$A82=$M$1,$M$1,"") ->  | E85: =IF($M$1="","",IF($D85=$M$1,Eingabe!G82,"")) -> 
A86: 81 | B86: =IF($M$1="","",IF($D86=$M$1,Eingabe!B83,"")) ->  | C86: =IF($M$1="","",IF($D86=$M$1,Eingabe!C83,"")) ->  | D86: =IF(Eingabe!$A83=$M$1,$M$1,"") ->  | E86: =IF($M$1="","",IF($D86=$M$1,Eingabe!G83,"")) -> 
A87: 82 | B87: =IF($M$1="","",IF($D87=$M$1,Eingabe!B84,"")) ->  | C87: =IF($M$1="","",IF($D87=$M$1,Eingabe!C84,"")) ->  | D87: =IF(Eingabe!$A84=$M$1,$M$1,"") ->  | E87: =IF($M$1="","",IF($D87=$M$1,Eingabe!G84,"")) -> 
A88: 83 | B88: =IF($M$1="","",IF($D88=$M$1,Eingabe!B85,"")) ->  | C88: =IF($M$1="","",IF($D88=$M$1,Eingabe!C85,"")) ->  | D88: =IF(Eingabe!$A85=$M$1,$M$1,"") ->  | E88: =IF($M$1="","",IF($D88=$M$1,Eingabe!G85,"")) -> 
A89: 84 | B89: =IF($M$1="","",IF($D89=$M$1,Eingabe!B86,"")) ->  | C89: =IF($M$1="","",IF($D89=$M$1,Eingabe!C86,"")) ->  | D89: =IF(Eingabe!$A86=$M$1,$M$1,"") ->  | E89: =IF($M$1="","",IF($D89=$M$1,Eingabe!G86,"")) -> 
A90: 85 | B90: =IF($M$1="","",IF($D90=$M$1,Eingabe!B87,"")) ->  | C90: =IF($M$1="","",IF($D90=$M$1,Eingabe!C87,"")) ->  | D90: =IF(Eingabe!$A87=$M$1,$M$1,"") ->  | E90: =IF($M$1="","",IF($D90=$M$1,Eingabe!G87,"")) -> 
A91: 86 | B91: =IF($M$1="","",IF($D91=$M$1,Eingabe!B88,"")) ->  | C91: =IF($M$1="","",IF($D91=$M$1,Eingabe!C88,"")) ->  | D91: =IF(Eingabe!$A88=$M$1,$M$1,"") ->  | E91: =IF($M$1="","",IF($D91=$M$1,Eingabe!G88,"")) -> 
A92: 87 | B92: =IF($M$1="","",IF($D92=$M$1,Eingabe!B89,"")) ->  | C92: =IF($M$1="","",IF($D92=$M$1,Eingabe!C89,"")) ->  | D92: =IF(Eingabe!$A89=$M$1,$M$1,"") ->  | E92: =IF($M$1="","",IF($D92=$M$1,Eingabe!G89,"")) -> 
A93: 88 | B93: =IF($M$1="","",IF($D93=$M$1,Eingabe!B90,"")) ->  | C93: =IF($M$1="","",IF($D93=$M$1,Eingabe!C90,"")) ->  | D93: =IF(Eingabe!$A90=$M$1,$M$1,"") ->  | E93: =IF($M$1="","",IF($D93=$M$1,Eingabe!G90,"")) -> 
A94: 89 | B94: =IF($M$1="","",IF($D94=$M$1,Eingabe!B91,"")) ->  | C94: =IF($M$1="","",IF($D94=$M$1,Eingabe!C91,"")) ->  | D94: =IF(Eingabe!$A91=$M$1,$M$1,"") ->  | E94: =IF($M$1="","",IF($D94=$M$1,Eingabe!G91,"")) -> 
A95: 90 | B95: =IF($M$1="","",IF($D95=$M$1,Eingabe!B92,"")) ->  | C95: =IF($M$1="","",IF($D95=$M$1,Eingabe!C92,"")) ->  | D95: =IF(Eingabe!$A92=$M$1,$M$1,"") ->  | E95: =IF($M$1="","",IF($D95=$M$1,Eingabe!G92,"")) -> 
A96: 91 | B96: =IF($M$1="","",IF($D96=$M$1,Eingabe!B93,"")) ->  | C96: =IF($M$1="","",IF($D96=$M$1,Eingabe!C93,"")) ->  | D96: =IF(Eingabe!$A93=$M$1,$M$1,"") ->  | E96: =IF($M$1="","",IF($D96=$M$1,Eingabe!G93,"")) -> 
A97: 92 | B97: =IF($M$1="","",IF($D97=$M$1,Eingabe!B94,"")) ->  | C97: =IF($M$1="","",IF($D97=$M$1,Eingabe!C94,"")) ->  | D97: =IF(Eingabe!$A94=$M$1,$M$1,"") ->  | E97: =IF($M$1="","",IF($D97=$M$1,Eingabe!G94,"")) -> 
A98: 93 | B98: =IF($M$1="","",IF($D98=$M$1,Eingabe!B95,"")) ->  | C98: =IF($M$1="","",IF($D98=$M$1,Eingabe!C95,"")) ->  | D98: =IF(Eingabe!$A95=$M$1,$M$1,"") ->  | E98: =IF($M$1="","",IF($D98=$M$1,Eingabe!G95,"")) -> 
A99: 94 | B99: =IF($M$1="","",IF($D99=$M$1,Eingabe!B96,"")) ->  | C99: =IF($M$1="","",IF($D99=$M$1,Eingabe!C96,"")) ->  | D99: =IF(Eingabe!$A96=$M$1,$M$1,"") ->  | E99: =IF($M$1="","",IF($D99=$M$1,Eingabe!G96,"")) -> 
A100: 95 | B100: =IF($M$1="","",IF($D100=$M$1,Eingabe!B97,"")) ->  | C100: =IF($M$1="","",IF($D100=$M$1,Eingabe!C97,"")) ->  | D100: =IF(Eingabe!$A97=$M$1,$M$1,"") ->  | E100: =IF($M$1="","",IF($D100=$M$1,Eingabe!G97,"")) -> 
A101: 96 | B101: =IF($M$1="","",IF($D101=$M$1,Eingabe!B98,"")) ->  | C101: =IF($M$1="","",IF($D101=$M$1,Eingabe!C98,"")) ->  | D101: =IF(Eingabe!$A98=$M$1,$M$1,"") ->  | E101: =IF($M$1="","",IF($D101=$M$1,Eingabe!G98,"")) -> 
A102: 97 | B102: =IF($M$1="","",IF($D102=$M$1,Eingabe!B99,"")) ->  | C102: =IF($M$1="","",IF($D102=$M$1,Eingabe!C99,"")) ->  | D102: =IF(Eingabe!$A99=$M$1,$M$1,"") ->  | E102: =IF($M$1="","",IF($D102=$M$1,Eingabe!G99,"")) -> 
A103: 98 | B103: =IF($M$1="","",IF($D103=$M$1,Eingabe!B100,"")) ->  | C103: =IF($M$1="","",IF($D103=$M$1,Eingabe!C100,"")) ->  | D103: =IF(Eingabe!$A100=$M$1,$M$1,"") ->  | E103: =IF($M$1="","",IF($D103=$M$1,Eingabe!G100,"")) -> 
A104: 99 | B104: =IF($M$1="","",IF($D104=$M$1,Eingabe!B101,"")) ->  | C104: =IF($M$1="","",IF($D104=$M$1,Eingabe!C101,"")) ->  | D104: =IF(Eingabe!$A101=$M$1,$M$1,"") ->  | E104: =IF($M$1="","",IF($D104=$M$1,Eingabe!G101,"")) -> 
A105: 100 | B105: =IF($M$1="","",IF($D105=$M$1,Eingabe!B102,"")) ->  | C105: =IF($M$1="","",IF($D105=$M$1,Eingabe!C102,"")) ->  | D105: =IF(Eingabe!$A102=$M$1,$M$1,"") ->  | E105: =IF($M$1="","",IF($D105=$M$1,Eingabe!G102,"")) -> 
A106: 101 | B106: =IF($M$1="","",IF($D106=$M$1,Eingabe!B103,"")) ->  | C106: =IF($M$1="","",IF($D106=$M$1,Eingabe!C103,"")) ->  | D106: =IF(Eingabe!$A103=$M$1,$M$1,"") ->  | E106: =IF($M$1="","",IF($D106=$M$1,Eingabe!G103,"")) -> 
A107: 102 | B107: =IF($M$1="","",IF($D107=$M$1,Eingabe!B104,"")) ->  | C107: =IF($M$1="","",IF($D107=$M$1,Eingabe!C104,"")) ->  | D107: =IF(Eingabe!$A104=$M$1,$M$1,"") ->  | E107: =IF($M$1="","",IF($D107=$M$1,Eingabe!G104,"")) -> 
A108: 103 | B108: =IF($M$1="","",IF($D108=$M$1,Eingabe!B105,"")) ->  | C108: =IF($M$1="","",IF($D108=$M$1,Eingabe!C105,"")) ->  | D108: =IF(Eingabe!$A105=$M$1,$M$1,"") ->  | E108: =IF($M$1="","",IF($D108=$M$1,Eingabe!G105,"")) -> 
A109: 104 | B109: =IF($M$1="","",IF($D109=$M$1,Eingabe!B106,"")) ->  | C109: =IF($M$1="","",IF($D109=$M$1,Eingabe!C106,"")) ->  | D109: =IF(Eingabe!$A106=$M$1,$M$1,"") ->  | E109: =IF($M$1="","",IF($D109=$M$1,Eingabe!G106,"")) -> 
A110: 105 | B110: =IF($M$1="","",IF($D110=$M$1,Eingabe!B107,"")) ->  | C110: =IF($M$1="","",IF($D110=$M$1,Eingabe!C107,"")) ->  | D110: =IF(Eingabe!$A107=$M$1,$M$1,"") ->  | E110: =IF($M$1="","",IF($D110=$M$1,Eingabe!G107,"")) -> 
A111: 106 | B111: =IF($M$1="","",IF($D111=$M$1,Eingabe!B108,"")) ->  | C111: =IF($M$1="","",IF($D111=$M$1,Eingabe!C108,"")) ->  | D111: =IF(Eingabe!$A108=$M$1,$M$1,"") ->  | E111: =IF($M$1="","",IF($D111=$M$1,Eingabe!G108,"")) -> 
A112: 107 | B112: =IF($M$1="","",IF($D112=$M$1,Eingabe!B109,"")) ->  | C112: =IF($M$1="","",IF($D112=$M$1,Eingabe!C109,"")) ->  | D112: =IF(Eingabe!$A109=$M$1,$M$1,"") ->  | E112: =IF($M$1="","",IF($D112=$M$1,Eingabe!G109,"")) -> 
A113: 108 | B113: =IF($M$1="","",IF($D113=$M$1,Eingabe!B110,"")) ->  | C113: =IF($M$1="","",IF($D113=$M$1,Eingabe!C110,"")) ->  | D113: =IF(Eingabe!$A110=$M$1,$M$1,"") ->  | E113: =IF($M$1="","",IF($D113=$M$1,Eingabe!G110,"")) -> 
A114: 109 | B114: =IF($M$1="","",IF($D114=$M$1,Eingabe!B111,"")) ->  | C114: =IF($M$1="","",IF($D114=$M$1,Eingabe!C111,"")) ->  | D114: =IF(Eingabe!$A111=$M$1,$M$1,"") ->  | E114: =IF($M$1="","",IF($D114=$M$1,Eingabe!G111,"")) -> 
A115: 110 | B115: =IF($M$1="","",IF($D115=$M$1,Eingabe!B112,"")) ->  | C115: =IF($M$1="","",IF($D115=$M$1,Eingabe!C112,"")) ->  | D115: =IF(Eingabe!$A112=$M$1,$M$1,"") ->  | E115: =IF($M$1="","",IF($D115=$M$1,Eingabe!G112,"")) -> 
A116: 111 | B116: =IF($M$1="","",IF($D116=$M$1,Eingabe!B113,"")) ->  | C116: =IF($M$1="","",IF($D116=$M$1,Eingabe!C113,"")) ->  | D116: =IF(Eingabe!$A113=$M$1,$M$1,"") ->  | E116: =IF($M$1="","",IF($D116=$M$1,Eingabe!G113,"")) -> 
A117: 112 | B117: =IF($M$1="","",IF($D117=$M$1,Eingabe!B114,"")) ->  | C117: =IF($M$1="","",IF($D117=$M$1,Eingabe!C114,"")) ->  | D117: =IF(Eingabe!$A114=$M$1,$M$1,"") ->  | E117: =IF($M$1="","",IF($D117=$M$1,Eingabe!G114,"")) -> 
A118: 113 | B118: =IF($M$1="","",IF($D118=$M$1,Eingabe!B115,"")) ->  | C118: =IF($M$1="","",IF($D118=$M$1,Eingabe!C115,"")) ->  | D118: =IF(Eingabe!$A115=$M$1,$M$1,"") ->  | E118: =IF($M$1="","",IF($D118=$M$1,Eingabe!G115,"")) -> 
A119: 114 | B119: =IF($M$1="","",IF($D119=$M$1,Eingabe!B116,"")) ->  | C119: =IF($M$1="","",IF($D119=$M$1,Eingabe!C116,"")) ->  | D119: =IF(Eingabe!$A116=$M$1,$M$1,"") ->  | E119: =IF($M$1="","",IF($D119=$M$1,Eingabe!G116,"")) -> 
A120: 115 | B120: =IF($M$1="","",IF($D120=$M$1,Eingabe!B117,"")) ->  | C120: =IF($M$1="","",IF($D120=$M$1,Eingabe!C117,"")) ->  | D120: =IF(Eingabe!$A117=$M$1,$M$1,"") ->  | E120: =IF($M$1="","",IF($D120=$M$1,Eingabe!G117,"")) -> 
A121: 116 | B121: =IF($M$1="","",IF($D121=$M$1,Eingabe!B118,"")) ->  | C121: =IF($M$1="","",IF($D121=$M$1,Eingabe!C118,"")) ->  | D121: =IF(Eingabe!$A118=$M$1,$M$1,"") ->  | E121: =IF($M$1="","",IF($D121=$M$1,Eingabe!G118,"")) -> 
A122: 117 | B122: =IF($M$1="","",IF($D122=$M$1,Eingabe!B119,"")) ->  | C122: =IF($M$1="","",IF($D122=$M$1,Eingabe!C119,"")) ->  | D122: =IF(Eingabe!$A119=$M$1,$M$1,"") ->  | E122: =IF($M$1="","",IF($D122=$M$1,Eingabe!G119,"")) -> 
A123: 118 | B123: =IF($M$1="","",IF($D123=$M$1,Eingabe!B120,"")) ->  | C123: =IF($M$1="","",IF($D123=$M$1,Eingabe!C120,"")) ->  | D123: =IF(Eingabe!$A120=$M$1,$M$1,"") ->  | E123: =IF($M$1="","",IF($D123=$M$1,Eingabe!G120,"")) -> 
A124: 119 | B124: =IF($M$1="","",IF($D124=$M$1,Eingabe!B121,"")) ->  | C124: =IF($M$1="","",IF($D124=$M$1,Eingabe!C121,"")) ->  | D124: =IF(Eingabe!$A121=$M$1,$M$1,"") ->  | E124: =IF($M$1="","",IF($D124=$M$1,Eingabe!G121,"")) -> 
A125: 120 | B125: =IF($M$1="","",IF($D125=$M$1,Eingabe!B122,"")) ->  | C125: =IF($M$1="","",IF($D125=$M$1,Eingabe!C122,"")) ->  | D125: =IF(Eingabe!$A122=$M$1,$M$1,"") ->  | E125: =IF($M$1="","",IF($D125=$M$1,Eingabe!G122,"")) -> 
A126: 121 | B126: =IF($M$1="","",IF($D126=$M$1,Eingabe!B123,"")) ->  | C126: =IF($M$1="","",IF($D126=$M$1,Eingabe!C123,"")) ->  | D126: =IF(Eingabe!$A123=$M$1,$M$1,"") ->  | E126: =IF($M$1="","",IF($D126=$M$1,Eingabe!G123,"")) -> 
A127: 122 | B127: =IF($M$1="","",IF($D127=$M$1,Eingabe!B124,"")) ->  | C127: =IF($M$1="","",IF($D127=$M$1,Eingabe!C124,"")) ->  | D127: =IF(Eingabe!$A124=$M$1,$M$1,"") ->  | E127: =IF($M$1="","",IF($D127=$M$1,Eingabe!G124,"")) -> 
A128: 123 | B128: =IF($M$1="","",IF($D128=$M$1,Eingabe!B125,"")) ->  | C128: =IF($M$1="","",IF($D128=$M$1,Eingabe!C125,"")) ->  | D128: =IF(Eingabe!$A125=$M$1,$M$1,"") ->  | E128: =IF($M$1="","",IF($D128=$M$1,Eingabe!G125,"")) -> 
A129: 124 | B129: =IF($M$1="","",IF($D129=$M$1,Eingabe!B126,"")) ->  | C129: =IF($M$1="","",IF($D129=$M$1,Eingabe!C126,"")) ->  | D129: =IF(Eingabe!$A126=$M$1,$M$1,"") ->  | E129: =IF($M$1="","",IF($D129=$M$1,Eingabe!G126,"")) -> 
A130: 125 | B130: =IF($M$1="","",IF($D130=$M$1,Eingabe!B127,"")) ->  | C130: =IF($M$1="","",IF($D130=$M$1,Eingabe!C127,"")) ->  | D130: =IF(Eingabe!$A127=$M$1,$M$1,"") ->  | E130: =IF($M$1="","",IF($D130=$M$1,Eingabe!G127,"")) -> 
A131: 126 | B131: =IF($M$1="","",IF($D131=$M$1,Eingabe!B128,"")) ->  | C131: =IF($M$1="","",IF($D131=$M$1,Eingabe!C128,"")) ->  | D131: =IF(Eingabe!$A128=$M$1,$M$1,"") ->  | E131: =IF($M$1="","",IF($D131=$M$1,Eingabe!G128,"")) -> 
A132: 127 | B132: =IF($M$1="","",IF($D132=$M$1,Eingabe!B129,"")) ->  | C132: =IF($M$1="","",IF($D132=$M$1,Eingabe!C129,"")) ->  | D132: =IF(Eingabe!$A129=$M$1,$M$1,"") ->  | E132: =IF($M$1="","",IF($D132=$M$1,Eingabe!G129,"")) -> 
A133: 128 | B133: =IF($M$1="","",IF($D133=$M$1,Eingabe!B130,"")) ->  | C133: =IF($M$1="","",IF($D133=$M$1,Eingabe!C130,"")) ->  | D133: =IF(Eingabe!$A130=$M$1,$M$1,"") ->  | E133: =IF($M$1="","",IF($D133=$M$1,Eingabe!G130,"")) -> 
A134: 129 | B134: =IF($M$1="","",IF($D134=$M$1,Eingabe!B131,"")) ->  | C134: =IF($M$1="","",IF($D134=$M$1,Eingabe!C131,"")) ->  | D134: =IF(Eingabe!$A131=$M$1,$M$1,"") ->  | E134: =IF($M$1="","",IF($D134=$M$1,Eingabe!G131,"")) -> 
A135: 130 | B135: =IF($M$1="","",IF($D135=$M$1,Eingabe!B132,"")) ->  | C135: =IF($M$1="","",IF($D135=$M$1,Eingabe!C132,"")) ->  | D135: =IF(Eingabe!$A132=$M$1,$M$1,"") ->  | E135: =IF($M$1="","",IF($D135=$M$1,Eingabe!G132,"")) -> 
A136: 131 | B136: =IF($M$1="","",IF($D136=$M$1,Eingabe!B133,"")) ->  | C136: =IF($M$1="","",IF($D136=$M$1,Eingabe!C133,"")) ->  | D136: =IF(Eingabe!$A133=$M$1,$M$1,"") ->  | E136: =IF($M$1="","",IF($D136=$M$1,Eingabe!G133,"")) -> 
A137: 132 | B137: =IF($M$1="","",IF($D137=$M$1,Eingabe!B134,"")) ->  | C137: =IF($M$1="","",IF($D137=$M$1,Eingabe!C134,"")) ->  | D137: =IF(Eingabe!$A134=$M$1,$M$1,"") ->  | E137: =IF($M$1="","",IF($D137=$M$1,Eingabe!G134,"")) -> 
A138: 133 | B138: =IF($M$1="","",IF($D138=$M$1,Eingabe!B135,"")) ->  | C138: =IF($M$1="","",IF($D138=$M$1,Eingabe!C135,"")) ->  | D138: =IF(Eingabe!$A135=$M$1,$M$1,"") ->  | E138: =IF($M$1="","",IF($D138=$M$1,Eingabe!G135,"")) -> 
A139: 134 | B139: =IF($M$1="","",IF($D139=$M$1,Eingabe!B136,"")) ->  | C139: =IF($M$1="","",IF($D139=$M$1,Eingabe!C136,"")) ->  | D139: =IF(Eingabe!$A136=$M$1,$M$1,"") ->  | E139: =IF($M$1="","",IF($D139=$M$1,Eingabe!G136,"")) -> 
A140: 135 | B140: =IF($M$1="","",IF($D140=$M$1,Eingabe!B137,"")) ->  | C140: =IF($M$1="","",IF($D140=$M$1,Eingabe!C137,"")) ->  | D140: =IF(Eingabe!$A137=$M$1,$M$1,"") ->  | E140: =IF($M$1="","",IF($D140=$M$1,Eingabe!G137,"")) -> 
A141: 136 | B141: =IF($M$1="","",IF($D141=$M$1,Eingabe!B138,"")) ->  | C141: =IF($M$1="","",IF($D141=$M$1,Eingabe!C138,"")) ->  | D141: =IF(Eingabe!$A138=$M$1,$M$1,"") ->  | E141: =IF($M$1="","",IF($D141=$M$1,Eingabe!G138,"")) -> 
A142: 137 | B142: =IF($M$1="","",IF($D142=$M$1,Eingabe!B139,"")) ->  | C142: =IF($M$1="","",IF($D142=$M$1,Eingabe!C139,"")) ->  | D142: =IF(Eingabe!$A139=$M$1,$M$1,"") ->  | E142: =IF($M$1="","",IF($D142=$M$1,Eingabe!G139,"")) -> 
A143: 138 | B143: =IF($M$1="","",IF($D143=$M$1,Eingabe!B140,"")) ->  | C143: =IF($M$1="","",IF($D143=$M$1,Eingabe!C140,"")) ->  | D143: =IF(Eingabe!$A140=$M$1,$M$1,"") ->  | E143: =IF($M$1="","",IF($D143=$M$1,Eingabe!G140,"")) -> 
A144: 139 | B144: =IF($M$1="","",IF($D144=$M$1,Eingabe!B141,"")) ->  | C144: =IF($M$1="","",IF($D144=$M$1,Eingabe!C141,"")) ->  | D144: =IF(Eingabe!$A141=$M$1,$M$1,"") ->  | E144: =IF($M$1="","",IF($D144=$M$1,Eingabe!G141,"")) -> 
A145: 140 | B145: =IF($M$1="","",IF($D145=$M$1,Eingabe!B142,"")) ->  | C145: =IF($M$1="","",IF($D145=$M$1,Eingabe!C142,"")) ->  | D145: =IF(Eingabe!$A142=$M$1,$M$1,"") ->  | E145: =IF($M$1="","",IF($D145=$M$1,Eingabe!G142,"")) -> 
A146: 141 | B146: =IF($M$1="","",IF($D146=$M$1,Eingabe!B143,"")) ->  | C146: =IF($M$1="","",IF($D146=$M$1,Eingabe!C143,"")) ->  | D146: =IF(Eingabe!$A143=$M$1,$M$1,"") ->  | E146: =IF($M$1="","",IF($D146=$M$1,Eingabe!G143,"")) -> 
A147: 142 | B147: =IF($M$1="","",IF($D147=$M$1,Eingabe!B144,"")) ->  | C147: =IF($M$1="","",IF($D147=$M$1,Eingabe!C144,"")) ->  | D147: =IF(Eingabe!$A144=$M$1,$M$1,"") ->  | E147: =IF($M$1="","",IF($D147=$M$1,Eingabe!G144,"")) -> 
A148: 143 | B148: =IF($M$1="","",IF($D148=$M$1,Eingabe!B145,"")) ->  | C148: =IF($M$1="","",IF($D148=$M$1,Eingabe!C145,"")) ->  | D148: =IF(Eingabe!$A145=$M$1,$M$1,"") ->  | E148: =IF($M$1="","",IF($D148=$M$1,Eingabe!G145,"")) -> 
A149: 144 | B149: =IF($M$1="","",IF($D149=$M$1,Eingabe!B146,"")) ->  | C149: =IF($M$1="","",IF($D149=$M$1,Eingabe!C146,"")) ->  | D149: =IF(Eingabe!$A146=$M$1,$M$1,"") ->  | E149: =IF($M$1="","",IF($D149=$M$1,Eingabe!G146,"")) -> 
A150: 145 | B150: =IF($M$1="","",IF($D150=$M$1,Eingabe!B147,"")) ->  | C150: =IF($M$1="","",IF($D150=$M$1,Eingabe!C147,"")) ->  | D150: =IF(Eingabe!$A147=$M$1,$M$1,"") ->  | E150: =IF($M$1="","",IF($D150=$M$1,Eingabe!G147,"")) -> 
A151: 146 | B151: =IF($M$1="","",IF($D151=$M$1,Eingabe!B148,"")) ->  | C151: =IF($M$1="","",IF($D151=$M$1,Eingabe!C148,"")) ->  | D151: =IF(Eingabe!$A148=$M$1,$M$1,"") ->  | E151: =IF($M$1="","",IF($D151=$M$1,Eingabe!G148,"")) -> 
A152: 147 | B152: =IF($M$1="","",IF($D152=$M$1,Eingabe!B149,"")) ->  | C152: =IF($M$1="","",IF($D152=$M$1,Eingabe!C149,"")) ->  | D152: =IF(Eingabe!$A149=$M$1,$M$1,"") ->  | E152: =IF($M$1="","",IF($D152=$M$1,Eingabe!G149,"")) -> 
A153: 148 | B153: =IF($M$1="","",IF($D153=$M$1,Eingabe!B150,"")) ->  | C153: =IF($M$1="","",IF($D153=$M$1,Eingabe!C150,"")) ->  | D153: =IF(Eingabe!$A150=$M$1,$M$1,"") ->  | E153: =IF($M$1="","",IF($D153=$M$1,Eingabe!G150,"")) -> 
A154: 149 | B154: =IF($M$1="","",IF($D154=$M$1,Eingabe!B151,"")) ->  | C154: =IF($M$1="","",IF($D154=$M$1,Eingabe!C151,"")) ->  | D154: =IF(Eingabe!$A151=$M$1,$M$1,"") ->  | E154: =IF($M$1="","",IF($D154=$M$1,Eingabe!G151,"")) -> 
A155: 150 | B155: =IF($M$1="","",IF($D155=$M$1,Eingabe!B152,"")) ->  | C155: =IF($M$1="","",IF($D155=$M$1,Eingabe!C152,"")) ->  | D155: =IF(Eingabe!$A152=$M$1,$M$1,"") ->  | E155: =IF($M$1="","",IF($D155=$M$1,Eingabe!G152,"")) -> 
A156: 151 | B156: =IF($M$1="","",IF($D156=$M$1,Eingabe!B153,"")) ->  | C156: =IF($M$1="","",IF($D156=$M$1,Eingabe!C153,"")) ->  | D156: =IF(Eingabe!$A153=$M$1,$M$1,"") ->  | E156: =IF($M$1="","",IF($D156=$M$1,Eingabe!G153,"")) -> 
A157: 152 | B157: =IF($M$1="","",IF($D157=$M$1,Eingabe!B154,"")) ->  | C157: =IF($M$1="","",IF($D157=$M$1,Eingabe!C154,"")) ->  | D157: =IF(Eingabe!$A154=$M$1,$M$1,"") ->  | E157: =IF($M$1="","",IF($D157=$M$1,Eingabe!G154,"")) -> 
A158: 153 | B158: =IF($M$1="","",IF($D158=$M$1,Eingabe!B155,"")) ->  | C158: =IF($M$1="","",IF($D158=$M$1,Eingabe!C155,"")) ->  | D158: =IF(Eingabe!$A155=$M$1,$M$1,"") ->  | E158: =IF($M$1="","",IF($D158=$M$1,Eingabe!G155,"")) -> 
A159: 154 | B159: =IF($M$1="","",IF($D159=$M$1,Eingabe!B156,"")) ->  | C159: =IF($M$1="","",IF($D159=$M$1,Eingabe!C156,"")) ->  | D159: =IF(Eingabe!$A156=$M$1,$M$1,"") ->  | E159: =IF($M$1="","",IF($D159=$M$1,Eingabe!G156,"")) -> 
A160: 155 | B160: =IF($M$1="","",IF($D160=$M$1,Eingabe!B157,"")) ->  | C160: =IF($M$1="","",IF($D160=$M$1,Eingabe!C157,"")) ->  | D160: =IF(Eingabe!$A157=$M$1,$M$1,"") ->  | E160: =IF($M$1="","",IF($D160=$M$1,Eingabe!G157,"")) -> 
A161: 156 | B161: =IF($M$1="","",IF($D161=$M$1,Eingabe!B158,"")) ->  | C161: =IF($M$1="","",IF($D161=$M$1,Eingabe!C158,"")) ->  | D161: =IF(Eingabe!$A158=$M$1,$M$1,"") ->  | E161: =IF($M$1="","",IF($D161=$M$1,Eingabe!G158,"")) -> 
A162: 157 | B162: =IF($M$1="","",IF($D162=$M$1,Eingabe!B159,"")) ->  | C162: =IF($M$1="","",IF($D162=$M$1,Eingabe!C159,"")) ->  | D162: =IF(Eingabe!$A159=$M$1,$M$1,"") ->  | E162: =IF($M$1="","",IF($D162=$M$1,Eingabe!G159,"")) -> 
A163: 158 | B163: =IF($M$1="","",IF($D163=$M$1,Eingabe!B160,"")) ->  | C163: =IF($M$1="","",IF($D163=$M$1,Eingabe!C160,"")) ->  | D163: =IF(Eingabe!$A160=$M$1,$M$1,"") ->  | E163: =IF($M$1="","",IF($D163=$M$1,Eingabe!G160,"")) -> 
A164: 159 | B164: =IF($M$1="","",IF($D164=$M$1,Eingabe!B161,"")) ->  | C164: =IF($M$1="","",IF($D164=$M$1,Eingabe!C161,"")) ->  | D164: =IF(Eingabe!$A161=$M$1,$M$1,"") ->  | E164: =IF($M$1="","",IF($D164=$M$1,Eingabe!G161,"")) -> 
A165: 160 | B165: =IF($M$1="","",IF($D165=$M$1,Eingabe!B162,"")) ->  | C165: =IF($M$1="","",IF($D165=$M$1,Eingabe!C162,"")) ->  | D165: =IF(Eingabe!$A162=$M$1,$M$1,"") ->  | E165: =IF($M$1="","",IF($D165=$M$1,Eingabe!G162,"")) -> 
A166: 161 | B166: =IF($M$1="","",IF($D166=$M$1,Eingabe!B163,"")) ->  | C166: =IF($M$1="","",IF($D166=$M$1,Eingabe!C163,"")) ->  | D166: =IF(Eingabe!$A163=$M$1,$M$1,"") ->  | E166: =IF($M$1="","",IF($D166=$M$1,Eingabe!G163,"")) -> 
A167: 162 | B167: =IF($M$1="","",IF($D167=$M$1,Eingabe!B164,"")) ->  | C167: =IF($M$1="","",IF($D167=$M$1,Eingabe!C164,"")) ->  | D167: =IF(Eingabe!$A164=$M$1,$M$1,"") ->  | E167: =IF($M$1="","",IF($D167=$M$1,Eingabe!G164,"")) -> 
A168: 163 | B168: =IF($M$1="","",IF($D168=$M$1,Eingabe!B165,"")) ->  | C168: =IF($M$1="","",IF($D168=$M$1,Eingabe!C165,"")) ->  | D168: =IF(Eingabe!$A165=$M$1,$M$1,"") ->  | E168: =IF($M$1="","",IF($D168=$M$1,Eingabe!G165,"")) -> 
A169: 164 | B169: =IF($M$1="","",IF($D169=$M$1,Eingabe!B166,"")) ->  | C169: =IF($M$1="","",IF($D169=$M$1,Eingabe!C166,"")) ->  | D169: =IF(Eingabe!$A166=$M$1,$M$1,"") ->  | E169: =IF($M$1="","",IF($D169=$M$1,Eingabe!G166,"")) -> 
A170: 165 | B170: =IF($M$1="","",IF($D170=$M$1,Eingabe!B167,"")) ->  | C170: =IF($M$1="","",IF($D170=$M$1,Eingabe!C167,"")) ->  | D170: =IF(Eingabe!$A167=$M$1,$M$1,"") ->  | E170: =IF($M$1="","",IF($D170=$M$1,Eingabe!G167,"")) -> 
A171: 166 | B171: =IF($M$1="","",IF($D171=$M$1,Eingabe!B168,"")) ->  | C171: =IF($M$1="","",IF($D171=$M$1,Eingabe!C168,"")) ->  | D171: =IF(Eingabe!$A168=$M$1,$M$1,"") ->  | E171: =IF($M$1="","",IF($D171=$M$1,Eingabe!G168,"")) -> 
A172: 167 | B172: =IF($M$1="","",IF($D172=$M$1,Eingabe!B169,"")) ->  | C172: =IF($M$1="","",IF($D172=$M$1,Eingabe!C169,"")) ->  | D172: =IF(Eingabe!$A169=$M$1,$M$1,"") ->  | E172: =IF($M$1="","",IF($D172=$M$1,Eingabe!G169,"")) -> 
A173: 168 | B173: =IF($M$1="","",IF($D173=$M$1,Eingabe!B170,"")) ->  | C173: =IF($M$1="","",IF($D173=$M$1,Eingabe!C170,"")) ->  | D173: =IF(Eingabe!$A170=$M$1,$M$1,"") ->  | E173: =IF($M$1="","",IF($D173=$M$1,Eingabe!G170,"")) -> 
A174: 169 | B174: =IF($M$1="","",IF($D174=$M$1,Eingabe!B171,"")) ->  | C174: =IF($M$1="","",IF($D174=$M$1,Eingabe!C171,"")) ->  | D174: =IF(Eingabe!$A171=$M$1,$M$1,"") ->  | E174: =IF($M$1="","",IF($D174=$M$1,Eingabe!G171,"")) -> 
A175: 170 | B175: =IF($M$1="","",IF($D175=$M$1,Eingabe!B172,"")) ->  | C175: =IF($M$1="","",IF($D175=$M$1,Eingabe!C172,"")) ->  | D175: =IF(Eingabe!$A172=$M$1,$M$1,"") ->  | E175: =IF($M$1="","",IF($D175=$M$1,Eingabe!G172,"")) -> 
A176: 171 | B176: =IF($M$1="","",IF($D176=$M$1,Eingabe!B173,"")) ->  | C176: =IF($M$1="","",IF($D176=$M$1,Eingabe!C173,"")) ->  | D176: =IF(Eingabe!$A173=$M$1,$M$1,"") ->  | E176: =IF($M$1="","",IF($D176=$M$1,Eingabe!G173,"")) -> 
A177: 172 | B177: =IF($M$1="","",IF($D177=$M$1,Eingabe!B174,"")) ->  | C177: =IF($M$1="","",IF($D177=$M$1,Eingabe!C174,"")) ->  | D177: =IF(Eingabe!$A174=$M$1,$M$1,"") ->  | E177: =IF($M$1="","",IF($D177=$M$1,Eingabe!G174,"")) -> 
A178: 173 | B178: =IF($M$1="","",IF($D178=$M$1,Eingabe!B175,"")) ->  | C178: =IF($M$1="","",IF($D178=$M$1,Eingabe!C175,"")) ->  | D178: =IF(Eingabe!$A175=$M$1,$M$1,"") ->  | E178: =IF($M$1="","",IF($D178=$M$1,Eingabe!G175,"")) -> 
A179: 174 | B179: =IF($M$1="","",IF($D179=$M$1,Eingabe!B176,"")) ->  | C179: =IF($M$1="","",IF($D179=$M$1,Eingabe!C176,"")) ->  | D179: =IF(Eingabe!$A176=$M$1,$M$1,"") ->  | E179: =IF($M$1="","",IF($D179=$M$1,Eingabe!G176,"")) -> 
A180: 175 | B180: =IF($M$1="","",IF($D180=$M$1,Eingabe!B177,"")) ->  | C180: =IF($M$1="","",IF($D180=$M$1,Eingabe!C177,"")) ->  | D180: =IF(Eingabe!$A177=$M$1,$M$1,"") ->  | E180: =IF($M$1="","",IF($D180=$M$1,Eingabe!G177,"")) -> 
A181: 176 | B181: =IF($M$1="","",IF($D181=$M$1,Eingabe!B178,"")) ->  | C181: =IF($M$1="","",IF($D181=$M$1,Eingabe!C178,"")) ->  | D181: =IF(Eingabe!$A178=$M$1,$M$1,"") ->  | E181: =IF($M$1="","",IF($D181=$M$1,Eingabe!G178,"")) -> 
A182: 177 | B182: =IF($M$1="","",IF($D182=$M$1,Eingabe!B179,"")) ->  | C182: =IF($M$1="","",IF($D182=$M$1,Eingabe!C179,"")) ->  | D182: =IF(Eingabe!$A179=$M$1,$M$1,"") ->  | E182: =IF($M$1="","",IF($D182=$M$1,Eingabe!G179,"")) -> 
A183: 178 | B183: =IF($M$1="","",IF($D183=$M$1,Eingabe!B180,"")) ->  | C183: =IF($M$1="","",IF($D183=$M$1,Eingabe!C180,"")) ->  | D183: =IF(Eingabe!$A180=$M$1,$M$1,"") ->  | E183: =IF($M$1="","",IF($D183=$M$1,Eingabe!G180,"")) -> 
A184: 179 | B184: =IF($M$1="","",IF($D184=$M$1,Eingabe!B181,"")) ->  | C184: =IF($M$1="","",IF($D184=$M$1,Eingabe!C181,"")) ->  | D184: =IF(Eingabe!$A181=$M$1,$M$1,"") ->  | E184: =IF($M$1="","",IF($D184=$M$1,Eingabe!G181,"")) -> 
A185: 180 | B185: =IF($M$1="","",IF($D185=$M$1,Eingabe!B182,"")) ->  | C185: =IF($M$1="","",IF($D185=$M$1,Eingabe!C182,"")) ->  | D185: =IF(Eingabe!$A182=$M$1,$M$1,"") ->  | E185: =IF($M$1="","",IF($D185=$M$1,Eingabe!G182,"")) -> 
A186: 181 | B186: =IF($M$1="","",IF($D186=$M$1,Eingabe!B183,"")) ->  | C186: =IF($M$1="","",IF($D186=$M$1,Eingabe!C183,"")) ->  | D186: =IF(Eingabe!$A183=$M$1,$M$1,"") ->  | E186: =IF($M$1="","",IF($D186=$M$1,Eingabe!G183,"")) -> 
A187: 182 | B187: =IF($M$1="","",IF($D187=$M$1,Eingabe!B184,"")) ->  | C187: =IF($M$1="","",IF($D187=$M$1,Eingabe!C184,"")) ->  | D187: =IF(Eingabe!$A184=$M$1,$M$1,"") ->  | E187: =IF($M$1="","",IF($D187=$M$1,Eingabe!G184,"")) -> 
A188: 183 | B188: =IF($M$1="","",IF($D188=$M$1,Eingabe!B185,"")) ->  | C188: =IF($M$1="","",IF($D188=$M$1,Eingabe!C185,"")) ->  | D188: =IF(Eingabe!$A185=$M$1,$M$1,"") ->  | E188: =IF($M$1="","",IF($D188=$M$1,Eingabe!G185,"")) -> 
A189: 184 | B189: =IF($M$1="","",IF($D189=$M$1,Eingabe!B186,"")) ->  | C189: =IF($M$1="","",IF($D189=$M$1,Eingabe!C186,"")) ->  | D189: =IF(Eingabe!$A186=$M$1,$M$1,"") ->  | E189: =IF($M$1="","",IF($D189=$M$1,Eingabe!G186,"")) -> 
A190: 185 | B190: =IF($M$1="","",IF($D190=$M$1,Eingabe!B187,"")) ->  | C190: =IF($M$1="","",IF($D190=$M$1,Eingabe!C187,"")) ->  | D190: =IF(Eingabe!$A187=$M$1,$M$1,"") ->  | E190: =IF($M$1="","",IF($D190=$M$1,Eingabe!G187,"")) -> 
A191: 186 | B191: =IF($M$1="","",IF($D191=$M$1,Eingabe!B188,"")) ->  | C191: =IF($M$1="","",IF($D191=$M$1,Eingabe!C188,"")) ->  | D191: =IF(Eingabe!$A188=$M$1,$M$1,"") ->  | E191: =IF($M$1="","",IF($D191=$M$1,Eingabe!G188,"")) -> 
A192: 187 | B192: =IF($M$1="","",IF($D192=$M$1,Eingabe!B189,"")) ->  | C192: =IF($M$1="","",IF($D192=$M$1,Eingabe!C189,"")) ->  | D192: =IF(Eingabe!$A189=$M$1,$M$1,"") ->  | E192: =IF($M$1="","",IF($D192=$M$1,Eingabe!G189,"")) -> 
A193: 188 | B193: =IF($M$1="","",IF($D193=$M$1,Eingabe!B190,"")) ->  | C193: =IF($M$1="","",IF($D193=$M$1,Eingabe!C190,"")) ->  | D193: =IF(Eingabe!$A190=$M$1,$M$1,"") ->  | E193: =IF($M$1="","",IF($D193=$M$1,Eingabe!G190,"")) -> 
A194: 189 | B194: =IF($M$1="","",IF($D194=$M$1,Eingabe!B191,"")) ->  | C194: =IF($M$1="","",IF($D194=$M$1,Eingabe!C191,"")) ->  | D194: =IF(Eingabe!$A191=$M$1,$M$1,"") ->  | E194: =IF($M$1="","",IF($D194=$M$1,Eingabe!G191,"")) -> 
A195: 190 | B195: =IF($M$1="","",IF($D195=$M$1,Eingabe!B192,"")) ->  | C195: =IF($M$1="","",IF($D195=$M$1,Eingabe!C192,"")) ->  | D195: =IF(Eingabe!$A192=$M$1,$M$1,"") ->  | E195: =IF($M$1="","",IF($D195=$M$1,Eingabe!G192,"")) -> 
A196: 191 | B196: =IF($M$1="","",IF($D196=$M$1,Eingabe!B193,"")) ->  | C196: =IF($M$1="","",IF($D196=$M$1,Eingabe!C193,"")) ->  | D196: =IF(Eingabe!$A193=$M$1,$M$1,"") ->  | E196: =IF($M$1="","",IF($D196=$M$1,Eingabe!G193,"")) -> 
A197: 192 | B197: =IF($M$1="","",IF($D197=$M$1,Eingabe!B194,"")) ->  | C197: =IF($M$1="","",IF($D197=$M$1,Eingabe!C194,"")) ->  | D197: =IF(Eingabe!$A194=$M$1,$M$1,"") ->  | E197: =IF($M$1="","",IF($D197=$M$1,Eingabe!G194,"")) -> 
A198: 193 | B198: =IF($M$1="","",IF($D198=$M$1,Eingabe!B195,"")) ->  | C198: =IF($M$1="","",IF($D198=$M$1,Eingabe!C195,"")) ->  | D198: =IF(Eingabe!$A195=$M$1,$M$1,"") ->  | E198: =IF($M$1="","",IF($D198=$M$1,Eingabe!G195,"")) -> 
A199: 194 | B199: =IF($M$1="","",IF($D199=$M$1,Eingabe!B196,"")) ->  | C199: =IF($M$1="","",IF($D199=$M$1,Eingabe!C196,"")) ->  | D199: =IF(Eingabe!$A196=$M$1,$M$1,"") ->  | E199: =IF($M$1="","",IF($D199=$M$1,Eingabe!G196,"")) -> 
A200: 195 | B200: =IF($M$1="","",IF($D200=$M$1,Eingabe!B197,"")) ->  | C200: =IF($M$1="","",IF($D200=$M$1,Eingabe!C197,"")) ->  | D200: =IF(Eingabe!$A197=$M$1,$M$1,"") ->  | E200: =IF($M$1="","",IF($D200=$M$1,Eingabe!G197,"")) -> 
... 300 more rows

Sheet alle KLassen
B1: Wettkampfliste 2022 | L1: Kl | M1: 6d
B2: Leichtathletik | F2: Disziplin
F3: Ausdauer | G3: Sprint | H3: Weitsprung | K3: Wurf
F4: 800 m | G4: 50 m
B5: Name | C5: Vorname | D5: Kl. | E5: Alter | F5: Leistung | G5: Leistung | H5: 1. V. | I5: 2. V. | J5: 3. V. | K5: 1. V. | L5: 2. V. | M5: 3. V.
A6: 1 | B6: =IF($M$1="","",IF($D6=$M$1,Eingabe!B183,"")) -> Meyer | C6: =IF($M$1="","",IF($D6=$M$1,Eingabe!C183,"")) -> Jutta | D6: =IF(Eingabe!$A183=$M$1,$M$1,"") -> 6d | E6: =IF($M$1="","",IF($D6=$M$1,Eingabe!G183,"")) -> 12
A7: 2 | B7: =IF($M$1="","",IF($D7=$M$1,Eingabe!B184,"")) -> Müller | C7: =IF($M$1="","",IF($D7=$M$1,Eingabe!C184,"")) -> Tanja | D7: =IF(Eingabe!$A184=$M$1,$M$1,"") -> 6d | E7: =IF($M$1="","",IF($D7=$M$1,Eingabe!G184,"")) -> 12
A8: 3 | B8: =IF($M$1="","",IF($D8=$M$1,Eingabe!B185,"")) -> Meisner | C8: =IF($M$1="","",IF($D8=$M$1,Eingabe!C185,"")) -> wilfried | D8: =IF(Eingabe!$A185=$M$1,$M$1,"") -> 6d | E8: =IF($M$1="","",IF($D8=$M$1,Eingabe!G185,"")) -> 11
A9: 4 | B9: =IF($M$1="","",IF($D9=$M$1,Eingabe!B186,"")) -> Petersen | C9: =IF($M$1="","",IF($D9=$M$1,Eingabe!C186,"")) -> Günter | D9: =IF(Eingabe!$A186=$M$1,$M$1,"") -> 6d | E9: =IF($M$1="","",IF($D9=$M$1,Eingabe!G186,"")) -> 11
A10: 5 | B10: =IF($M$1="","",IF($D10=$M$1,Eingabe!B187,"")) -> Pilowski | C10: =IF($M$1="","",IF($D10=$M$1,Eingabe!C187,"")) -> Heike | D10: =IF(Eingabe!$A187=$M$1,$M$1,"") -> 6d | E10: =IF($M$1="","",IF($D10=$M$1,Eingabe!G187,"")) -> 11
A11: 6 | B11: =IF($M$1="","",IF($D11=$M$1,Eingabe!B188,"")) -> Pausch | C11: =IF($M$1="","",IF($D11=$M$1,Eingabe!C188,"")) -> Jens | D11: =IF(Eingabe!$A188=$M$1,$M$1,"") -> 6d | E11: =IF($M$1="","",IF($D11=$M$1,Eingabe!G188,"")) -> 11
A12: 7 | B12: =IF($M$1="","",IF($D12=$M$1,Eingabe!B189,"")) -> Schösser | C12: =IF($M$1="","",IF($D12=$M$1,Eingabe!C189,"")) -> Bernd | D12: =IF(Eingabe!$A189=$M$1,$M$1,"") -> 6d | E12: =IF($M$1="","",IF($D12=$M$1,Eingabe!G189,"")) -> 11
A13: 8 | B13: =IF($M$1="","",IF($D13=$M$1,Eingabe!B190,"")) -> Schmidt | C13: =IF($M$1="","",IF($D13=$M$1,Eingabe!C190,"")) -> Karl | D13: =IF(Eingabe!$A190=$M$1,$M$1,"") -> 6d | E13: =IF($M$1="","",IF($D13=$M$1,Eingabe!G190,"")) -> 12
A14: 9 | B14: =IF($M$1="","",IF($D14=$M$1,Eingabe!B191,"")) -> Schützer | C14: =IF($M$1="","",IF($D14=$M$1,Eingabe!C191,"")) -> Ulf | D14: =IF(Eingabe!$A191=$M$1,$M$1,"") -> 6d | E14: =IF($M$1="","",IF($D14=$M$1,Eingabe!G191,"")) -> 12
A15: 10 | B15: =IF($M$1="","",IF($D15=$M$1,Eingabe!B192,"")) -> Tönje | C15: =IF($M$1="","",IF($D15=$M$1,Eingabe!C192,"")) -> Christoph | D15: =IF(Eingabe!$A192=$M$1,$M$1,"") -> 6d | E15: =IF($M$1="","",IF($D15=$M$1,Eingabe!G192,"")) -> 12
A16: 11 | B16: =IF($M$1="","",IF($D16=$M$1,Eingabe!B193,"")) -> Meyer | C16: =IF($M$1="","",IF($D16=$M$1,Eingabe!C193,"")) -> Jutta | D16: =IF(Eingabe!$A193=$M$1,$M$1,"") -> 6d | E16: =IF($M$1="","",IF($D16=$M$1,Eingabe!G193,"")) -> 12
A17: 12 | B17: =IF($M$1="","",IF($D17=$M$1,Eingabe!B194,"")) -> Müller | C17: =IF($M$1="","",IF($D17=$M$1,Eingabe!C194,"")) -> Tanja | D17: =IF(Eingabe!$A194=$M$1,$M$1,"") -> 6d | E17: =IF($M$1="","",IF($D17=$M$1,Eingabe!G194,"")) -> 12
A18: 13 | B18: =IF($M$1="","",IF($D18=$M$1,Eingabe!B195,"")) -> Meisner | C18: =IF($M$1="","",IF($D18=$M$1,Eingabe!C195,"")) -> wilfried | D18: =IF(Eingabe!$A195=$M$1,$M$1,"") -> 6d | E18: =IF($M$1="","",IF($D18=$M$1,Eingabe!G195,"")) -> 11
A19: 14 | B19: =IF($M$1="","",IF($D19=$M$1,Eingabe!B196,"")) -> Petersen | C19: =IF($M$1="","",IF($D19=$M$1,Eingabe!C196,"")) -> Günter | D19: =IF(Eingabe!$A196=$M$1,$M$1,"") -> 6d | E19: =IF($M$1="","",IF($D19=$M$1,Eingabe!G196,"")) -> 11
A20: 15 | B20: =IF($M$1="","",IF($D20=$M$1,Eingabe!B197,"")) -> Pilowski | C20: =IF($M$1="","",IF($D20=$M$1,Eingabe!C197,"")) -> Heike | D20: =IF(Eingabe!$A197=$M$1,$M$1,"") -> 6d | E20: =IF($M$1="","",IF($D20=$M$1,Eingabe!G197,"")) -> 11
A21: 16 | B21: =IF($M$1="","",IF($D21=$M$1,Eingabe!B198,"")) -> Pausch | C21: =IF($M$1="","",IF($D21=$M$1,Eingabe!C198,"")) -> Jens | D21: =IF(Eingabe!$A198=$M$1,$M$1,"") -> 6d | E21: =IF($M$1="","",IF($D21=$M$1,Eingabe!G198,"")) -> 11
A22: 17 | B22: =IF($M$1="","",IF($D22=$M$1,Eingabe!B199,"")) -> Schösser | C22: =IF($M$1="","",IF($D22=$M$1,Eingabe!C199,"")) -> Bernd | D22: =IF(Eingabe!$A199=$M$1,$M$1,"") -> 6d | E22: =IF($M$1="","",IF($D22=$M$1,Eingabe!G199,"")) -> 11
A23: 18 | B23: =IF($M$1="","",IF($D23=$M$1,Eingabe!B200,"")) -> Schmidt | C23: =IF($M$1="","",IF($D23=$M$1,Eingabe!C200,"")) -> Karl | D23: =IF(Eingabe!$A200=$M$1,$M$1,"") -> 6d | E23: =IF($M$1="","",IF($D23=$M$1,Eingabe!G200,"")) -> 12
A24: 19 | B24: =IF($M$1="","",IF($D24=$M$1,Eingabe!B201,"")) -> Schützer | C24: =IF($M$1="","",IF($D24=$M$1,Eingabe!C201,"")) -> Ulf | D24: =IF(Eingabe!$A201=$M$1,$M$1,"") -> 6d | E24: =IF($M$1="","",IF($D24=$M$1,Eingabe!G201,"")) -> 12
A25: 20 | B25: =IF($M$1="","",IF($D25=$M$1,Eingabe!B202,"")) -> Tönje | C25: =IF($M$1="","",IF($D25=$M$1,Eingabe!C202,"")) -> Christoph | D25: =IF(Eingabe!$A202=$M$1,$M$1,"") -> 6d | E25: =IF($M$1="","",IF($D25=$M$1,Eingabe!G202,"")) -> 12
A26: 21 | B26: =IF($M$1="","",IF($D26=$M$1,Eingabe!B203,"")) -> Meyer | C26: =IF($M$1="","",IF($D26=$M$1,Eingabe!C203,"")) -> Jutta | D26: =IF(Eingabe!$A203=$M$1,$M$1,"") -> 6d | E26: =IF($M$1="","",IF($D26=$M$1,Eingabe!G203,"")) -> 12
A27: 22 | B27: =IF($M$1="","",IF($D27=$M$1,Eingabe!B204,"")) -> Müller | C27: =IF($M$1="","",IF($D27=$M$1,Eingabe!C204,"")) -> Tanja | D27: =IF(Eingabe!$A204=$M$1,$M$1,"") -> 6d | E27: =IF($M$1="","",IF($D27=$M$1,Eingabe!G204,"")) -> 12
A28: 23 | B28: =IF($M$1="","",IF($D28=$M$1,Eingabe!B205,"")) -> Meisner | C28: =IF($M$1="","",IF($D28=$M$1,Eingabe!C205,"")) -> wilfried | D28: =IF(Eingabe!$A205=$M$1,$M$1,"") -> 6d | E28: =IF($M$1="","",IF($D28=$M$1,Eingabe!G205,"")) -> 11
A29: 24 | B29: =IF($M$1="","",IF($D29=$M$1,Eingabe!B206,"")) -> Petersen | C29: =IF($M$1="","",IF($D29=$M$1,Eingabe!C206,"")) -> Günter | D29: =IF(Eingabe!$A206=$M$1,$M$1,"") -> 6d | E29: =IF($M$1="","",IF($D29=$M$1,Eingabe!G206,"")) -> 11
A30: 25 | B30: =IF($M$1="","",IF($D30=$M$1,Eingabe!B207,"")) -> Pilowski | C30: =IF($M$1="","",IF($D30=$M$1,Eingabe!C207,"")) -> Heike | D30: =IF(Eingabe!$A207=$M$1,$M$1,"") -> 6d | E30: =IF($M$1="","",IF($D30=$M$1,Eingabe!G207,"")) -> 11
A31: 26 | B31: =IF($M$1="","",IF($D31=$M$1,Eingabe!B208,"")) -> Pausch | C31: =IF($M$1="","",IF($D31=$M$1,Eingabe!C208,"")) -> Jens | D31: =IF(Eingabe!$A208=$M$1,$M$1,"") -> 6d | E31: =IF($M$1="","",IF($D31=$M$1,Eingabe!G208,"")) -> 11
A32: 27 | B32: =IF($M$1="","",IF($D32=$M$1,Eingabe!B209,"")) -> Schösser | C32: =IF($M$1="","",IF($D32=$M$1,Eingabe!C209,"")) -> Bernd | D32: =IF(Eingabe!$A209=$M$1,$M$1,"") -> 6d | E32: =IF($M$1="","",IF($D32=$M$1,Eingabe!G209,"")) -> 11
A33: 28 | B33: =IF($M$1="","",IF($D33=$M$1,Eingabe!B210,"")) -> Schmidt | C33: =IF($M$1="","",IF($D33=$M$1,Eingabe!C210,"")) -> Karl | D33: =IF(Eingabe!$A210=$M$1,$M$1,"") -> 6d | E33: =IF($M$1="","",IF($D33=$M$1,Eingabe!G210,"")) -> 12
A34: 29 | B34: =IF($M$1="","",IF($D34=$M$1,Eingabe!B211,"")) -> Schützer | C34: =IF($M$1="","",IF($D34=$M$1,Eingabe!C211,"")) -> Ulf | D34: =IF(Eingabe!$A211=$M$1,$M$1,"") -> 6d | E34: =IF($M$1="","",IF($D34=$M$1,Eingabe!G211,"")) -> 12
A35: 30 | B35: =IF($M$1="","",IF($D35=$M$1,Eingabe!B212,"")) -> Tönje | C35: =IF($M$1="","",IF($D35=$M$1,Eingabe!C212,"")) -> Christoph | D35: =IF(Eingabe!$A212=$M$1,$M$1,"") -> 6d | E35: =IF($M$1="","",IF($D35=$M$1,Eingabe!G212,"")) -> 12
A36: 31
A37: 32
A38: 33
A39: 34
A40: 35
